Service Area Categorisation,Service Division Categorisation,Responsible Unit,Expenses Type,Expenses sub-Type,Detailed Expenses Type,Date,Transaction Number ,Amount,Capital/Revenue,Supplier Name
,No FE Detail,Railings at London Rd Cemetery,"New Const, Conv & Renvtion",Ste Wrk-Rn & Mt-Main Contractr,Ste Wrk-Rn & Mt-Main Contractr,05/11/2010,1,586,Capital,JUST METAL UK LTD
Highways & Transport Services,Structural Maintenance,Footpath Crossings.,Customer and client receipts,Charges,Miscellaneous Charges X,01/11/2010,2,1345.7,Revenue,REDACTED
,No FE Detail,Lavender CC - Nursery Deposits,Fund Balances,,Xfer to/from Rev A/C   X,01/11/2010,3,546.15,Revenue,SURESTART IMPREST BANK ACCOUNT
Adult Social Care,Adlt u65 Learning Disabilities,LD Dolliffe Close,Supplies & Services,Equip Furniture/Materials,Provisions - General,01/11/2010,4,1102.27,Revenue,SUPPORTED LIVING TEAM
Childrens & Education Services,Other Ch's & Family Services,CL Setting Up Home Allowance,Third Party Payments,Private Contractors,Miscellaneous Agency Services,01/11/2010,5,1122.15,Revenue,REDACTED
Adult Social Care,Asylum seekers,AS Child-Discret Pay (NoGrant),Third Party Payments,Private Contractors,Miscellaneous Agency Services,01/11/2010,6,527.01,Revenue,REDACTED
,No FE Detail,Payroll Summary Account,Fund Balances,,Extl Payees Monthly,05/11/2010,7,5302.78,Revenue,REDACTED
,No FE Detail,Payroll Summary Account,Fund Balances,,Extl Payees Monthly,05/11/2010,8,908.44,Revenue,REDACTED
,No FE Detail,Payroll Summary Account,Fund Balances,,Extl Payees Monthly,05/11/2010,9,8511.7,Revenue,REDACTED
,No FE Detail,Benedict expansion,"New Const, Conv & Renvtion",Dsgn/Sprvsn-Other Expenses,Dsgn/Sprvsn-Other Expenses,04/11/2010,10,1121.68,Capital,FULCRUM INFRASTRUCTURE SERVICE
,No FE Detail,Payroll Summary Account,Fund Balances,,Extl Payees Monthly,04/11/2010,11,2756.79,Revenue,REDACTED
,No FE Detail,Tiffin Boys,Fund Balances,,Other Deductions,05/11/2010,12,17443.55,Revenue,LONDON BOROUGH OF KINGSTON
,No FE Detail,Tiffin Boys,Fund Balances,,Other Deductions,05/11/2010,13,48972.77,Revenue,ROYAL BOROUGH OF KINGSTON
,No FE Detail,Payroll Summary Account,Fund Balances,,Extl Payees Monthly,05/11/2010,14,1679.35,Revenue,REDACTED
,No FE Detail,Payroll Summary Account,Fund Balances,,Extl Payees Monthly,04/11/2010,15,1660.26,Revenue,REDACTED
,No FE Detail,Payroll Summary Account,Fund Balances,,Extl Payees Monthly,05/11/2010,16,10085.07,Revenue,REDACTED
,No FE Detail,Ursuline  - Payroll Contract,Fund Balances,,Other Deductions,05/11/2010,17,994.34,Revenue,PRUDENTIAL (TEACHERS)
,No FE Detail,Payroll Summary Account,Fund Balances,,Extl Payees Monthly,05/11/2010,18,1259.5,Revenue,REDACTED
,No FE Detail,Payroll Summary Account,Fund Balances,,Extl Payees Monthly,05/11/2010,19,9504.48,Revenue,REDACTED
Cultural Env Reg&Plan Services,Building Control,Building Control,Customer and client receipts,Fees,Building Regs Fees S,08/11/2010,20,851.06,Revenue,REDACTED
Cultural Env Reg&Plan Services,Building Control,Building Control,Customer and client receipts,Fees,Building Regs Fees S,08/11/2010,21,587.24,Revenue,BELLS COMMERCIALS
Childrens & Education Services,Other Ch's & Family Services,CL Setting Up Home Allowance,Third Party Payments,Private Contractors,Miscellaneous Agency Services,08/11/2010,22,1185.16,Revenue,REDACTED
Housing Services,Homelessness,Homelessness Prevention,Transfer Payments,Housing Benefits,Rent Deposits,08/11/2010,23,1346.28,Revenue,REDACTED
Housing Services,Homelessness,Homelessness Prevention,Transfer Payments,Housing Benefits,Rent Deposits,08/11/2010,24,847.69,Revenue,REGENCY LETTINGS LTD
Housing Services,Homelessness,Homelessness Prevention,Transfer Payments,Housing Benefits,Rent Deposits,08/11/2010,25,849.98,Revenue,REDACTED
Housing Services,Homelessness,Homelessness Prevention,Transfer Payments,Housing Benefits,Rent Deposits,08/11/2010,26,1047.11,Revenue,TOOMEY ESTATE AGENTS
Housing Services,Homelessness,Homelessness Prevention,Transfer Payments,Housing Benefits,Rent Deposits,08/11/2010,27,849.98,Revenue,REDACTED
,No FE Detail,Sundry Tenants Rentals,Fund Balances,,Payments X,10/11/2010,28,32764.08,Revenue,MERTON PRIORY HOMES (RENT)
,No FE Detail,Prelude Debtors,Fund Balances,,Payments X,10/11/2010,29,10802.42,Revenue,MERTON PRIORY HOMES (RENT)
Cultural Env Reg&Plan Services,Development Control,Development Control,Customer and client receipts,Fees,Application Fees X,10/11/2010,30,680,Revenue,SANDYCROFT CONSTRUCTION LTD
Central Services,Fully rechargeable Overheads,Legal Services,Supplies & Services,Miscellaneous Expenses,Court Fees,10/11/2010,31,2225,Revenue,REDACTED
Central Services,Fully rechargeable Overheads,Legal Services,Supplies & Services,Miscellaneous Expenses,Court Fees,10/11/2010,32,9650,Revenue,REDACTED
,No FE Detail,Play Pathfinder Grant (EY),Fund Balances,,Payments X,10/11/2010,33,11504,Revenue,DEPARTMENT FOR EDUCATION
Central Services,Fully rechargeable Overheads,Learning and Development,Supplies & Services,Services,Consultants,12/11/2010,34,3000,Revenue,HAYS EXECUTIVE
Childrens & Education Services,Other Ch's & Family Services,CL Setting Up Home Allowance,Third Party Payments,Private Contractors,Miscellaneous Agency Services,15/11/2010,35,835.63,Revenue,REDACTED
,No FE Detail,Annual Season Ticket Loans,Fund Balances,,Payments X,15/11/2010,36,760,Revenue,TRANSPORT FOR LONDON
,No FE Detail,Joseph Hood Permanent Expansn,"New Const, Conv & Renvtion",Dsgn/Sprvsn-Ext Cnsltcy Fees,Dsgn/Sprvsn-Ext Cnsltcy Fees,17/11/2010,37,22129.01,Capital,BRITISH TELECOMMUNICATIONS PLC
,No FE Detail,Joseph Hood Permanent Expansn,"New Const, Conv & Renvtion",Dsgn/Sprvsn-Ext Cnsltcy Fees,Dsgn/Sprvsn-Ext Cnsltcy Fees,17/11/2010,38,500,Capital,OPENREACH BILLING TEAM (CNS)
Housing Services,Repairs and Maintenance,Disrepair cases (non repairs),Supplies & Services,Miscellaneous Expenses,Compensation Payments,17/11/2010,39,2000,Revenue,REDACTED
Housing Services,Homelessness,Homelessness Prevention,Transfer Payments,Housing Benefits,Rent Deposits,17/11/2010,40,850,Revenue,REDACTED
Childrens & Education Services,Other Ch's & Family Services,CL Setting Up Home Allowance,Third Party Payments,Private Contractors,Miscellaneous Agency Services,22/11/2010,41,1193.06,Revenue,REDACTED
Cultural Env Reg&Plan Services,Culture & Heritage,Attic Theatre,Supplies & Services,Grants and Subscriptions,Grants - Running Expenses,22/11/2010,42,1785,Revenue,ATTIC THEATRE COMPANY
,No FE Detail,IT Equipment Budget,Other Capital Expenditure,Misc Cap Expenditure,Misc Cap Expenditure,22/11/2010,43,6117,Capital,SCALABLE COMMUNICATIONS PLC
Central Services,Fully rechargeable Overheads,Chief Exec's Office,Supplies & Services,Miscellaneous Expenses,Prizes and Awards,29/11/2010,44,550,Revenue,REDACTED
,,LD JMC,Supplies & Services,Miscellaneous Expenses,Christmas Extras,24/11/2010,45,940,Revenue,REDACTED
Adult Social Care,Adult u65 Phys/Sensory Impair,PS All Saints DC,Supplies & Services,Miscellaneous Expenses,Christmas Extras,24/11/2010,46,660,Revenue,REDACTED
Adult Social Care,Adlt u65 Learning Disabilities,LD Dolliffe Close,Supplies & Services,Miscellaneous Expenses,Christmas Extras,24/11/2010,47,530,Revenue,REDACTED
,,LD High Path DC,Supplies & Services,Miscellaneous Expenses,Christmas Extras,24/11/2010,48,610,Revenue,REDACTED
Adult Social Care,Older People 65&Over inc OP-MH,OP Eastway DC,Supplies & Services,Miscellaneous Expenses,Christmas Extras,24/11/2010,49,560,Revenue,REDACTED
Housing Services,Homelessness,Homelessness Prevention,Transfer Payments,Housing Benefits,Rent Deposits,25/11/2010,50,847.69,Revenue,ARTIC PROPERTIES
Cultural Env Reg&Plan Services,Library Service,Media Fund,Supplies & Services,Equip Furniture/Materials,Reference,26/11/2010,51,535.75,Revenue,COUTTS INFORMAT.SERVICES LTD.
CS -Oth Operating Inc & Expend,Trading A/c Surpluses/Deficits,Transport-Workshop,Transport Related Expenditure,Direct Transport Costs,Vehicle Parts,26/11/2010,52,1157.77,Revenue,GRAYS TRUCK CENTRE LIMITED
Housing Services,Homelessness,Homelessness Prevention,Transfer Payments,Housing Benefits,Rent Deposits,26/11/2010,53,1250,Revenue,STACUE TEMPLETON ESTATE AGENTS
,No FE Detail,Cash Received in Error Refunds,Fund Balances,,Amount Refunded,26/11/2010,54,660,Revenue,REDACTED
Childrens & Education Services,Other Ch's & Family Services,CL Setting Up Home Allowance,Third Party Payments,Private Contractors,Miscellaneous Agency Services,29/11/2010,55,1137.56,Revenue,REDACTED
Adult Social Care,Asylum seekers,AS Child-Discret Pay (NoGrant),Third Party Payments,Private Contractors,Miscellaneous Agency Services,29/11/2010,56,659.27,Revenue,REDACTED
Childrens & Education Services,Assuring Access To Schools,Merton Music Foundation,Supplies & Services,Grants and Subscriptions,Grants,29/11/2010,57,22083.33,Revenue,MERTON MUSIC FOUNDATION
Childrens & Education Services,Non-Delegated School Grants,SF1.11 Music Services,Supplies & Services,Grants and Subscriptions,Grants,29/11/2010,58,81147,Revenue,MERTON MUSIC FOUNDATION
,No FE Detail,Prelude Debtors,Fund Balances,,Payments X,29/11/2010,59,10714.71,Revenue,MERTON PRIORY HOMES (RENT)
,No FE Detail,Sundry Tenants Rentals,Fund Balances,,Payments X,29/11/2010,60,4052.52,Revenue,MERTON PRIORY HOMES (RENT)
Central Services,Fully rechargeable Overheads,Corporate Accountancy,Supplies & Services,Services,Audit fee,30/11/2010,61,2075,Revenue,AUDIT COMMISSION
,No FE Detail,Payroll Summary Account,Fund Balances,,Extl Payees Monthly,26/11/2010,62,3367278.47,Revenue,REDACTED
,No FE Detail,Ursuline  - Payroll Contract,Fund Balances,,Other Deductions,26/11/2010,63,115156.5,Revenue,THE COLLECTOR OF TAXES
,No FE Detail,Tiffin Boys,Fund Balances,,Other Deductions,26/11/2010,64,93970.38,Revenue,THE COLLECTOR OF TAXES
,No FE Detail,Payroll Summary Account,Fund Balances,,Replacements,05/11/2010,65,1061.05,Revenue,REDACTED
,No FE Detail,Payroll Summary Account,Fund Balances,,Advances- Chqs Drawn,05/11/2010,66,858.68,Revenue,REDACTED
,No FE Detail,Payroll Summary Account,Fund Balances,,Salary Sacrifice,10/11/2010,67,8944.67,Revenue,ACCOR SERVICES
,No FE Detail,Crossrail BRS,Fund Balances,,Payments X,23/11/2010,68,206410,Revenue,GREATER LONDON AUTHORITY
CS -Oth Operating Inc & Expend,Precepts and Levies,Lee Valley Regional Park,,,Expenditure,18/11/2010,69,18879.11,Revenue,LEE VALLEY REGIONAL PARK AUTH.
CS -Oth Operating Inc & Expend,Precepts and Levies,London Pens Fund Auth,,,Expenditure,17/11/2010,70,28343.7,Revenue,LONDON PENSIONS FUND AUTHORITY
CS -Oth Operating Inc & Expend,Precepts and Levies,WPCC,,,Expenditure,17/11/2010,71,25761.29,Revenue,WPCC
,No FE Detail,Precepts,Fund Balances,,Greate London Authority S,17/11/2010,72,2365039.2,Revenue,GREATER LONDON AUTHORITY
,No FE Detail,Bldng Sub-Cntrctrs Tax Acc,Fund Balances,,Payments X,11/11/2010,73,939,Revenue,HM REVENUE & CUSTOMS
Cultural Env Reg&Plan Services,Culture & Heritage,Polka Children's Theatre,Supplies & Services,Grants and Subscriptions,Grants - Running Expenses,15/11/2010,74,15325,Revenue,POLKA THEATRE
CS -Oth Operating Inc & Expend,Trading A/c Surpluses/Deficits,Transport-Workshop,Transport Related Expenditure,Direct Transport Costs,Vehicle MOTs,15/11/2010,75,1500,Revenue,V.O.S.A
Central Services,Fully rechargeable Overheads,Legal Services,Supplies & Services,Miscellaneous Expenses,Court Fees,25/11/2010,76,700,Revenue,REDACTED
Central Services,Fully rechargeable Overheads,Legal Services,Supplies & Services,Miscellaneous Expenses,Court Fees,25/11/2010,77,7095,Revenue,REDACTED
Central Services,Local Tax Collection,Local Taxation Bailiffs,Supplies & Services,Services,Bailiffs' fees,25/11/2010,78,977.6,Revenue,REDACTED
,No FE Detail,Annual Season Ticket Loans,Fund Balances,,Payments X,22/11/2010,79,760,Revenue,LONDON UNDERGROUND LTD
,No FE Detail,Payroll Summary Account,Fund Balances,,Salary Sacrifice,24/11/2010,80,1447.66,Revenue,ACCOR SERVICES
,No FE Detail,Payroll Summary Account,Fund Balances,,Extl Payees Monthly,29/11/2010,81,2756.79,Revenue,REDACTED
,No FE Detail,Tiffin Boys,Fund Balances,,Other Deductions,26/11/2010,82,17414.24,Revenue,LONDON BOROUGH OF KINGSTON
,No FE Detail,Tiffin Boys,Fund Balances,,Other Deductions,26/11/2010,83,49049.67,Revenue,ROYAL BOROUGH OF KINGSTON
,No FE Detail,Payroll Summary Account,Fund Balances,,Extl Payees Monthly,26/11/2010,84,1679.35,Revenue,REDACTED
,No FE Detail,Payroll Summary Account,Fund Balances,,Salary Sacrifice,26/11/2010,85,12356.73,Revenue,ACCOR SERVICES
,No FE Detail,Payroll Summary Account,Fund Balances,,Salary Sacrifice,26/11/2010,86,798.55,Revenue,ACCOR SERVICES
,No FE Detail,Payroll Summary Account,Fund Balances,,Extl Payees Monthly,29/11/2010,87,5345.62,Revenue,REDACTED
,No FE Detail,Payroll Summary Account,Fund Balances,,Extl Payees Monthly,29/11/2010,88,908.44,Revenue,REDACTED
,No FE Detail,Payroll Summary Account,Fund Balances,,Extl Payees Monthly,29/11/2010,89,8562.35,Revenue,REDACTED
,No FE Detail,Payroll Summary Account,Fund Balances,,Extl Payees Monthly,30/11/2010,90,10013.67,Revenue,REDACTED
,No FE Detail,Ursuline  - Payroll Contract,Fund Balances,,Other Deductions,30/11/2010,91,1022.4,Revenue,PRUDENTIAL (TEACHERS)
,No FE Detail,Payroll Summary Account,Fund Balances,,Extl Payees Monthly,30/11/2010,92,1259.5,Revenue,REDACTED
,No FE Detail,Payroll Summary Account,Fund Balances,,Extl Payees Monthly,30/11/2010,93,9678.22,Revenue,REDACTED
Adult Social Care,Adlt u65 Learning Disabilities,LD Home Care External,Third Party Payments,Private Contractors,Miscellaneous Agency Services,26/11/2010,94,-20000,Revenue,HUMANITIES EXCHANGE LIMITED
Adult Social Care,Adlt u65 Learning Disabilities,LD Home Care External,Third Party Payments,Private Contractors,Miscellaneous Agency Services,26/11/2010,95,-35000,Revenue,HUMANITIES EXCHANGE LIMITED
Adult Social Care,Adlt u65 Learning Disabilities,LD Home Care External,Third Party Payments,Private Contractors,Miscellaneous Agency Services,26/11/2010,96,9782.53,Revenue,HUMANITIES EXCHANGE LIMITED
Adult Social Care,Adlt u65 Learning Disabilities,LD Home Care External,Third Party Payments,Private Contractors,Miscellaneous Agency Services,26/11/2010,97,9823.11,Revenue,HUMANITIES EXCHANGE LIMITED
Adult Social Care,Adlt u65 Learning Disabilities,LD Home Care External,Third Party Payments,Private Contractors,Miscellaneous Agency Services,26/11/2010,98,6712.71,Revenue,HUMANITIES EXCHANGE LIMITED
Adult Social Care,Adlt u65 Learning Disabilities,LD Home Care External,Third Party Payments,Private Contractors,Miscellaneous Agency Services,26/11/2010,99,8977.3,Revenue,HUMANITIES EXCHANGE LIMITED
Adult Social Care,Adlt u65 Learning Disabilities,LD Home Care External,Third Party Payments,Private Contractors,Miscellaneous Agency Services,26/11/2010,100,582.43,Revenue,HUMANITIES EXCHANGE LIMITED
Adult Social Care,Adlt u65 Learning Disabilities,LD Home Care External,Third Party Payments,Private Contractors,Miscellaneous Agency Services,26/11/2010,101,2619.72,Revenue,HUMANITIES EXCHANGE LIMITED
Adult Social Care,Adlt u65 Learning Disabilities,LD Home Care External,Third Party Payments,Private Contractors,Miscellaneous Agency Services,26/11/2010,102,2306.76,Revenue,HUMANITIES EXCHANGE LIMITED
Adult Social Care,Adlt u65 Learning Disabilities,LD Home Care External,Third Party Payments,Private Contractors,Miscellaneous Agency Services,26/11/2010,103,795.1,Revenue,HUMANITIES EXCHANGE LIMITED
Adult Social Care,Adult u65 Phys/Sensory Impair,PD EAST TEAM-Homecare,Third Party Payments,Private Contractors,Miscellaneous Agency Services,26/11/2010,104,1827.89,Revenue,HUMANITIES EXCHANGE LIMITED
Adult Social Care,Adlt u65 Learning Disabilities,LD Home Care External,Third Party Payments,Private Contractors,Miscellaneous Agency Services,26/11/2010,105,598.03,Revenue,HUMANITIES EXCHANGE LIMITED
Adult Social Care,Adult u65 Phys/Sensory Impair,PD EAST TEAM-Homecare,Third Party Payments,Private Contractors,Miscellaneous Agency Services,26/11/2010,106,2012.26,Revenue,HUMANITIES EXCHANGE LIMITED
Adult Social Care,Adlt u65 Learning Disabilities,LD Home Care External,Third Party Payments,Private Contractors,Miscellaneous Agency Services,26/11/2010,107,607.46,Revenue,HUMANITIES EXCHANGE LIMITED
Adult Social Care,Adult u65 Phys/Sensory Impair,PD EAST TEAM-Homecare,Third Party Payments,Private Contractors,Miscellaneous Agency Services,26/11/2010,108,2247.04,Revenue,HUMANITIES EXCHANGE LIMITED
Adult Social Care,Older People 65&Over inc OP-MH,OP West - Nursing Care,Third Party Payments,Private Contractors,Miscellaneous Agency Services,01/11/2010,109,10248.67,Revenue,KELSTONE COURT NURSING HOME
Adult Social Care,Older People 65&Over inc OP-MH,OP R/Park - Nursing Care,Third Party Payments,Private Contractors,Miscellaneous Agency Services,01/11/2010,110,-8074.71,Revenue,KELSTONE COURT NURSING HOME
Adult Social Care,Adlt u65 Learning Disabilities,LD Day Care Agency,Third Party Payments,Private Contractors,Miscellaneous Agency Services,24/11/2010,111,-8589.69,Revenue,NAS SERVICES LIMITED
Adult Social Care,Adult u65 Mental Health Needs,MH Other Servs - Mitcham West,Third Party Payments,Private Contractors,Miscellaneous Agency Services,01/11/2010,112,919.6,Revenue,RNID
Adult Social Care,Older People 65&Over inc OP-MH,OP East - Residential Care Ext,Third Party Payments,Private Contractors,Miscellaneous Agency Services,01/11/2010,113,3860,Revenue,ATHOL HOUSE
Adult Social Care,Adlt u65 Learning Disabilities,LD Nursing Care,Third Party Payments,Private Contractors,Miscellaneous Agency Services,01/11/2010,114,3696.28,Revenue,BARONS LODGE NURSING HOME
Adult Social Care,Older People 65&Over inc OP-MH,OP West - Nursing Care,Third Party Payments,Private Contractors,Miscellaneous Agency Services,01/11/2010,115,67381.68,Revenue,BUPA CARE HOMES
Adult Social Care,Older People 65&Over inc OP-MH,OP Hosp - Nursing Care,Third Party Payments,Private Contractors,Miscellaneous Agency Services,01/11/2010,116,19252.8,Revenue,BUPA CARE HOMES
Adult Social Care,Adult u65 Phys/Sensory Impair,PD WEST TEAM-Residential Care,Third Party Payments,Private Contractors,Miscellaneous Agency Services,01/11/2010,117,3300,Revenue,BUPA CARE HOMES
Adult Social Care,Adult u65 Phys/Sensory Impair,PD WEST TEAM-Nursing,Third Party Payments,Private Contractors,Miscellaneous Agency Services,01/11/2010,118,2720,Revenue,BUPA CARE HOMES
Adult Social Care,Older People 65&Over inc OP-MH,OP R/Park - Nursing Care,Third Party Payments,Private Contractors,Miscellaneous Agency Services,01/11/2010,119,-8938.8,Revenue,BUPA CARE HOMES
Adult Social Care,Older People 65&Over inc OP-MH,OP Wimbledon - Nursing Care,Third Party Payments,Private Contractors,Miscellaneous Agency Services,01/11/2010,120,-36565.36,Revenue,BUPA CARE HOMES
Adult Social Care,Older People 65&Over inc OP-MH,OP West - Nursing Care,Third Party Payments,Private Contractors,Miscellaneous Agency Services,01/11/2010,121,33348.6,Revenue,BUPA CARE HOMES
Adult Social Care,Older People 65&Over inc OP-MH,OP R/Park - Nursing Care,Third Party Payments,Private Contractors,Miscellaneous Agency Services,01/11/2010,122,601.65,Revenue,BUPA CARE HOMES
Adult Social Care,Older People 65&Over inc OP-MH,OP Hosp - Nursing Care,Third Party Payments,Private Contractors,Miscellaneous Agency Services,01/11/2010,123,-2234.7,Revenue,BUPA CARE HOMES
Adult Social Care,Older People 65&Over inc OP-MH,OP Mitcham - Nursing Care,Third Party Payments,Private Contractors,Miscellaneous Agency Services,01/11/2010,124,-4297.5,Revenue,BUPA CARE HOMES
Adult Social Care,Older People 65&Over inc OP-MH,OP Wimbledon - Nursing Care,Third Party Payments,Private Contractors,Miscellaneous Agency Services,01/11/2010,125,-26816.4,Revenue,BUPA CARE HOMES
Adult Social Care,Adlt u65 Learning Disabilities,LD Residential Care External,Third Party Payments,Private Contractors,Miscellaneous Agency Services,01/11/2010,126,7182.16,Revenue,CARE ASPIRATIONS LIMITED
Adult Social Care,Older People 65&Over inc OP-MH,OP East - Nursing Care,Third Party Payments,Private Contractors,Miscellaneous Agency Services,01/11/2010,127,10474.39,Revenue,REDACTED
Adult Social Care,Older People 65&Over inc OP-MH,OP Intake - Nursing Care,Third Party Payments,Private Contractors,Miscellaneous Agency Services,01/11/2010,128,-1983.79,Revenue,REDACTED
Adult Social Care,Older People 65&Over inc OP-MH,OP Mitcham - Nursing Care,Third Party Payments,Private Contractors,Miscellaneous Agency Services,01/11/2010,129,-6268.76,Revenue,REDACTED
Adult Social Care,Older People 65&Over inc OP-MH,OP Hosp - Nursing Care,Third Party Payments,Private Contractors,Miscellaneous Agency Services,01/11/2010,130,2400,Revenue,REDACTED
Adult Social Care,Older People 65&Over inc OP-MH,OP Hosp - Nursing Care,Third Party Payments,Private Contractors,Miscellaneous Agency Services,01/11/2010,131,2341.84,Revenue,REDACTED
Adult Social Care,Older People 65&Over inc OP-MH,OP Hosp - Nursing Care,Third Party Payments,Private Contractors,Miscellaneous Agency Services,01/11/2010,132,2174.57,Revenue,REDACTED
Adult Social Care,Older People 65&Over inc OP-MH,OP West - Nursing Care,Third Party Payments,Private Contractors,Miscellaneous Agency Services,01/11/2010,133,7409.81,Revenue,CRNH LTD
Adult Social Care,Older People 65&Over inc OP-MH,OP R/Park - Nursing Care,Third Party Payments,Private Contractors,Miscellaneous Agency Services,01/11/2010,134,-6121.15,Revenue,CRNH LTD
Adult Social Care,Adlt u65 Learning Disabilities,LD Residential Care External,Third Party Payments,Private Contractors,Miscellaneous Agency Services,01/11/2010,135,9094.4,Revenue,DANESWOOD
Adult Social Care,Older People 65&Over inc OP-MH,OP West - Residential Care Ext,Third Party Payments,Private Contractors,Miscellaneous Agency Services,01/11/2010,136,6378.91,Revenue,THE ELMS REST HOME LTD
Adult Social Care,Older People 65&Over inc OP-MH,OP R/Park-Residential Care Ext,Third Party Payments,Private Contractors,Miscellaneous Agency Services,01/11/2010,137,-4661.51,Revenue,THE ELMS REST HOME LTD
Adult Social Care,Older People 65&Over inc OP-MH,OP Hosp - Residential Care Ext,Third Party Payments,Private Contractors,Miscellaneous Agency Services,01/11/2010,138,1880,Revenue,THE ELMS REST HOME LTD
Adult Social Care,Older People 65&Over inc OP-MH,OP East - Residential Care Ext,Third Party Payments,Private Contractors,Miscellaneous Agency Services,01/11/2010,139,1812.86,Revenue,THE ELMS REST HOME LTD
Adult Social Care,Adlt u65 Learning Disabilities,LD Residential Care External,Third Party Payments,Private Contractors,Miscellaneous Agency Services,01/11/2010,140,7308,Revenue,INDEPENDENCE HOMES LTD
Adult Social Care,Adult u65 Phys/Sensory Impair,PD WEST TEAM-Nursing,Third Party Payments,Private Contractors,Miscellaneous Agency Services,01/11/2010,141,4254.28,Revenue,LEONARD CHESHIRE
Adult Social Care,Adult u65 Phys/Sensory Impair,PD WEST TEAM-Nursing,Customer and client receipts,Charges,Bd&Acc-contrib coll by home X,01/11/2010,142,-774,Revenue,LEONARD CHESHIRE
Adult Social Care,Older People 65&Over inc OP-MH,OP East - Residential Care Ext,Third Party Payments,Private Contractors,Miscellaneous Agency Services,01/11/2010,143,1744.6,Revenue,REDACTED
Adult Social Care,Older People 65&Over inc OP-MH,OP East - Residential Care Ext,Third Party Payments,Private Contractors,Miscellaneous Agency Services,01/11/2010,144,1744.6,Revenue,REDACTED
Adult Social Care,Adlt u65 Learning Disabilities,LD Supported Housing,Third Party Payments,Private Contractors,Miscellaneous Agency Services,01/11/2010,145,4186.88,Revenue,ROYAL MENCAP SOCIETY
Adult Social Care,Adlt u65 Learning Disabilities,LD Residential Care External,Third Party Payments,Private Contractors,Miscellaneous Agency Services,01/11/2010,146,14971.25,Revenue,METROPOLITAN SUPPORT TRUST
Adult Social Care,Adlt u65 Learning Disabilities,LD Residential Care External,Customer and client receipts,Charges,Bd&Acc-contrib coll by home X,01/11/2010,147,-1138.4,Revenue,METROPOLITAN SUPPORT TRUST
Adult Social Care,Adult u65 Phys/Sensory Impair,PD EAST TEAM-Residential,Third Party Payments,Private Contractors,Miscellaneous Agency Services,01/11/2010,148,22474.55,Revenue,THE RICHARDSON PARTNERSHIP FOR
Adult Social Care,Adult u65 Phys/Sensory Impair,PS Residential Care External,Third Party Payments,Private Contractors,Miscellaneous Agency Services,01/11/2010,149,-14967.39,Revenue,THE RICHARDSON PARTNERSHIP FOR
Adult Social Care,Adlt u65 Learning Disabilities,LD Supported Housing,Third Party Payments,Private Contractors,Miscellaneous Agency Services,01/11/2010,150,1835.12,Revenue,ROYAL MENCAP SOCIETY
Adult Social Care,Adlt u65 Learning Disabilities,LD Supported Housing,Third Party Payments,Private Contractors,Miscellaneous Agency Services,01/11/2010,151,6284.04,Revenue,ROYAL MENCAP SOCIETY
Adult Social Care,Adlt u65 Learning Disabilities,LD Supported Housing,Third Party Payments,Private Contractors,Miscellaneous Agency Services,01/11/2010,152,1906.56,Revenue,ROYAL MENCAP SOCIETY
Adult Social Care,Adlt u65 Learning Disabilities,LD Supported Housing,Third Party Payments,Private Contractors,Miscellaneous Agency Services,01/11/2010,153,2120.96,Revenue,ROYAL MENCAP SOCIETY
Adult Social Care,Older People 65&Over inc OP-MH,OP Hosp - Nursing Care,Third Party Payments,Private Contractors,Miscellaneous Agency Services,01/11/2010,154,1087.28,Revenue,ROYAL MASONIC BENEVOLENT INST.
Adult Social Care,Older People 65&Over inc OP-MH,OP Hosp - Nursing Care,Third Party Payments,Private Contractors,Miscellaneous Agency Services,01/11/2010,155,2341.84,Revenue,ROYAL MASONIC BENEVOLENT INST.
Adult Social Care,Older People 65&Over inc OP-MH,OP Hosp - Nursing Care,Third Party Payments,Private Contractors,Miscellaneous Agency Services,01/11/2010,156,2927.3,Revenue,ROYAL MASONIC BENEVOLENT INST.
Adult Social Care,Older People 65&Over inc OP-MH,OP Hosp - Nursing Care,Customer and client receipts,Charges,Bd&Acc-contrib coll by home X,01/11/2010,157,-543.5,Revenue,ROYAL MASONIC BENEVOLENT INST.
Adult Social Care,Adult u65 Phys/Sensory Impair,PD EAST TEAM-Residential,Third Party Payments,Private Contractors,Miscellaneous Agency Services,01/11/2010,158,8384.84,Revenue,RNID
Adult Social Care,Older People 65&Over inc OP-MH,OP West - Nursing Care,Third Party Payments,Private Contractors,Miscellaneous Agency Services,01/11/2010,159,2300,Revenue,SOUTHDOWN NURSING + RES.HOME
Adult Social Care,Older People 65&Over inc OP-MH,OP West - Nursing Care,Third Party Payments,Private Contractors,Miscellaneous Agency Services,01/11/2010,160,8542.86,Revenue,SOUTHDOWN NURSING + RES.HOME
Adult Social Care,Older People 65&Over inc OP-MH,OP Wimbledon - Nursing Care,Third Party Payments,Private Contractors,Miscellaneous Agency Services,01/11/2010,161,-6242.86,Revenue,SOUTHDOWN NURSING + RES.HOME
Adult Social Care,Older People 65&Over inc OP-MH,OP Hosp - Residential Care Ext,Third Party Payments,Private Contractors,Miscellaneous Agency Services,01/11/2010,162,906.2,Revenue,ST MARY'S LODGE
Adult Social Care,Older People 65&Over inc OP-MH,OP East - Residential Care Ext,Third Party Payments,Private Contractors,Miscellaneous Agency Services,01/11/2010,163,1812.4,Revenue,ST MARY'S LODGE
Adult Social Care,Older People 65&Over inc OP-MH,OP Hosp - Residential Care Ext,Third Party Payments,Private Contractors,Miscellaneous Agency Services,01/11/2010,164,2459.69,Revenue,ST MARY'S LODGE
Adult Social Care,Older People 65&Over inc OP-MH,OP Hosp - Residential Care Ext,Third Party Payments,Private Contractors,Miscellaneous Agency Services,01/11/2010,165,1812.4,Revenue,ST MARY'S LODGE
Adult Social Care,Older People 65&Over inc OP-MH,OP Hosp - Residential Care Ext,Third Party Payments,Private Contractors,Miscellaneous Agency Services,01/11/2010,166,1812.4,Revenue,ST MARY'S LODGE
Adult Social Care,Other Adult Services,MH Residential Care Ext- SM&A,Third Party Payments,Private Contractors,Miscellaneous Agency Services,01/11/2010,167,1180,Revenue,YELDALL CHRISTIAN CENTRES
Childrens & Education Services,Children Looked After (24hrs+),CL Residential Care Homes CLA,Third Party Payments,Private Contractors,Miscellaneous Agency Services,01/11/2010,168,15600,Revenue,REDACTED
Childrens & Education Services,Children Looked After (24hrs+),CL Independent Fostering,Supplies & Services,Services,Task Based Fostering,01/11/2010,169,1648.32,Revenue,CROHAM SERV.FOR CHILDREN LTD
Childrens & Education Services,Children Looked After (24hrs+),CL Independent Fostering,Supplies & Services,Services,Task Based Fostering,01/11/2010,170,5558.57,Revenue,CARE UK CHILDRENS SERVICES
Childrens & Education Services,Children Looked After (24hrs+),CL Independent Fostering,Supplies & Services,Services,Task Based Fostering,01/11/2010,171,784.63,Revenue,CORNERWAYS FOSTERING SERV.LTD
Childrens & Education Services,Children Looked After (24hrs+),CL Independent Fostering,Supplies & Services,Services,Task Based Fostering,01/11/2010,172,784.63,Revenue,CORNERWAYS FOSTERING SERV.LTD
Adult Social Care,Adult u65 Mental Health Needs,MH Other Servs - Mitcham West,Third Party Payments,Private Contractors,Miscellaneous Agency Services,01/11/2010,173,553.88,Revenue,MATRIX PROPERTIES SERVICES LTD
Adult Social Care,Older People 65&Over inc OP-MH,OP West - Misc services,Third Party Payments,Private Contractors,Miscellaneous Agency Services,01/11/2010,174,1268.57,Revenue,TOTAL PROPERTY SERVICES
Adult Social Care,Older People 65&Over inc OP-MH,OP East - Other services,Third Party Payments,Private Contractors,Miscellaneous Agency Services,01/11/2010,175,1108.57,Revenue,TOTAL PROPERTY SERVICES
Adult Social Care,Older People 65&Over inc OP-MH,OP R/Park - Other Services,Third Party Payments,Private Contractors,Miscellaneous Agency Services,01/11/2010,176,-788.57,Revenue,TOTAL PROPERTY SERVICES
Adult Social Care,Older People 65&Over inc OP-MH,OP Mitcham - Other Services,Third Party Payments,Private Contractors,Miscellaneous Agency Services,01/11/2010,177,-948.57,Revenue,TOTAL PROPERTY SERVICES
Adult Social Care,Adlt u65 Learning Disabilities,LD Home Care External,Third Party Payments,Private Contractors,Miscellaneous Agency Services,01/11/2010,178,655.3,Revenue,BEECH HOME CARE SERVICES
Adult Social Care,Older People 65&Over inc OP-MH,OP East - Home Care External,Third Party Payments,Private Contractors,Miscellaneous Agency Services,01/11/2010,179,960.8,Revenue,ROYAL MENCAP SOCIETY
Adult Social Care,Adult u65 Mental Health Needs,MH Adult Placement Cont- NRTPF,Third Party Payments,Private Contractors,Accommodation Based Support,01/11/2010,180,2542.4,Revenue,REDACTED
Adult Social Care,Adult u65 Mental Health Needs,HS Adult Placements,Third Party Payments,Private Contractors,Accommodation Based Support,01/11/2010,181,778.4,Revenue,REDACTED
Adult Social Care,Adlt u65 Learning Disabilities,LD AdultPlacementCont,Third Party Payments,Private Contractors,Accommodation Based Support,01/11/2010,182,606.4,Revenue,REDACTED
Adult Social Care,Adult u65 Mental Health Needs,HS Adult Placements,Third Party Payments,Private Contractors,Accommodation Based Support,01/11/2010,183,1804.32,Revenue,REDACTED
Adult Social Care,Adult u65 Mental Health Needs,MH Adult PlacementCont-MitWest,Third Party Payments,Private Contractors,Accommodation Based Support,01/11/2010,184,620.2,Revenue,REDACTED
Adult Social Care,Adult u65 Mental Health Needs,HS Adult Placements,Third Party Payments,Private Contractors,Accommodation Based Support,01/11/2010,185,636.72,Revenue,REDACTED
Adult Social Care,Adult u65 Mental Health Needs,MH Res Care Ext- Mitcham West,Third Party Payments,Private Contractors,Miscellaneous Agency Services,01/11/2010,186,15080.39,Revenue,BIBBY FACTORS SLOUGH LTD
Adult Social Care,Adlt u65 Learning Disabilities,LD Adult Placements - HST,Third Party Payments,Private Contractors,Accommodation Based Support,01/11/2010,187,1238.16,Revenue,REDACTED
Adult Social Care,Other Adult Services,Fixed & Variable Client Paymen,Third Party Payments,Private Contractors,Miscellaneous Agency Services,01/11/2010,188,39919.93,Revenue,ABILITY HOUSING ASSOCIATION
Adult Social Care,Other Adult Services,Fixed & Variable Client Paymen,Third Party Payments,Private Contractors,Miscellaneous Agency Services,01/11/2010,189,5833.33,Revenue,AGE CONCERN (MERTON)
Adult Social Care,Other Adult Services,Fixed & Variable Client Paymen,Third Party Payments,Private Contractors,Miscellaneous Agency Services,01/11/2010,190,3657.23,Revenue,ANCHOR SP PAYMENT FROM SEP'03
Adult Social Care,Other Adult Services,Fixed & Variable Client Paymen,Third Party Payments,Private Contractors,Miscellaneous Agency Services,01/11/2010,191,1691.66,Revenue,ASIAN ELDERLY GROUP OF MERTON
Adult Social Care,Other Adult Services,Fixed & Variable Client Paymen,Third Party Payments,Private Contractors,Miscellaneous Agency Services,01/11/2010,192,1583.79,Revenue,CENTRAL & CECIL HOUSING TRUST
Adult Social Care,Other Adult Services,Fixed & Variable Client Paymen,Third Party Payments,Private Contractors,Miscellaneous Agency Services,01/11/2010,193,2785.67,Revenue,CROYDON CHURCHES HOUSING ASSOC
Adult Social Care,Other Adult Services,Fixed & Variable Client Paymen,Third Party Payments,Private Contractors,Miscellaneous Agency Services,01/11/2010,194,11278.43,Revenue,EQUINOX
Adult Social Care,Other Adult Services,Fixed & Variable Client Paymen,Third Party Payments,Private Contractors,Miscellaneous Agency Services,01/11/2010,195,15898.03,Revenue,FAMILY HOUSING ASSOCIATION
Adult Social Care,Other Adult Services,Fixed & Variable Client Paymen,Third Party Payments,Private Contractors,Miscellaneous Agency Services,01/11/2010,196,22844.13,Revenue,GRENFELL HOUSING ASSOCIATION
Adult Social Care,Other Adult Services,Fixed & Variable Client Paymen,Third Party Payments,Private Contractors,Miscellaneous Agency Services,01/11/2010,197,1887.22,Revenue,HANOVER HOUSING ASSOCIATION
Adult Social Care,Other Adult Services,Fixed & Variable Client Paymen,Third Party Payments,Private Contractors,Miscellaneous Agency Services,01/11/2010,198,12073.1,Revenue,HESTIA HOUSING AND SUPPORT
Adult Social Care,Other Adult Services,Fixed & Variable Client Paymen,Third Party Payments,Private Contractors,Miscellaneous Agency Services,01/11/2010,199,1948,Revenue,HORIZON HOUSING GROUP LIMITED
Adult Social Care,Other Adult Services,Fixed & Variable Client Paymen,Third Party Payments,Private Contractors,Miscellaneous Agency Services,01/11/2010,200,1194.25,Revenue,HOUSING21
Adult Social Care,Other Adult Services,Fixed & Variable Client Paymen,Third Party Payments,Private Contractors,Miscellaneous Agency Services,01/11/2010,201,600.42,Revenue,KINGSTON CHURCHES ACTION ON HO
Adult Social Care,Other Adult Services,Fixed & Variable Client Paymen,Third Party Payments,Private Contractors,Miscellaneous Agency Services,01/11/2010,202,13256.54,Revenue,MERTON ACT.FOR SINGLE HOMELESS
Adult Social Care,Other Adult Services,Fixed & Variable Client Paymen,Third Party Payments,Private Contractors,Miscellaneous Agency Services,01/11/2010,203,9544.01,Revenue,MERTON REFUGE
Adult Social Care,Other Adult Services,Fixed & Variable Client Paymen,Third Party Payments,Private Contractors,Miscellaneous Agency Services,01/11/2010,204,9091.6,Revenue,MERTON PRIORY HOMES
Adult Social Care,Other Adult Services,Fixed & Variable Client Paymen,Third Party Payments,Private Contractors,Miscellaneous Agency Services,01/11/2010,205,2139.2,Revenue,MERTON PRIORY HOMES
Adult Social Care,Other Adult Services,Fixed & Variable Client Paymen,Third Party Payments,Private Contractors,Miscellaneous Agency Services,01/11/2010,206,10774.35,Revenue,METROPOLITAN SUPPORT TRUST
Adult Social Care,Other Adult Services,Fixed & Variable Client Paymen,Third Party Payments,Private Contractors,Miscellaneous Agency Services,01/11/2010,207,505.2,Revenue,MILLAT ASIAN HOUSING ASSOC
Adult Social Care,Other Adult Services,Fixed & Variable Client Paymen,Third Party Payments,Private Contractors,Miscellaneous Agency Services,01/11/2010,208,8281.2,Revenue,NOTTING HILL HOUSING
Adult Social Care,Other Adult Services,Fixed & Variable Client Paymen,Third Party Payments,Private Contractors,Miscellaneous Agency Services,01/11/2010,209,6299.25,Revenue,SANCTUARY CARE
Adult Social Care,Other Adult Services,Fixed & Variable Client Paymen,Third Party Payments,Private Contractors,Miscellaneous Agency Services,01/11/2010,210,9757.75,Revenue,SERVITE HOUSES
Adult Social Care,Other Adult Services,Fixed & Variable Client Paymen,Third Party Payments,Private Contractors,Miscellaneous Agency Services,01/11/2010,211,27435,Revenue,COMFORT CARE SERVICES (UK) LTD
Adult Social Care,Other Adult Services,Fixed & Variable Client Paymen,Third Party Payments,Private Contractors,Miscellaneous Agency Services,01/11/2010,212,771.71,Revenue,SHAFTESBURY HOUSING ASSOC.
Adult Social Care,Other Adult Services,Fixed & Variable Client Paymen,Third Party Payments,Private Contractors,Miscellaneous Agency Services,01/11/2010,213,2095.4,Revenue,REDACTED
Adult Social Care,Other Adult Services,Fixed & Variable Client Paymen,Third Party Payments,Private Contractors,Miscellaneous Agency Services,01/11/2010,214,709.45,Revenue,THRESHOLD CENTRE LTD
Adult Social Care,Other Adult Services,Fixed & Variable Client Paymen,Third Party Payments,Private Contractors,Miscellaneous Agency Services,01/11/2010,215,19895.2,Revenue,WANDLE HOUSING ASSOCIATION LTD
Adult Social Care,Other Adult Services,Fixed & Variable Client Paymen,Third Party Payments,Private Contractors,Miscellaneous Agency Services,01/11/2010,216,692.9,Revenue,WILBERFORCE HOUSING ASSOC
Adult Social Care,Other Adult Services,Fixed & Variable Client Paymen,Third Party Payments,Private Contractors,Miscellaneous Agency Services,01/11/2010,217,39749.19,Revenue,WIMBLEDON & DISTRICT YMCA
Adult Social Care,Older People 65&Over inc OP-MH,OP East - Residential Care Ext,Third Party Payments,Private Contractors,Miscellaneous Agency Services,04/11/2010,218,2056.24,Revenue,BOLTERS CORNER CARE HOME
Adult Social Care,Older People 65&Over inc OP-MH,OP East - Nursing Care,Third Party Payments,Private Contractors,Miscellaneous Agency Services,05/11/2010,219,24066,Revenue,BUPA CARE HOMES
Adult Social Care,Older People 65&Over inc OP-MH,OP East - Residential Care Ext,Third Party Payments,Private Contractors,Miscellaneous Agency Services,05/11/2010,220,17525.2,Revenue,BUPA CARE HOMES
Adult Social Care,Older People 65&Over inc OP-MH,OP Hosp - Nursing Care,Third Party Payments,Private Contractors,Miscellaneous Agency Services,05/11/2010,221,16846.2,Revenue,BUPA CARE HOMES
Adult Social Care,Older People 65&Over inc OP-MH,OP Hosp - Residential Care Ext,Third Party Payments,Private Contractors,Miscellaneous Agency Services,05/11/2010,222,12346.84,Revenue,BUPA CARE HOMES
Adult Social Care,Older People 65&Over inc OP-MH,OP West - Residential Care Ext,Third Party Payments,Private Contractors,Miscellaneous Agency Services,05/11/2010,223,3995,Revenue,BUPA CARE HOMES
Adult Social Care,Adult u65 Phys/Sensory Impair,PD EAST TEAM-Nursing,Third Party Payments,Private Contractors,Miscellaneous Agency Services,05/11/2010,224,2819.8,Revenue,BUPA CARE HOMES
Adult Social Care,Older People 65&Over inc OP-MH,OP West - Residential Care Ext,Third Party Payments,Private Contractors,Miscellaneous Agency Services,04/11/2010,225,1960,Revenue,CLOYDA REST HOME
Adult Social Care,Older People 65&Over inc OP-MH,OP West - Residential Care Ext,Third Party Payments,Private Contractors,Miscellaneous Agency Services,04/11/2010,226,1960,Revenue,CLOYDA REST HOME
Adult Social Care,Older People 65&Over inc OP-MH,OP West - Residential Care Ext,Third Party Payments,Private Contractors,Miscellaneous Agency Services,04/11/2010,227,1960,Revenue,CLOYDA REST HOME
Adult Social Care,Older People 65&Over inc OP-MH,OP West - Residential Care Ext,Third Party Payments,Private Contractors,Miscellaneous Agency Services,04/11/2010,228,1960,Revenue,CLOYDA REST HOME
Adult Social Care,Older People 65&Over inc OP-MH,OP Hosp - Residential Care Ext,Third Party Payments,Private Contractors,Miscellaneous Agency Services,04/11/2010,229,920,Revenue,CLOYDA REST HOME
Adult Social Care,Older People 65&Over inc OP-MH,OP West - Nursing Care,Third Party Payments,Private Contractors,Miscellaneous Agency Services,05/11/2010,230,2233.68,Revenue,GARTH HOUSE NURSING HOME
Adult Social Care,Older People 65&Over inc OP-MH,OP West - Nursing Care,Third Party Payments,Private Contractors,Miscellaneous Agency Services,04/11/2010,231,2283.2,Revenue,GOFFS PARK NURSING HOME
Adult Social Care,Older People 65&Over inc OP-MH,OP West - Nursing Care,Third Party Payments,Private Contractors,Miscellaneous Agency Services,05/11/2010,232,2232.84,Revenue,GRACE MANOR NURSING HOME
Adult Social Care,Older People 65&Over inc OP-MH,OP West - Nursing Care,Customer and client receipts,Charges,Bd&Acc-contrib coll by home X,05/11/2010,233,-562.28,Revenue,GRACE MANOR NURSING HOME
Adult Social Care,Older People 65&Over inc OP-MH,OP West - Residential Care Ext,Third Party Payments,Private Contractors,Miscellaneous Agency Services,05/11/2010,234,17031.22,Revenue,GRANGE COTTAGE LIMITED
Adult Social Care,Older People 65&Over inc OP-MH,OP East - Residential Care Ext,Third Party Payments,Private Contractors,Miscellaneous Agency Services,05/11/2010,235,8543.85,Revenue,GRANGE COTTAGE LIMITED
Adult Social Care,Adult u65 Phys/Sensory Impair,PD EAST TEAM-Residential,Third Party Payments,Private Contractors,Miscellaneous Agency Services,05/11/2010,236,4602.24,Revenue,GRANGE COTTAGE LIMITED
Adult Social Care,Older People 65&Over inc OP-MH,OP R/Park-Residential Care Ext,Third Party Payments,Private Contractors,Miscellaneous Agency Services,05/11/2010,237,-6270.9,Revenue,GRANGE COTTAGE LIMITED
Adult Social Care,Older People 65&Over inc OP-MH,OP Mitcham-Residential CareExt,Third Party Payments,Private Contractors,Miscellaneous Agency Services,05/11/2010,238,-6731.61,Revenue,GRANGE COTTAGE LIMITED
Adult Social Care,Older People 65&Over inc OP-MH,OP Wim - Residential Care Ext,Third Party Payments,Private Contractors,Miscellaneous Agency Services,05/11/2010,239,-7147.56,Revenue,GRANGE COTTAGE LIMITED
Adult Social Care,Older People 65&Over inc OP-MH,OP West - Nursing Care,Third Party Payments,Private Contractors,Miscellaneous Agency Services,05/11/2010,240,4000,Revenue,HEADINGTON NURSING HOME
Adult Social Care,Older People 65&Over inc OP-MH,OP West - Nursing Care,Customer and client receipts,Charges,Bd&Acc-contrib coll by home X,05/11/2010,241,-543.5,Revenue,HEADINGTON NURSING HOME
Adult Social Care,Older People 65&Over inc OP-MH,OP East - Nursing Care,Third Party Payments,Private Contractors,Miscellaneous Agency Services,05/11/2010,242,12148.71,Revenue,SOUTHERN CROSS HEALTHCARE
Adult Social Care,Older People 65&Over inc OP-MH,OP Mitcham - Nursing Care,Third Party Payments,Private Contractors,Miscellaneous Agency Services,05/11/2010,243,-9571.71,Revenue,SOUTHERN CROSS HEALTHCARE
Adult Social Care,Older People 65&Over inc OP-MH,OP Hosp - Residential Care Ext,Third Party Payments,Private Contractors,Miscellaneous Agency Services,05/11/2010,244,2030,Revenue,MANOR HOUSE RESIDENTIAL HOME
Adult Social Care,Older People 65&Over inc OP-MH,OP East - Residential Care Ext,Third Party Payments,Private Contractors,Miscellaneous Agency Services,05/11/2010,245,2028,Revenue,MANOR HOUSE RESIDENTIAL HOME
Adult Social Care,Older People 65&Over inc OP-MH,OP Hosp - Residential Care Ext,Third Party Payments,Private Contractors,Miscellaneous Agency Services,05/11/2010,246,2028,Revenue,MANOR HOUSE RESIDENTIAL HOME
Adult Social Care,Older People 65&Over inc OP-MH,OP East - Residential Care Ext,Third Party Payments,Private Contractors,Miscellaneous Agency Services,05/11/2010,247,9560.57,Revenue,MANOR HOUSE RESIDENTIAL HOME
Adult Social Care,Older People 65&Over inc OP-MH,OP Morden-Residential Care Ext,Third Party Payments,Private Contractors,Miscellaneous Agency Services,05/11/2010,248,-7532.57,Revenue,MANOR HOUSE RESIDENTIAL HOME
Adult Social Care,Older People 65&Over inc OP-MH,OP East - Residential Care Ext,Third Party Payments,Private Contractors,Miscellaneous Agency Services,05/11/2010,249,7899.26,Revenue,MANOR HOUSE RESIDENTIAL HOME
Adult Social Care,Older People 65&Over inc OP-MH,OP Morden-Residential Care Ext,Customer and client receipts,Charges,Bd&Acc-contrib coll by home X,05/11/2010,250,1724.77,Revenue,MANOR HOUSE RESIDENTIAL HOME
Adult Social Care,Older People 65&Over inc OP-MH,OP East - Residential Care Ext,Customer and client receipts,Charges,Bd&Acc-contrib coll by home X,05/11/2010,251,-2189.13,Revenue,MANOR HOUSE RESIDENTIAL HOME
Adult Social Care,Older People 65&Over inc OP-MH,OP Morden-Residential Care Ext,Third Party Payments,Private Contractors,Miscellaneous Agency Services,05/11/2010,252,-6223.66,Revenue,MANOR HOUSE RESIDENTIAL HOME
Adult Social Care,Older People 65&Over inc OP-MH,OP West - Residential Care Ext,Third Party Payments,Private Contractors,Miscellaneous Agency Services,04/11/2010,253,2288.84,Revenue,OATLANDS CARE LIMITED
Adult Social Care,Older People 65&Over inc OP-MH,OP East - Residential Care Ext,Third Party Payments,Private Contractors,Miscellaneous Agency Services,05/11/2010,254,8485.71,Revenue,PENDENNIS RESIDENTIAL HOME
Adult Social Care,Older People 65&Over inc OP-MH,OP Mitcham-Residential CareExt,Third Party Payments,Private Contractors,Miscellaneous Agency Services,05/11/2010,255,-6685.71,Revenue,PENDENNIS RESIDENTIAL HOME
Adult Social Care,Older People 65&Over inc OP-MH,OP East - Residential Care Ext,Third Party Payments,Private Contractors,Miscellaneous Agency Services,04/11/2010,256,1464.64,Revenue,ROSEDALE REST HOME
Adult Social Care,Older People 65&Over inc OP-MH,OP East - Residential Care Ext,Third Party Payments,Private Contractors,Miscellaneous Agency Services,04/11/2010,257,1505.72,Revenue,ROSEDALE REST HOME
Adult Social Care,Older People 65&Over inc OP-MH,OP East - Residential Care Ext,Third Party Payments,Private Contractors,Miscellaneous Agency Services,04/11/2010,258,1786.4,Revenue,ROSEDALE REST HOME
Adult Social Care,Older People 65&Over inc OP-MH,OP East - Residential Care Ext,Third Party Payments,Private Contractors,Miscellaneous Agency Services,04/11/2010,259,1745.8,Revenue,ROSEDALE REST HOME
Adult Social Care,Adult u65 Mental Health Needs,MH ResidentialCare Ext-Morden,Third Party Payments,Private Contractors,Miscellaneous Agency Services,04/11/2010,260,1834.52,Revenue,ROSEDALE REST HOME
Adult Social Care,Older People 65&Over inc OP-MH,OP East - Residential Care Ext,Third Party Payments,Private Contractors,Miscellaneous Agency Services,04/11/2010,261,1725.28,Revenue,ROSEDALE REST HOME
Adult Social Care,Older People 65&Over inc OP-MH,OP Mitcham-Residential CareExt,Third Party Payments,Private Contractors,Miscellaneous Agency Services,05/11/2010,262,-1073.44,Revenue,SOUTHERN CROSS HEALTHCARE LTD
Adult Social Care,Older People 65&Over inc OP-MH,OP East - Residential Care Ext,Third Party Payments,Private Contractors,Miscellaneous Agency Services,05/11/2010,263,8855.88,Revenue,SOUTHERN CROSS HEALTHCARE LTD
Adult Social Care,Older People 65&Over inc OP-MH,OP Morden-Residential Care Ext,Third Party Payments,Private Contractors,Miscellaneous Agency Services,05/11/2010,264,-6977.36,Revenue,SOUTHERN CROSS HEALTHCARE LTD
Adult Social Care,Older People 65&Over inc OP-MH,OP Hosp - Residential Care Ext,Third Party Payments,Private Contractors,Miscellaneous Agency Services,05/11/2010,265,1878.52,Revenue,SOUTHERN CROSS HEALTHCARE LTD
Adult Social Care,Adult u65 Phys/Sensory Impair,PD EAST TEAM-Nursing,Third Party Payments,Private Contractors,Miscellaneous Agency Services,05/11/2010,266,5307.43,Revenue,SOUTHERN CROSS HEALTHCARE LTD
Adult Social Care,Adult u65 Phys/Sensory Impair,PS Nursing Care,Third Party Payments,Private Contractors,Miscellaneous Agency Services,05/11/2010,267,-2211.43,Revenue,SOUTHERN CROSS HEALTHCARE LTD
Adult Social Care,Older People 65&Over inc OP-MH,OP Hosp - Residential Care Ext,Third Party Payments,Private Contractors,Miscellaneous Agency Services,05/11/2010,268,1812.4,Revenue,WHITECLIFF RESID. CARE HOME
Adult Social Care,Adult u65 Phys/Sensory Impair,PD EAST TEAM-Homecare,Third Party Payments,Private Contractors,Miscellaneous Agency Services,05/11/2010,269,840,Revenue,REDACTED
Adult Social Care,Adult u65 Phys/Sensory Impair,PD EAST TEAM-Direct Payment,Third Party Payments,Private Contractors,Direct Payments,11/11/2010,270,567.95,Revenue,REDACTED
Adult Social Care,Adult u65 Phys/Sensory Impair,PD EAST TEAM-Direct Payment,Third Party Payments,Private Contractors,Direct Payments,05/11/2010,271,647.8,Revenue,REDACTED
Adult Social Care,Older People 65&Over inc OP-MH,OP West -Direct Payment Scheme,Third Party Payments,Private Contractors,Direct Payments,05/11/2010,272,574.86,Revenue,REDACTED
Childrens & Education Services,Family Support Services,CS Direct Payments,Third Party Payments,Private Contractors,Direct Payments,05/11/2010,273,1278,Revenue,REDACTED
Childrens & Education Services,Family Support Services,CS Direct Payments,Third Party Payments,Private Contractors,Direct Payments,05/11/2010,274,639,Revenue,REDACTED
Childrens & Education Services,Other Ch's & Family Services,CL Leaving Care/Supp Lodgings,Third Party Payments,Private Contractors,Private Tenant/Landlord,05/11/2010,275,1008,Revenue,CHELTENHAM REAL ESTATE LLP
Childrens & Education Services,Children Looked After (24hrs+),CL Fostering Services,Supplies & Services,Services,Task Based Fostering,08/11/2010,276,771.95,Revenue,REDACTED
Childrens & Education Services,Children Looked After (24hrs+),CL Fostering Services,Supplies & Services,Services,Task Based Fostering,08/11/2010,277,780.44,Revenue,REDACTED
Childrens & Education Services,Children Looked After (24hrs+),CL Fostering Services,Supplies & Services,Services,Task Based Fostering,08/11/2010,278,751.33,Revenue,REDACTED
Childrens & Education Services,Children Looked After (24hrs+),CL Fostering Services,Supplies & Services,Services,Task Based Fostering,08/11/2010,279,613.2,Revenue,REDACTED
Childrens & Education Services,Children Looked After (24hrs+),CL Fostering Services,Supplies & Services,Services,Task Based Fostering,08/11/2010,280,1133.06,Revenue,REDACTED
Childrens & Education Services,Children Looked After (24hrs+),CL Fostering Services,Supplies & Services,Services,Task Based Fostering,08/11/2010,281,759.82,Revenue,REDACTED
Childrens & Education Services,Children Looked After (24hrs+),CL Fostering Services,Supplies & Services,Services,Task Based Fostering,08/11/2010,282,539.34,Revenue,REDACTED
Childrens & Education Services,Children Looked After (24hrs+),CL Fostering Services,Supplies & Services,Services,Task Based Fostering,08/11/2010,283,751.33,Revenue,REDACTED
Childrens & Education Services,Children Looked After (24hrs+),CL Fostering Services,Supplies & Services,Services,Task Based Fostering,08/11/2010,284,1153.68,Revenue,REDACTED
Childrens & Education Services,Children Looked After (24hrs+),CL Fostering Services,Supplies & Services,Services,Task Based Fostering,08/11/2010,285,759.82,Revenue,REDACTED
Childrens & Education Services,Children Looked After (24hrs+),CL Fostering Services,Supplies & Services,Services,Task Based Fostering,08/11/2010,286,1635.99,Revenue,REDACTED
Childrens & Education Services,Children Looked After (24hrs+),CL Fostering Services,Supplies & Services,Services,Task Based Fostering,08/11/2010,287,780.44,Revenue,REDACTED
Childrens & Education Services,Children Looked After (24hrs+),CL Fostering Services,Supplies & Services,Services,Task Based Fostering,08/11/2010,288,1150.04,Revenue,REDACTED
Childrens & Education Services,Children Looked After (24hrs+),CL Fostering Services,Supplies & Services,Services,Task Based Fostering,08/11/2010,289,739.2,Revenue,REDACTED
Childrens & Education Services,Children Looked After (24hrs+),CL Fostering Services,Supplies & Services,Services,Task Based Fostering,08/11/2010,290,665.22,Revenue,REDACTED
Childrens & Education Services,Children Looked After (24hrs+),CL Fostering Services,Supplies & Services,Services,Task Based Fostering,08/11/2010,291,739.2,Revenue,REDACTED
Childrens & Education Services,Children Looked After (24hrs+),CL Fostering Services,Supplies & Services,Services,Task Based Fostering,08/11/2010,292,751.33,Revenue,REDACTED
Childrens & Education Services,Children Looked After (24hrs+),CL Fostering Services,Supplies & Services,Services,Task Based Fostering,08/11/2010,293,780.44,Revenue,REDACTED
Childrens & Education Services,Children Looked After (24hrs+),CL Fostering Services,Supplies & Services,Services,Task Based Fostering,08/11/2010,294,1108.8,Revenue,REDACTED
Adult Social Care,Adlt u65 Learning Disabilities,LD Residential Care External,Third Party Payments,Private Contractors,Miscellaneous Agency Services,05/11/2010,295,5044,Revenue,CARE MANAGEMENT GROUP
Childrens & Education Services,Family Support Services,CS DayCare Facilities Children,Third Party Payments,Private Contractors,Playscheme,04/11/2010,296,560,Revenue,LITTLE CATERPILLARS PLAYGROUP
Adult Social Care,Older People 65&Over inc OP-MH,OP Hosp - Residential Care Ext,Third Party Payments,Private Contractors,Miscellaneous Agency Services,05/11/2010,297,1836.48,Revenue,AVONMEAD NURSING HOME
Adult Social Care,Older People 65&Over inc OP-MH,OP West - Residential Care Ext,Third Party Payments,Private Contractors,Miscellaneous Agency Services,05/11/2010,298,9145.71,Revenue,CHERRY TREE HOUSE
Adult Social Care,Older People 65&Over inc OP-MH,OP East - Residential Care Ext,Third Party Payments,Private Contractors,Miscellaneous Agency Services,05/11/2010,299,8098.2,Revenue,CHERRY TREE HOUSE
Adult Social Care,Older People 65&Over inc OP-MH,OP Hosp - Residential Care Ext,Third Party Payments,Private Contractors,Miscellaneous Agency Services,05/11/2010,300,1812.4,Revenue,CHERRY TREE HOUSE
Adult Social Care,Older People 65&Over inc OP-MH,OP Mitcham-Residential CareExt,Third Party Payments,Private Contractors,Miscellaneous Agency Services,05/11/2010,301,-6380.4,Revenue,CHERRY TREE HOUSE
Adult Social Care,Older People 65&Over inc OP-MH,OP R/Park-Residential Care Ext,Third Party Payments,Private Contractors,Miscellaneous Agency Services,05/11/2010,302,-7205.71,Revenue,CHERRY TREE HOUSE
Adult Social Care,Adlt u65 Learning Disabilities,LD Residential Care External,Third Party Payments,Private Contractors,Miscellaneous Agency Services,05/11/2010,303,5380,Revenue,CARE MANAGEMENT GROUP
Adult Social Care,Adlt u65 Learning Disabilities,LD Residential Care External,Third Party Payments,Private Contractors,Miscellaneous Agency Services,05/11/2010,304,5500,Revenue,CARE MANAGEMENT GROUP
Adult Social Care,Adult u65 Mental Health Needs,MH ResidentialCare Ext - Wim,Third Party Payments,Private Contractors,Miscellaneous Agency Services,05/11/2010,305,3632,Revenue,CARE MANAGEMENT GROUP
Adult Social Care,Adlt u65 Learning Disabilities,LD Residential Care External,Third Party Payments,Private Contractors,Miscellaneous Agency Services,05/11/2010,306,5981.2,Revenue,CARE MANAGEMENT GROUP
Adult Social Care,Adult u65 Phys/Sensory Impair,PD WEST TEAM-Hostels,Third Party Payments,Private Contractors,Miscellaneous Agency Services,05/11/2010,307,5520,Revenue,CARE MANAGEMENT GROUP
Adult Social Care,Adlt u65 Learning Disabilities,LD Residential Care External,Third Party Payments,Private Contractors,Miscellaneous Agency Services,05/11/2010,308,3336,Revenue,CARE MANAGEMENT GROUP
Adult Social Care,Older People 65&Over inc OP-MH,OP East - Residential Care Ext,Third Party Payments,Private Contractors,Miscellaneous Agency Services,05/11/2010,309,7196.83,Revenue,FAIRFIELDS HOUSE LTD
Adult Social Care,Older People 65&Over inc OP-MH,OP Mitcham-Residential CareExt,Third Party Payments,Private Contractors,Miscellaneous Agency Services,05/11/2010,310,-5670.23,Revenue,FAIRFIELDS HOUSE LTD
Adult Social Care,Older People 65&Over inc OP-MH,OP East - Residential Care Ext,Third Party Payments,Private Contractors,Miscellaneous Agency Services,05/11/2010,311,1776.2,Revenue,VIRIDIAN HOUSING
Adult Social Care,Older People 65&Over inc OP-MH,OP East - Nursing Care,Third Party Payments,Private Contractors,Miscellaneous Agency Services,05/11/2010,312,9599.45,Revenue,FAMILY STAR LTD
Adult Social Care,Older People 65&Over inc OP-MH,OP Morden - Nursing Care,Third Party Payments,Private Contractors,Miscellaneous Agency Services,05/11/2010,313,-9346.83,Revenue,FAMILY STAR LTD
Adult Social Care,Adult u65 Mental Health Needs,HS Adult Placements,Third Party Payments,Private Contractors,Accommodation Based Support,05/11/2010,314,2055.04,Revenue,TRISWIT LIMITED
Adult Social Care,Adult u65 Mental Health Needs,HS Adult Placements,Third Party Payments,Private Contractors,Accommodation Based Support,05/11/2010,315,2335.2,Revenue,REDACTED
Adult Social Care,Adult u65 Mental Health Needs,MH Adult Placement Cont- NRTPF,Third Party Payments,Private Contractors,Accommodation Based Support,05/11/2010,316,1604.04,Revenue,REDACTED
Adult Social Care,Adult u65 Mental Health Needs,HS Adult Placements,Third Party Payments,Private Contractors,Accommodation Based Support,05/11/2010,317,879.28,Revenue,REDACTED
Adult Social Care,Adult u65 Mental Health Needs,MH Adult PlacementCont-MitWest,Third Party Payments,Private Contractors,Accommodation Based Support,05/11/2010,318,879.28,Revenue,REDACTED
Adult Social Care,Older People 65&Over inc OP-MH,OP Hosp -Direct Payment Scheme,Third Party Payments,Private Contractors,Direct Payments,05/11/2010,319,723.52,Revenue,REDACTED
Adult Social Care,Older People 65&Over inc OP-MH,OP West -Direct Payment Scheme,Third Party Payments,Private Contractors,Direct Payments,05/11/2010,320,553.8,Revenue,REDACTED
Adult Social Care,Adlt u65 Learning Disabilities,LD Direct Payment Scheme,Third Party Payments,Private Contractors,Direct Payments,05/11/2010,321,852,Revenue,REDACTED
Adult Social Care,Older People 65&Over inc OP-MH,OP East -Direct Payment Scheme,Third Party Payments,Private Contractors,Direct Payments,05/11/2010,322,913.76,Revenue,REDACTED
Adult Social Care,Older People 65&Over inc OP-MH,OP East -Direct Payment Scheme,Third Party Payments,Private Contractors,Direct Payments,05/11/2010,323,1300,Revenue,REDACTED
Adult Social Care,Adult u65 Phys/Sensory Impair,PD EAST TEAM-Direct Payment,Third Party Payments,Private Contractors,Direct Payments,05/11/2010,324,915.88,Revenue,REDACTED
Adult Social Care,Older People 65&Over inc OP-MH,OP East -Direct Payment Scheme,Third Party Payments,Private Contractors,Direct Payments,05/11/2010,325,3386.68,Revenue,REDACTED
Adult Social Care,Older People 65&Over inc OP-MH,OP East -Direct Payment Scheme,Third Party Payments,Private Contractors,Direct Payments,05/11/2010,326,2103.8,Revenue,REDACTED
Adult Social Care,Older People 65&Over inc OP-MH,OP East -Direct Payment Scheme,Third Party Payments,Private Contractors,Direct Payments,05/11/2010,327,742.16,Revenue,REDACTED
Adult Social Care,Older People 65&Over inc OP-MH,OP West -Direct Payment Scheme,Third Party Payments,Private Contractors,Direct Payments,05/11/2010,328,511.2,Revenue,REDACTED
Adult Social Care,Adult u65 Phys/Sensory Impair,PD EAST TEAM-Direct Payment,Third Party Payments,Private Contractors,Direct Payments,05/11/2010,329,1319.2,Revenue,REDACTED
Adult Social Care,Adult u65 Phys/Sensory Impair,PD EAST TEAM-Direct Payment,Third Party Payments,Private Contractors,Direct Payments,05/11/2010,330,532.48,Revenue,REDACTED
Adult Social Care,Adult u65 Mental Health Needs,MH Direct Payment Scheme-MSAOR,Third Party Payments,Private Contractors,Direct Payments,05/11/2010,331,718.48,Revenue,REDACTED
Adult Social Care,Adult u65 Phys/Sensory Impair,PD WEST TEAM-Direct Payment,Third Party Payments,Private Contractors,Direct Payments,05/11/2010,332,958.48,Revenue,REDACTED
Adult Social Care,Older People 65&Over inc OP-MH,OP West -Direct Payment Scheme,Third Party Payments,Private Contractors,Direct Payments,05/11/2010,333,502.56,Revenue,REDACTED
Adult Social Care,Older People 65&Over inc OP-MH,OP West -Direct Payment Scheme,Third Party Payments,Private Contractors,Direct Payments,05/11/2010,334,1838.4,Revenue,REDACTED
Adult Social Care,Older People 65&Over inc OP-MH,OP West -Direct Payment Scheme,Third Party Payments,Private Contractors,Direct Payments,05/11/2010,335,649.64,Revenue,REDACTED
Adult Social Care,Adult u65 Phys/Sensory Impair,PD EAST TEAM-Direct Payment,Third Party Payments,Private Contractors,Direct Payments,05/11/2010,336,2283,Revenue,REDACTED
Adult Social Care,Adult u65 Mental Health Needs,MH Direct Payment Scheme- West,Third Party Payments,Private Contractors,Direct Payments,05/11/2010,337,838,Revenue,REDACTED
Adult Social Care,Adult u65 Phys/Sensory Impair,PD EAST TEAM-Direct Payment,Third Party Payments,Private Contractors,Direct Payments,05/11/2010,338,511.2,Revenue,REDACTED
Adult Social Care,Adult u65 Phys/Sensory Impair,PD WEST TEAM-Direct Payment,Third Party Payments,Private Contractors,Direct Payments,05/11/2010,339,1456.4,Revenue,REDACTED
Adult Social Care,Adult u65 Phys/Sensory Impair,PD WEST TEAM-Direct Payment,Third Party Payments,Private Contractors,Direct Payments,05/11/2010,340,711.96,Revenue,REDACTED
Adult Social Care,Older People 65&Over inc OP-MH,OP East -Direct Payment Scheme,Third Party Payments,Private Contractors,Direct Payments,05/11/2010,341,1435.44,Revenue,REDACTED
Adult Social Care,Older People 65&Over inc OP-MH,OP East -Direct Payment Scheme,Third Party Payments,Private Contractors,Direct Payments,05/11/2010,342,1402.96,Revenue,REDACTED
Adult Social Care,Adult u65 Phys/Sensory Impair,PD WEST TEAM-Direct Payment,Third Party Payments,Private Contractors,Direct Payments,05/11/2010,343,565.36,Revenue,REDACTED
Adult Social Care,Adult u65 Phys/Sensory Impair,PD WEST TEAM-Direct Payment,Third Party Payments,Private Contractors,Direct Payments,05/11/2010,344,1244.04,Revenue,REDACTED
Adult Social Care,Older People 65&Over inc OP-MH,OP West -Direct Payment Scheme,Third Party Payments,Private Contractors,Direct Payments,05/11/2010,345,654.48,Revenue,REDACTED
Adult Social Care,Older People 65&Over inc OP-MH,OP East -Direct Payment Scheme,Third Party Payments,Private Contractors,Direct Payments,05/11/2010,346,2385.6,Revenue,REDACTED
Adult Social Care,Older People 65&Over inc OP-MH,OP East -Direct Payment Scheme,Third Party Payments,Private Contractors,Direct Payments,05/11/2010,347,2931.04,Revenue,REDACTED
Adult Social Care,Adlt u65 Learning Disabilities,LD Direct Payment Scheme,Third Party Payments,Private Contractors,Direct Payments,05/11/2010,348,891.44,Revenue,REDACTED
Adult Social Care,Older People 65&Over inc OP-MH,OP East -Direct Payment Scheme,Third Party Payments,Private Contractors,Direct Payments,05/11/2010,349,1278,Revenue,REDACTED
Adult Social Care,Adult u65 Phys/Sensory Impair,PD EAST TEAM-Direct Payment,Third Party Payments,Private Contractors,Direct Payments,05/11/2010,350,894.6,Revenue,REDACTED
Adult Social Care,Older People 65&Over inc OP-MH,OP East -Direct Payment Scheme,Third Party Payments,Private Contractors,Direct Payments,05/11/2010,351,833.2,Revenue,REDACTED
Adult Social Care,Adult u65 Phys/Sensory Impair,PD EAST TEAM-Direct Payment,Third Party Payments,Private Contractors,Direct Payments,05/11/2010,352,511.2,Revenue,REDACTED
Adult Social Care,Older People 65&Over inc OP-MH,OP West -Direct Payment Scheme,Third Party Payments,Private Contractors,Direct Payments,05/11/2010,353,894.6,Revenue,REDACTED
Adult Social Care,Older People 65&Over inc OP-MH,OP West -Direct Payment Scheme,Third Party Payments,Private Contractors,Direct Payments,05/11/2010,354,958.48,Revenue,REDACTED
Adult Social Care,Adult u65 Phys/Sensory Impair,PD EAST TEAM-Direct Payment,Third Party Payments,Private Contractors,Direct Payments,05/11/2010,355,824.92,Revenue,REDACTED
Adult Social Care,Older People 65&Over inc OP-MH,OP East -Direct Payment Scheme,Third Party Payments,Private Contractors,Direct Payments,05/11/2010,356,1130.76,Revenue,REDACTED
Adult Social Care,Older People 65&Over inc OP-MH,OP West -Direct Payment Scheme,Third Party Payments,Private Contractors,Direct Payments,05/11/2010,357,1172.64,Revenue,REDACTED
Adult Social Care,Older People 65&Over inc OP-MH,OP East -Direct Payment Scheme,Third Party Payments,Private Contractors,Direct Payments,05/11/2010,358,1278,Revenue,REDACTED
Adult Social Care,Older People 65&Over inc OP-MH,OP Hosp -Direct Payment Scheme,Third Party Payments,Private Contractors,Direct Payments,05/11/2010,359,4038.68,Revenue,REDACTED
Adult Social Care,Older People 65&Over inc OP-MH,OP East -Direct Payment Scheme,Third Party Payments,Private Contractors,Direct Payments,05/11/2010,360,669.96,Revenue,REDACTED
Adult Social Care,Adlt u65 Learning Disabilities,LD Direct Payment Scheme,Third Party Payments,Private Contractors,Direct Payments,05/11/2010,361,5352.52,Revenue,REDACTED
Adult Social Care,Older People 65&Over inc OP-MH,OP East -Direct Payment Scheme,Third Party Payments,Private Contractors,Direct Payments,05/11/2010,362,500.52,Revenue,REDACTED
Adult Social Care,Older People 65&Over inc OP-MH,OP West -Direct Payment Scheme,Third Party Payments,Private Contractors,Direct Payments,05/11/2010,363,745.48,Revenue,REDACTED
Adult Social Care,Older People 65&Over inc OP-MH,OP East -Direct Payment Scheme,Third Party Payments,Private Contractors,Direct Payments,05/11/2010,364,858.92,Revenue,REDACTED
Adult Social Care,Adult u65 Phys/Sensory Impair,PD WEST TEAM-Direct Payment,Third Party Payments,Private Contractors,Direct Payments,05/11/2010,365,3371.6,Revenue,REDACTED
Adult Social Care,Adult u65 Phys/Sensory Impair,PD EAST TEAM-Direct Payment,Third Party Payments,Private Contractors,Direct Payments,05/11/2010,366,1022.4,Revenue,REDACTED
Adult Social Care,Adlt u65 Learning Disabilities,LD Direct Payment Scheme,Third Party Payments,Private Contractors,Direct Payments,05/11/2010,367,611.36,Revenue,REDACTED
Adult Social Care,Adlt u65 Learning Disabilities,LD Direct Payment Scheme,Third Party Payments,Private Contractors,Direct Payments,05/11/2010,368,511.2,Revenue,REDACTED
Adult Social Care,Adult u65 Mental Health Needs,MH Direct Payment Scheme-MSAOR,Third Party Payments,Private Contractors,Direct Payments,05/11/2010,369,1192.8,Revenue,REDACTED
Adult Social Care,Adult u65 Phys/Sensory Impair,PD WEST TEAM-Direct Payment,Third Party Payments,Private Contractors,Direct Payments,05/11/2010,370,867.04,Revenue,REDACTED
Adult Social Care,Older People 65&Over inc OP-MH,OP West -Direct Payment Scheme,Third Party Payments,Private Contractors,Direct Payments,05/11/2010,371,692.24,Revenue,REDACTED
Adult Social Care,Older People 65&Over inc OP-MH,OP Hosp -Direct Payment Scheme,Third Party Payments,Private Contractors,Direct Payments,05/11/2010,372,535.32,Revenue,REDACTED
Adult Social Care,Older People 65&Over inc OP-MH,OP West -Direct Payment Scheme,Third Party Payments,Private Contractors,Direct Payments,05/11/2010,373,1288.52,Revenue,REDACTED
Adult Social Care,Adult u65 Phys/Sensory Impair,PD WEST TEAM-Direct Payment,Third Party Payments,Private Contractors,Direct Payments,05/11/2010,374,2982,Revenue,REDACTED
Adult Social Care,Adult u65 Phys/Sensory Impair,PD WEST TEAM-Direct Payment,Third Party Payments,Private Contractors,Direct Payments,05/11/2010,375,1638.04,Revenue,REDACTED
Adult Social Care,Older People 65&Over inc OP-MH,OP East -Direct Payment Scheme,Third Party Payments,Private Contractors,Direct Payments,05/11/2010,376,884,Revenue,REDACTED
Adult Social Care,Older People 65&Over inc OP-MH,OP West -Direct Payment Scheme,Third Party Payments,Private Contractors,Direct Payments,05/11/2010,377,1714.64,Revenue,REDACTED
Adult Social Care,Older People 65&Over inc OP-MH,OP East -Direct Payment Scheme,Third Party Payments,Private Contractors,Direct Payments,05/11/2010,378,596.4,Revenue,REDACTED
Adult Social Care,Older People 65&Over inc OP-MH,OP West -Direct Payment Scheme,Third Party Payments,Private Contractors,Direct Payments,05/11/2010,379,1383.08,Revenue,REDACTED
Adult Social Care,Adult u65 Phys/Sensory Impair,PD WEST TEAM-Direct Payment,Third Party Payments,Private Contractors,Direct Payments,05/11/2010,380,1107.6,Revenue,REDACTED
Adult Social Care,Older People 65&Over inc OP-MH,OP West -Direct Payment Scheme,Third Party Payments,Private Contractors,Direct Payments,05/11/2010,381,537.52,Revenue,REDACTED
Adult Social Care,Older People 65&Over inc OP-MH,OP Hosp -Direct Payment Scheme,Third Party Payments,Private Contractors,Direct Payments,05/11/2010,382,1456.36,Revenue,REDACTED
Adult Social Care,Adlt u65 Learning Disabilities,LD Direct Payment Scheme,Third Party Payments,Private Contractors,Direct Payments,04/11/2010,383,724.2,Revenue,REDACTED
Adult Social Care,Adult u65 Phys/Sensory Impair,PD EAST TEAM-Direct Payment,Third Party Payments,Private Contractors,Direct Payments,05/11/2010,384,1491,Revenue,REDACTED
Adult Social Care,Adult u65 Phys/Sensory Impair,PD EAST TEAM-Direct Payment,Third Party Payments,Private Contractors,Direct Payments,05/11/2010,385,639,Revenue,REDACTED
Adult Social Care,Adult u65 Phys/Sensory Impair,PD WEST TEAM-Direct Payment,Third Party Payments,Private Contractors,Direct Payments,05/11/2010,386,2790.28,Revenue,REDACTED
Adult Social Care,Adult u65 Phys/Sensory Impair,PD WEST TEAM-Direct Payment,Third Party Payments,Private Contractors,Direct Payments,05/11/2010,387,598.16,Revenue,REDACTED
Adult Social Care,Older People 65&Over inc OP-MH,OP West -Direct Payment Scheme,Third Party Payments,Private Contractors,Direct Payments,05/11/2010,388,1149.48,Revenue,REDACTED
Adult Social Care,Older People 65&Over inc OP-MH,OP Hosp -Direct Payment Scheme,Third Party Payments,Private Contractors,Direct Payments,05/11/2010,389,873.28,Revenue,REDACTED
Adult Social Care,Adlt u65 Learning Disabilities,LD Direct Payment Scheme,Third Party Payments,Private Contractors,Direct Payments,05/11/2010,390,957.2,Revenue,REDACTED
Adult Social Care,Older People 65&Over inc OP-MH,OP West -Direct Payment Scheme,Third Party Payments,Private Contractors,Direct Payments,05/11/2010,391,1684.48,Revenue,REDACTED
Adult Social Care,Older People 65&Over inc OP-MH,OP East -Direct Payment Scheme,Third Party Payments,Private Contractors,Direct Payments,05/11/2010,392,502.56,Revenue,REDACTED
Adult Social Care,Older People 65&Over inc OP-MH,OP East -Direct Payment Scheme,Third Party Payments,Private Contractors,Direct Payments,05/11/2010,393,895.24,Revenue,REDACTED
Adult Social Care,Older People 65&Over inc OP-MH,OP West -Direct Payment Scheme,Third Party Payments,Private Contractors,Direct Payments,05/11/2010,394,1183.24,Revenue,REDACTED
Adult Social Care,Older People 65&Over inc OP-MH,OP East -Direct Payment Scheme,Third Party Payments,Private Contractors,Direct Payments,05/11/2010,395,937.2,Revenue,REDACTED
Adult Social Care,Older People 65&Over inc OP-MH,OP East -Direct Payment Scheme,Third Party Payments,Private Contractors,Direct Payments,05/11/2010,396,774.8,Revenue,REDACTED
Adult Social Care,Adult u65 Phys/Sensory Impair,PD EAST TEAM-Direct Payment,Third Party Payments,Private Contractors,Direct Payments,05/11/2010,397,572.44,Revenue,REDACTED
Adult Social Care,Older People 65&Over inc OP-MH,OP West -Direct Payment Scheme,Third Party Payments,Private Contractors,Direct Payments,05/11/2010,398,504.44,Revenue,REDACTED
Adult Social Care,Adlt u65 Learning Disabilities,LD Direct Payment Scheme,Third Party Payments,Private Contractors,Direct Payments,05/11/2010,399,504,Revenue,REDACTED
Adult Social Care,Older People 65&Over inc OP-MH,OP West -Direct Payment Scheme,Third Party Payments,Private Contractors,Direct Payments,05/11/2010,400,1773.44,Revenue,REDACTED
Adult Social Care,Adult u65 Phys/Sensory Impair,PD EAST TEAM-Direct Payment,Third Party Payments,Private Contractors,Direct Payments,05/11/2010,401,800.8,Revenue,REDACTED
Adult Social Care,Older People 65&Over inc OP-MH,OP East -Direct Payment Scheme,Third Party Payments,Private Contractors,Direct Payments,05/11/2010,402,988.96,Revenue,REDACTED
Adult Social Care,Adult u65 Phys/Sensory Impair,PD EAST TEAM-Direct Payment,Third Party Payments,Private Contractors,Direct Payments,05/11/2010,403,607.04,Revenue,REDACTED
Adult Social Care,Older People 65&Over inc OP-MH,OP East -Direct Payment Scheme,Third Party Payments,Private Contractors,Direct Payments,05/11/2010,404,937.2,Revenue,REDACTED
Adult Social Care,Older People 65&Over inc OP-MH,OP Hosp -Direct Payment Scheme,Third Party Payments,Private Contractors,Direct Payments,05/11/2010,405,1189.4,Revenue,REDACTED
Adult Social Care,Older People 65&Over inc OP-MH,OP West -Direct Payment Scheme,Third Party Payments,Private Contractors,Direct Payments,05/11/2010,406,601.36,Revenue,REDACTED
Adult Social Care,Older People 65&Over inc OP-MH,OP East -Direct Payment Scheme,Third Party Payments,Private Contractors,Direct Payments,05/11/2010,407,724.2,Revenue,REDACTED
Adult Social Care,Older People 65&Over inc OP-MH,OP East -Direct Payment Scheme,Third Party Payments,Private Contractors,Direct Payments,05/11/2010,408,1608.72,Revenue,REDACTED
Adult Social Care,Older People 65&Over inc OP-MH,OP Hosp -Direct Payment Scheme,Third Party Payments,Private Contractors,Direct Payments,05/11/2010,409,1183.08,Revenue,REDACTED
Adult Social Care,Adult u65 Phys/Sensory Impair,PD EAST TEAM-Direct Payment,Third Party Payments,Private Contractors,Direct Payments,05/11/2010,410,1949.08,Revenue,REDACTED
Adult Social Care,Older People 65&Over inc OP-MH,OP Hosp -Direct Payment Scheme,Third Party Payments,Private Contractors,Direct Payments,05/11/2010,411,1609.48,Revenue,REDACTED
Adult Social Care,Adult u65 Phys/Sensory Impair,PD EAST TEAM-Direct Payment,Third Party Payments,Private Contractors,Direct Payments,05/11/2010,412,865.12,Revenue,REDACTED
Adult Social Care,Adult u65 Phys/Sensory Impair,PD WEST TEAM-Direct Payment,Third Party Payments,Private Contractors,Direct Payments,05/11/2010,413,766.8,Revenue,REDACTED
Adult Social Care,Older People 65&Over inc OP-MH,OP East -Direct Payment Scheme,Third Party Payments,Private Contractors,Direct Payments,05/11/2010,414,692.24,Revenue,REDACTED
Adult Social Care,Older People 65&Over inc OP-MH,OP East -Direct Payment Scheme,Third Party Payments,Private Contractors,Direct Payments,05/11/2010,415,593.6,Revenue,REDACTED
Adult Social Care,Adlt u65 Learning Disabilities,LD Direct Payment Scheme,Third Party Payments,Private Contractors,Direct Payments,05/11/2010,416,894.6,Revenue,REDACTED
Adult Social Care,Adult u65 Phys/Sensory Impair,PD EAST TEAM-Direct Payment,Third Party Payments,Private Contractors,Direct Payments,05/11/2010,417,958.48,Revenue,REDACTED
Adult Social Care,Older People 65&Over inc OP-MH,OP West -Direct Payment Scheme,Third Party Payments,Private Contractors,Direct Payments,05/11/2010,418,1565.56,Revenue,REDACTED
Adult Social Care,Adult u65 Phys/Sensory Impair,PD EAST TEAM-Direct Payment,Third Party Payments,Private Contractors,Direct Payments,05/11/2010,419,724.2,Revenue,REDACTED
Adult Social Care,Adlt u65 Learning Disabilities,LD Direct Payment Scheme,Third Party Payments,Private Contractors,Direct Payments,05/11/2010,420,596.8,Revenue,REDACTED
Adult Social Care,Older People 65&Over inc OP-MH,OP East -Direct Payment Scheme,Third Party Payments,Private Contractors,Direct Payments,05/11/2010,421,745.52,Revenue,REDACTED
Adult Social Care,Adult u65 Phys/Sensory Impair,PD WEST TEAM-Direct Payment,Third Party Payments,Private Contractors,Direct Payments,05/11/2010,422,554.68,Revenue,REDACTED
Adult Social Care,Adlt u65 Learning Disabilities,LD Direct Payment Scheme,Third Party Payments,Private Contractors,Direct Payments,05/11/2010,423,2419.88,Revenue,REDACTED
Adult Social Care,Adult u65 Phys/Sensory Impair,PD WEST TEAM-Direct Payment,Third Party Payments,Private Contractors,Direct Payments,05/11/2010,424,623.36,Revenue,REDACTED
Adult Social Care,Adult u65 Mental Health Needs,MH Direct Payment Scheme- West,Third Party Payments,Private Contractors,Direct Payments,05/11/2010,425,986.6,Revenue,REDACTED
Adult Social Care,Adult u65 Phys/Sensory Impair,PD EAST TEAM-Direct Payment,Third Party Payments,Private Contractors,Direct Payments,05/11/2010,426,696.48,Revenue,REDACTED
Adult Social Care,Older People 65&Over inc OP-MH,OP West -Direct Payment Scheme,Third Party Payments,Private Contractors,Direct Payments,05/11/2010,427,1135.6,Revenue,REDACTED
Adult Social Care,Older People 65&Over inc OP-MH,OP East -Direct Payment Scheme,Third Party Payments,Private Contractors,Direct Payments,05/11/2010,428,2386.88,Revenue,REDACTED
Adult Social Care,Older People 65&Over inc OP-MH,OP West -Direct Payment Scheme,Third Party Payments,Private Contractors,Direct Payments,05/11/2010,429,575.52,Revenue,REDACTED
Adult Social Care,Older People 65&Over inc OP-MH,OP Hosp -Direct Payment Scheme,Third Party Payments,Private Contractors,Direct Payments,05/11/2010,430,713.52,Revenue,REDACTED
Adult Social Care,Older People 65&Over inc OP-MH,OP Hosp -Direct Payment Scheme,Third Party Payments,Private Contractors,Direct Payments,05/11/2010,431,713.52,Revenue,REDACTED
Adult Social Care,Older People 65&Over inc OP-MH,OP East -Direct Payment Scheme,Third Party Payments,Private Contractors,Direct Payments,05/11/2010,432,1813.4,Revenue,REDACTED
Adult Social Care,Older People 65&Over inc OP-MH,OP East -Direct Payment Scheme,Third Party Payments,Private Contractors,Direct Payments,05/11/2010,433,1341.88,Revenue,REDACTED
Adult Social Care,Adlt u65 Learning Disabilities,LD Direct Payment Scheme,Third Party Payments,Private Contractors,Direct Payments,05/11/2010,434,646.88,Revenue,REDACTED
Adult Social Care,Adult u65 Phys/Sensory Impair,PD EAST TEAM-Direct Payment,Third Party Payments,Private Contractors,Direct Payments,05/11/2010,435,596.4,Revenue,REDACTED
Adult Social Care,Adult u65 Mental Health Needs,MH Other Servs - Mitcham West,Third Party Payments,Private Contractors,Miscellaneous Agency Services,05/11/2010,436,553.88,Revenue,MATRIX PROPERTIES SERVICES LTD
Childrens & Education Services,Other Ch's & Family Services,CL Adoption Allowances,Transfer Payments,Social Services clients,Adoption Allowances,05/11/2010,437,553.84,Revenue,REDACTED
Childrens & Education Services,Other Ch's & Family Services,CL Adoption Allowances,Transfer Payments,Social Services clients,Adoption Allowances,05/11/2010,438,562.88,Revenue,REDACTED
Childrens & Education Services,Other Ch's & Family Services,CL Adoption Allowances,Transfer Payments,Social Services clients,Adoption Allowances,05/11/2010,439,607.08,Revenue,REDACTED
Childrens & Education Services,Other Ch's & Family Services,CL Adoption Allowances,Transfer Payments,Social Services clients,Adoption Allowances,05/11/2010,440,892.39,Revenue,REDACTED
Childrens & Education Services,Family Support Services,CL Residence Orders,Supplies & Services,Grants and Subscriptions,Residence Orders,05/11/2010,441,606.9,Revenue,REDACTED
Childrens & Education Services,Other Ch's & Family Services,CL Adoption Allowances,Transfer Payments,Social Services clients,Adoption Allowances,05/11/2010,442,1368.6,Revenue,REDACTED
Childrens & Education Services,Family Support Services,CL Residence Orders,Supplies & Services,Grants and Subscriptions,Residence Orders,05/11/2010,443,779.02,Revenue,REDACTED
Adult Social Care,Older People 65&Over inc OP-MH,OP Hosp - Residential Care Ext,Third Party Payments,Private Contractors,Miscellaneous Agency Services,05/11/2010,444,2094.4,Revenue,ABBEYFIELD PEABODY S.LOND.LTD
Adult Social Care,Older People 65&Over inc OP-MH,OP Hosp - Residential Care Ext,Third Party Payments,Private Contractors,Miscellaneous Agency Services,05/11/2010,445,2094.4,Revenue,ABBEYFIELD PEABODY S.LOND.LTD
Adult Social Care,Older People 65&Over inc OP-MH,OP East - Residential Care Ext,Third Party Payments,Private Contractors,Miscellaneous Agency Services,05/11/2010,446,8544.17,Revenue,ABBEYFIELD PEABODY S.LOND.LTD
Adult Social Care,Older People 65&Over inc OP-MH,OP Mitcham-Residential CareExt,Third Party Payments,Private Contractors,Miscellaneous Agency Services,05/11/2010,447,-6731.77,Revenue,ABBEYFIELD PEABODY S.LOND.LTD
Adult Social Care,Older People 65&Over inc OP-MH,OP East - Residential Care Ext,Third Party Payments,Private Contractors,Miscellaneous Agency Services,05/11/2010,448,8882.85,Revenue,ABBEYFIELD PEABODY S.LOND.LTD
Adult Social Care,Older People 65&Over inc OP-MH,OP Mitcham-Residential CareExt,Third Party Payments,Private Contractors,Miscellaneous Agency Services,05/11/2010,449,-6998.61,Revenue,ABBEYFIELD PEABODY S.LOND.LTD
Adult Social Care,Older People 65&Over inc OP-MH,OP East - Residential Care Ext,Third Party Payments,Private Contractors,Miscellaneous Agency Services,05/11/2010,450,3860,Revenue,ATHOL HOUSE
Adult Social Care,Older People 65&Over inc OP-MH,OP West - Nursing Care,Third Party Payments,Private Contractors,Miscellaneous Agency Services,05/11/2010,451,2294.12,Revenue,BEACH LAWNS
Adult Social Care,Older People 65&Over inc OP-MH,OP Hosp - Residential Care Ext,Third Party Payments,Private Contractors,Miscellaneous Agency Services,05/11/2010,452,1763.16,Revenue,BLAIR HOUSE
Adult Social Care,Adlt u65 Learning Disabilities,LD Residential Care External,Third Party Payments,Private Contractors,Miscellaneous Agency Services,05/11/2010,453,5680,Revenue,BROADHAM CARE LTD
Adult Social Care,Older People 65&Over inc OP-MH,OP East - Nursing Care,Third Party Payments,Private Contractors,Miscellaneous Agency Services,05/11/2010,454,3353.84,Revenue,BRENDON CARE FOUNDATION
Adult Social Care,Older People 65&Over inc OP-MH,OP Hosp - Residential Care Ext,Third Party Payments,Private Contractors,Miscellaneous Agency Services,05/11/2010,455,1500,Revenue,BROOK CARE HOMES LTD
Adult Social Care,Older People 65&Over inc OP-MH,OP East - Nursing Care,Third Party Payments,Private Contractors,Miscellaneous Agency Services,05/11/2010,456,16915.61,Revenue,BUPA CARE SERVICES
Adult Social Care,Older People 65&Over inc OP-MH,OP Morden - Nursing Care,Customer and client receipts,Charges,Bd&Acc-contrib coll by home X,05/11/2010,457,2222.63,Revenue,BUPA CARE SERVICES
Adult Social Care,Older People 65&Over inc OP-MH,OP Morden - Nursing Care,Customer and client receipts,Charges,Miscellaneous Charges X,05/11/2010,458,1638.74,Revenue,BUPA CARE SERVICES
Adult Social Care,Older People 65&Over inc OP-MH,OP East - Nursing Care,Customer and client receipts,Charges,Miscellaneous Charges X,05/11/2010,459,-2079.94,Revenue,BUPA CARE SERVICES
Adult Social Care,Older People 65&Over inc OP-MH,OP East - Nursing Care,Customer and client receipts,Charges,Bd&Acc-contrib coll by home X,05/11/2010,460,-2821.03,Revenue,BUPA CARE SERVICES
Adult Social Care,Older People 65&Over inc OP-MH,OP Morden - Nursing Care,Third Party Payments,Private Contractors,Miscellaneous Agency Services,05/11/2010,461,-13327.45,Revenue,BUPA CARE SERVICES
Adult Social Care,Older People 65&Over inc OP-MH,OP West - Residential Care Ext,Third Party Payments,Private Contractors,Miscellaneous Agency Services,05/11/2010,462,22980.58,Revenue,CARTER HOUSE
Adult Social Care,Older People 65&Over inc OP-MH,OP West - Nursing Care,Third Party Payments,Private Contractors,Miscellaneous Agency Services,05/11/2010,463,12764.4,Revenue,CARTER HOUSE
Adult Social Care,Older People 65&Over inc OP-MH,OP East - Residential Care Ext,Third Party Payments,Private Contractors,Miscellaneous Agency Services,05/11/2010,464,9910,Revenue,CARTER HOUSE
Adult Social Care,Older People 65&Over inc OP-MH,OP East - Nursing Care,Third Party Payments,Private Contractors,Miscellaneous Agency Services,05/11/2010,465,7658.64,Revenue,CARTER HOUSE
Adult Social Care,Older People 65&Over inc OP-MH,OP Hosp - Nursing Care,Third Party Payments,Private Contractors,Miscellaneous Agency Services,05/11/2010,466,5105.76,Revenue,CARTER HOUSE
Adult Social Care,Older People 65&Over inc OP-MH,OP Hosp - Residential Care Ext,Third Party Payments,Private Contractors,Miscellaneous Agency Services,05/11/2010,467,4819.32,Revenue,CARTER HOUSE
Adult Social Care,Older People 65&Over inc OP-MH,OP West - Residential Care Ext,Customer and client receipts,Charges,Bd&Acc-contrib coll by home X,05/11/2010,468,-975.92,Revenue,CARTER HOUSE
Adult Social Care,Adlt u65 Learning Disabilities,LD Residential Care External,Third Party Payments,Private Contractors,Miscellaneous Agency Services,05/11/2010,469,4760,Revenue,CARE MANAGEMENT GROUP
Adult Social Care,Adlt u65 Learning Disabilities,LD Residential Care External,Third Party Payments,Private Contractors,Miscellaneous Agency Services,05/11/2010,470,4688.88,Revenue,CRAEGMOOR FACILITIES CO LTD
Adult Social Care,Older People 65&Over inc OP-MH,OP East - Residential Care Ext,Third Party Payments,Private Contractors,Miscellaneous Agency Services,05/11/2010,471,1611.4,Revenue,DONERAIL RESIDENTIAL HOME
Adult Social Care,Older People 65&Over inc OP-MH,OP East - Residential Care Ext,Third Party Payments,Private Contractors,Miscellaneous Agency Services,05/11/2010,472,2233,Revenue,ELM LODGE
Adult Social Care,Older People 65&Over inc OP-MH,OP East - Nursing Care,Third Party Payments,Private Contractors,Miscellaneous Agency Services,05/11/2010,473,2332.36,Revenue,ELMWOOD
Adult Social Care,Older People 65&Over inc OP-MH,OP Hosp - Residential Care Ext,Third Party Payments,Private Contractors,Miscellaneous Agency Services,05/11/2010,474,1800,Revenue,GABLE LODGE
Adult Social Care,Older People 65&Over inc OP-MH,OP Hosp - Nursing Care,Third Party Payments,Private Contractors,Miscellaneous Agency Services,05/11/2010,475,2406.6,Revenue,GROSVENOR PARK NURSING HOME
Adult Social Care,Older People 65&Over inc OP-MH,OP Hosp - Residential Care Ext,Third Party Payments,Private Contractors,Miscellaneous Agency Services,05/11/2010,476,1732,Revenue,GROVE HOUSE
Adult Social Care,Older People 65&Over inc OP-MH,OP West - Nursing Care,Third Party Payments,Private Contractors,Miscellaneous Agency Services,05/11/2010,477,2341.84,Revenue,LYNTON HALL NURSING HOME
Adult Social Care,Older People 65&Over inc OP-MH,OP Hosp - Residential Care Ext,Third Party Payments,Private Contractors,Miscellaneous Agency Services,05/11/2010,478,2200,Revenue,HASLINGTON RESIDENTIAL HOME
Adult Social Care,Older People 65&Over inc OP-MH,OP East - Residential Care Ext,Third Party Payments,Private Contractors,Miscellaneous Agency Services,05/11/2010,479,1664.6,Revenue,KINGSDALE NURSING HOME
Adult Social Care,Older People 65&Over inc OP-MH,OP West - Residential Care Ext,Third Party Payments,Private Contractors,Miscellaneous Agency Services,05/11/2010,480,1812.4,Revenue,LAVENDER LODGE
Adult Social Care,Older People 65&Over inc OP-MH,OP West - Residential Care Ext,Third Party Payments,Private Contractors,Miscellaneous Agency Services,05/11/2010,481,10140,Revenue,LINK HOUSE
Adult Social Care,Older People 65&Over inc OP-MH,OP R/Park-Residential Care Ext,Third Party Payments,Private Contractors,Miscellaneous Agency Services,05/11/2010,482,-7410,Revenue,LINK HOUSE
Adult Social Care,Older People 65&Over inc OP-MH,OP Hosp - Nursing Care,Third Party Payments,Private Contractors,Miscellaneous Agency Services,05/11/2010,483,1276.44,Revenue,LINK HOUSE
Adult Social Care,Older People 65&Over inc OP-MH,OP Hosp - Nursing Care,Third Party Payments,Private Contractors,Miscellaneous Agency Services,05/11/2010,484,2233,Revenue,MOWBRAY NURSING HOME
Adult Social Care,Older People 65&Over inc OP-MH,OP Hosp - Nursing Care,Third Party Payments,Private Contractors,Miscellaneous Agency Services,08/11/2010,485,2305.2,Revenue,OLD WALL COTTAGE RES & N/H
Adult Social Care,Adult u65 Phys/Sensory Impair,PD EAST TEAM-Nursing,Third Party Payments,Private Contractors,Miscellaneous Agency Services,05/11/2010,486,1142.86,Revenue,SUTTON NURSING HOMES LTD
Adult Social Care,Older People 65&Over inc OP-MH,OP Mitcham - Nursing Care,Third Party Payments,Private Contractors,Miscellaneous Agency Services,05/11/2010,487,832.14,Revenue,ROYAL MASONIC BENEVOLENT INST.
Adult Social Care,Older People 65&Over inc OP-MH,OP West - Nursing Care,Third Party Payments,Private Contractors,Miscellaneous Agency Services,08/11/2010,488,10645.61,Revenue,RUKBA
Adult Social Care,Older People 65&Over inc OP-MH,OP Wimbledon - Nursing Care,Customer and client receipts,Charges,Bd&Acc-contrib coll by home X,08/11/2010,489,1614.97,Revenue,RUKBA
Adult Social Care,Older People 65&Over inc OP-MH,OP West - Nursing Care,Customer and client receipts,Charges,Bd&Acc-contrib coll by home X,08/11/2010,490,-2049.77,Revenue,RUKBA
Adult Social Care,Older People 65&Over inc OP-MH,OP Wimbledon - Nursing Care,Third Party Payments,Private Contractors,Miscellaneous Agency Services,08/11/2010,491,-8387.45,Revenue,RUKBA
Adult Social Care,Older People 65&Over inc OP-MH,OP Hosp - Nursing Care,Third Party Payments,Private Contractors,Miscellaneous Agency Services,05/11/2010,492,2842,Revenue,SOUTHERN CROSS HEALTHCARE LTD
Adult Social Care,Older People 65&Over inc OP-MH,OP East - Residential Care Ext,Third Party Payments,Private Contractors,Miscellaneous Agency Services,05/11/2010,493,1878.52,Revenue,SOUTHERN CROSS HEALTHCARE LTD
Adult Social Care,Older People 65&Over inc OP-MH,OP East - Nursing Care,Third Party Payments,Private Contractors,Miscellaneous Agency Services,05/11/2010,494,2237.64,Revenue,SOUTHERN CROSS HEALTHCARE LTD
Adult Social Care,Older People 65&Over inc OP-MH,OP Hosp - Nursing Care,Third Party Payments,Private Contractors,Miscellaneous Agency Services,05/11/2010,495,2237.64,Revenue,SOUTHERN CROSS HEALTHCARE LTD
Adult Social Care,Older People 65&Over inc OP-MH,OP East - Residential Care Ext,Third Party Payments,Private Contractors,Miscellaneous Agency Services,05/11/2010,496,1878.52,Revenue,SOUTHERN CROSS HEALTHCARE LTD
Adult Social Care,Older People 65&Over inc OP-MH,OP West - Residential Care Ext,Third Party Payments,Private Contractors,Miscellaneous Agency Services,05/11/2010,497,1571.43,Revenue,SOUTHPARK RESIDENTIAL HOME
Adult Social Care,Adlt u65 Learning Disabilities,LD Residential Care External,Third Party Payments,Private Contractors,Miscellaneous Agency Services,05/11/2010,498,5678.2,Revenue,SUSSEX AUTISTIC COMMUNITY TRUS
Adult Social Care,Older People 65&Over inc OP-MH,OP West - Nursing Care,Third Party Payments,Private Contractors,Miscellaneous Agency Services,05/11/2010,499,2341.84,Revenue,SUTTON COURT CARE CENTRE
Adult Social Care,Older People 65&Over inc OP-MH,OP East - Nursing Care,Third Party Payments,Private Contractors,Miscellaneous Agency Services,05/11/2010,500,11040.1,Revenue,SUTTON COURT CARE CENTRE
Adult Social Care,Older People 65&Over inc OP-MH,OP Mitcham - Nursing Care,Third Party Payments,Private Contractors,Miscellaneous Agency Services,05/11/2010,501,-8698.26,Revenue,SUTTON COURT CARE CENTRE
Adult Social Care,Older People 65&Over inc OP-MH,OP Hosp - Nursing Care,Third Party Payments,Private Contractors,Miscellaneous Agency Services,05/11/2010,502,2341.84,Revenue,SUTTON COURT CARE CENTRE
Adult Social Care,Older People 65&Over inc OP-MH,OP Hosp - Nursing Care,Third Party Payments,Private Contractors,Miscellaneous Agency Services,05/11/2010,503,2341.84,Revenue,SUTTON COURT CARE CENTRE
Adult Social Care,Older People 65&Over inc OP-MH,OP West - Nursing Care,Third Party Payments,Private Contractors,Miscellaneous Agency Services,05/11/2010,504,2760.03,Revenue,SUTTON COURT CARE CENTRE
Adult Social Care,Older People 65&Over inc OP-MH,OP Wimbledon - Nursing Care,Third Party Payments,Private Contractors,Miscellaneous Agency Services,05/11/2010,505,2174.56,Revenue,SUTTON COURT CARE CENTRE
Adult Social Care,Older People 65&Over inc OP-MH,OP Wim - Residential Care Ext,Third Party Payments,Private Contractors,Miscellaneous Agency Services,05/11/2010,506,-2592.75,Revenue,SUTTON COURT CARE CENTRE
Adult Social Care,Older People 65&Over inc OP-MH,OP West - Residential Care Ext,Third Party Payments,Private Contractors,Miscellaneous Agency Services,05/11/2010,507,2341.84,Revenue,SUTTON COURT CARE CENTRE
Adult Social Care,Adult u65 Phys/Sensory Impair,PS Nursing Care - NRTPF,Third Party Payments,Private Contractors,Miscellaneous Agency Services,05/11/2010,508,14301.95,Revenue,SUTTON COURT CARE CENTRE
Adult Social Care,Adult u65 Phys/Sensory Impair,PD EAST TEAM-Nursing,Third Party Payments,Private Contractors,Miscellaneous Agency Services,05/11/2010,509,-11960.11,Revenue,SUTTON COURT CARE CENTRE
Adult Social Care,Older People 65&Over inc OP-MH,OP West - Nursing Care,Third Party Payments,Private Contractors,Miscellaneous Agency Services,05/11/2010,510,11040.1,Revenue,SUTTON COURT CARE CENTRE
Adult Social Care,Older People 65&Over inc OP-MH,OP Wimbledon - Nursing Care,Third Party Payments,Private Contractors,Miscellaneous Agency Services,05/11/2010,511,-8698.26,Revenue,SUTTON COURT CARE CENTRE
Adult Social Care,Older People 65&Over inc OP-MH,OP Hosp - Nursing Care,Third Party Payments,Private Contractors,Miscellaneous Agency Services,05/11/2010,512,2341.84,Revenue,SUTTON COURT CARE CENTRE
Adult Social Care,Older People 65&Over inc OP-MH,OP West - Residential Care Ext,Third Party Payments,Private Contractors,Miscellaneous Agency Services,08/11/2010,513,517.84,Revenue,THE DEVONSHIRE RESID CARE HOME
Adult Social Care,Older People 65&Over inc OP-MH,OP East - Residential Care Ext,Third Party Payments,Private Contractors,Miscellaneous Agency Services,08/11/2010,514,1632.64,Revenue,LANGLEY HOUSE TRUST
Adult Social Care,Older People 65&Over inc OP-MH,OP East - Residential Care Ext,Customer and client receipts,Charges,Bd&Acc-contrib coll by home X,08/11/2010,515,-586.12,Revenue,LANGLEY HOUSE TRUST
Childrens & Education Services,Children Looked After (24hrs+),CL Residential Care Homes CLA,Third Party Payments,Private Contractors,Miscellaneous Agency Services,05/11/2010,516,2590,Revenue,REDACTED
Adult Social Care,Asylum seekers,AS Child Res Care  (No Grant),Third Party Payments,Private Contractors,Supported Lodgings,05/11/2010,517,710.46,Revenue,REDACTED
Childrens & Education Services,Children Looked After (24hrs+),CL Independent Fostering,Supplies & Services,Services,Task Based Fostering,05/11/2010,518,4899.16,Revenue,HILLCREST CARE LTD
Adult Social Care,Adult u65 Mental Health Needs,HS Adult Placements,Third Party Payments,Private Contractors,Accommodation Based Support,08/11/2010,519,1556.8,Revenue,REDACTED
Adult Social Care,Adult u65 Mental Health Needs,HS Adult Placements,Third Party Payments,Private Contractors,Accommodation Based Support,08/11/2010,520,3004.76,Revenue,REDACTED
Adult Social Care,Older People 65&Over inc OP-MH,OP East - Residential Care Ext,Third Party Payments,Private Contractors,Miscellaneous Agency Services,05/11/2010,521,8442.89,Revenue,LINK HOUSE
Adult Social Care,Adlt u65 Learning Disabilities,LD Adult Placements - HST,Third Party Payments,Private Contractors,Accommodation Based Support,05/11/2010,522,636.72,Revenue,REDACTED
Adult Social Care,Adult u65 Mental Health Needs,HS Adult Placements,Third Party Payments,Private Contractors,Accommodation Based Support,05/11/2010,523,848.96,Revenue,REDACTED
Adult Social Care,Older People 65&Over inc OP-MH,OP East - Residential Care Ext,Third Party Payments,Private Contractors,Miscellaneous Agency Services,05/11/2010,524,3668.57,Revenue,WOODLANDS
Adult Social Care,Adult u65 Mental Health Needs,MH ResidentialCare Ext-Morden,Third Party Payments,Private Contractors,Miscellaneous Agency Services,05/11/2010,525,3248,Revenue,THE MEATH
Adult Social Care,Adult u65 Mental Health Needs,MH ResidentialCare Ext-Morden,Customer and client receipts,Charges,Bd&Acc-contrib coll by home X,05/11/2010,526,-1056.04,Revenue,THE MEATH
Adult Social Care,Adlt u65 Learning Disabilities,LD Residential Care External,Third Party Payments,Private Contractors,Miscellaneous Agency Services,05/11/2010,527,5717.76,Revenue,WINSLOW COURT
Adult Social Care,Older People 65&Over inc OP-MH,OP West - Nursing Care,Third Party Payments,Private Contractors,Miscellaneous Agency Services,05/11/2010,528,2341.84,Revenue,SUTTON COURT CARE CENTRE
Childrens & Education Services,Other Ch's & Family Services,CL Leaving Care/Supp Lodgings,Third Party Payments,Private Contractors,Miscellaneous Agency Services,10/11/2010,529,782.7,Revenue,CROYDON CHURCHES HOUSING ASSOC
Childrens & Education Services,Other Ch's & Family Services,CL Leaving Care/Supp Lodgings,Third Party Payments,Private Contractors,Supported Lodgings,09/11/2010,530,514.26,Revenue,REDACTED
Childrens & Education Services,Other Ch's & Family Services,CL Leaving Care/Supp Lodgings,Third Party Payments,Private Contractors,Supported Lodgings,09/11/2010,531,3200,Revenue,ENHANCED FOSTER CARE
Childrens & Education Services,Other Ch's & Family Services,CL Leaving Care/Supp Lodgings,Third Party Payments,Private Contractors,Miscellaneous Agency Services,09/11/2010,532,795,Revenue,KEYA SUPPORT LTD
Childrens & Education Services,Other Ch's & Family Services,CL Leaving Care/Supp Lodgings,Third Party Payments,Private Contractors,Miscellaneous Agency Services,09/11/2010,533,3180,Revenue,KEYA SUPPORT LTD
Childrens & Education Services,Other Ch's & Family Services,CL Leaving Care/Supp Lodgings,Third Party Payments,Private Contractors,Supported Lodgings,09/11/2010,534,700,Revenue,REDACTED
Adult Social Care,Asylum seekers,AS Child Res Care  (No Grant),Third Party Payments,Private Contractors,Miscellaneous Agency Services,09/11/2010,535,780,Revenue,RBS INVOICE FINANCE LIMITED
Childrens & Education Services,Other Ch's & Family Services,CL Leaving Care/Supp Lodgings,Third Party Payments,Private Contractors,Supported Lodgings,09/11/2010,536,600,Revenue,REDACTED
Adult Social Care,Older People 65&Over inc OP-MH,OP Hosp - Nursing Care,Third Party Payments,Private Contractors,Miscellaneous Agency Services,09/11/2010,537,1627.71,Revenue,CARE UK
Adult Social Care,Older People 65&Over inc OP-MH,OP Hosp - Nursing Care,Third Party Payments,Private Contractors,Miscellaneous Agency Services,09/11/2010,538,994.92,Revenue,CARE UK
Adult Social Care,Older People 65&Over inc OP-MH,OP Hosp - Nursing Care,Third Party Payments,Private Contractors,Miscellaneous Agency Services,09/11/2010,539,814.41,Revenue,CARE UK
Adult Social Care,Older People 65&Over inc OP-MH,OP East - Nursing Care,Third Party Payments,Private Contractors,Miscellaneous Agency Services,10/11/2010,540,2210.16,Revenue,GREAT WHEATLEY NURSING HOME
Adult Social Care,Adlt u65 Learning Disabilities,LD Residential Care External,Third Party Payments,Private Contractors,Miscellaneous Agency Services,09/11/2010,541,4868,Revenue,GREENFIELD CARE HOMES LTD
Adult Social Care,Adlt u65 Learning Disabilities,LD Residential Care External,Third Party Payments,Private Contractors,Miscellaneous Agency Services,09/11/2010,542,4780,Revenue,GREENFIELD CARE HOMES LTD
Adult Social Care,Adlt u65 Learning Disabilities,LD Residential Care External,Third Party Payments,Private Contractors,Miscellaneous Agency Services,09/11/2010,543,4624,Revenue,GREENFIELD CARE HOMES LTD
Adult Social Care,Adlt u65 Learning Disabilities,LD Residential Care External,Third Party Payments,Private Contractors,Miscellaneous Agency Services,09/11/2010,544,4744,Revenue,GREENFIELD CARE HOMES LTD
Adult Social Care,Adlt u65 Learning Disabilities,LD Residential Care External,Third Party Payments,Private Contractors,Miscellaneous Agency Services,09/11/2010,545,4780,Revenue,GREENFIELD CARE HOMES LTD
Adult Social Care,Adlt u65 Learning Disabilities,LD Residential Care External,Third Party Payments,Private Contractors,Miscellaneous Agency Services,09/11/2010,546,4780,Revenue,GREENFIELD CARE HOMES LTD
Adult Social Care,Adult u65 Phys/Sensory Impair,PD EAST TEAM-Nursing,Third Party Payments,Private Contractors,Miscellaneous Agency Services,09/11/2010,547,2900,Revenue,SUTTON NURSING HOMES LTD
Adult Social Care,Adult u65 Phys/Sensory Impair,PD EAST TEAM-Nursing,Third Party Payments,Private Contractors,Miscellaneous Agency Services,09/11/2010,548,2900,Revenue,SUTTON NURSING HOMES LTD
Adult Social Care,Adult u65 Phys/Sensory Impair,PD EAST TEAM-Nursing,Third Party Payments,Private Contractors,Miscellaneous Agency Services,09/11/2010,549,2589.29,Revenue,SUTTON NURSING HOMES LTD
Adult Social Care,Older People 65&Over inc OP-MH,OP Hosp - Residential Care Ext,Third Party Payments,Private Contractors,Miscellaneous Agency Services,09/11/2010,550,2400,Revenue,RUTLAND HOME
Adult Social Care,Older People 65&Over inc OP-MH,OP West - Nursing Care,Third Party Payments,Private Contractors,Miscellaneous Agency Services,09/11/2010,551,11166.86,Revenue,FAMILY STAR LTD
Adult Social Care,Older People 65&Over inc OP-MH,OP R/Park - Nursing Care,Third Party Payments,Private Contractors,Miscellaneous Agency Services,09/11/2010,552,-8917.42,Revenue,FAMILY STAR LTD
Adult Social Care,Older People 65&Over inc OP-MH,OP West - Nursing Care,Third Party Payments,Private Contractors,Miscellaneous Agency Services,09/11/2010,553,11488.35,Revenue,FAMILY STAR LTD
Adult Social Care,Older People 65&Over inc OP-MH,OP R/Park - Nursing Care,Third Party Payments,Private Contractors,Miscellaneous Agency Services,09/11/2010,554,-9174.15,Revenue,FAMILY STAR LTD
Adult Social Care,Older People 65&Over inc OP-MH,OP East - Nursing Care,Third Party Payments,Private Contractors,Miscellaneous Agency Services,09/11/2010,555,11195.26,Revenue,FAMILY STAR LTD
Adult Social Care,Older People 65&Over inc OP-MH,OP Mitcham - Nursing Care,Third Party Payments,Private Contractors,Miscellaneous Agency Services,09/11/2010,556,-8940.1,Revenue,FAMILY STAR LTD
Adult Social Care,Older People 65&Over inc OP-MH,OP Hosp - Residential Care Ext,Third Party Payments,Private Contractors,Miscellaneous Agency Services,10/11/2010,557,2160.4,Revenue,SOUTHVIEW CARE HOME
Adult Social Care,Older People 65&Over inc OP-MH,OP West - Nursing Care,Third Party Payments,Private Contractors,Miscellaneous Agency Services,10/11/2010,558,2173.96,Revenue,THE WHITE HOUSE NURSING HOME
Adult Social Care,Older People 65&Over inc OP-MH,OP West - Nursing Care,Third Party Payments,Private Contractors,Miscellaneous Agency Services,10/11/2010,559,2233,Revenue,THE WHITE HOUSE NURSING HOME
Adult Social Care,Adlt u65 Learning Disabilities,LD Direct Payment Scheme,Third Party Payments,Private Contractors,Direct Payments,09/11/2010,560,596.4,Revenue,REDACTED
Adult Social Care,Adult u65 Phys/Sensory Impair,PS Other Serv - NRTPF,Third Party Payments,Private Contractors,Miscellaneous Agency Services,09/11/2010,561,800,Revenue,REDACTED
Adult Social Care,Older People 65&Over inc OP-MH,OP East -Direct Payment Scheme,Third Party Payments,Private Contractors,Direct Payments,09/11/2010,562,1265.82,Revenue,REDACTED
Adult Social Care,Asylum seekers,AS Child - Res Care (Grant),Third Party Payments,Private Contractors,Supported Lodgings,10/11/2010,563,1757.1,Revenue,REDACTED
Childrens & Education Services,Children Looked After (24hrs+),CL Fostering Services,Supplies & Services,Services,Task Based Fostering,09/11/2010,564,771.95,Revenue,REDACTED
Childrens & Education Services,Children Looked After (24hrs+),CL Fostering Services,Supplies & Services,Services,Task Based Fostering,09/11/2010,565,836.2,Revenue,REDACTED
Childrens & Education Services,Children Looked After (24hrs+),CL Fostering Services,Supplies & Services,Services,Task Based Fostering,09/11/2010,566,1133.06,Revenue,REDACTED
Childrens & Education Services,Children Looked After (24hrs+),CL Fostering Services,Supplies & Services,Services,Task Based Fostering,09/11/2010,567,759.82,Revenue,REDACTED
Childrens & Education Services,Children Looked After (24hrs+),CL Fostering Services,Supplies & Services,Services,Task Based Fostering,09/11/2010,568,814.47,Revenue,REDACTED
Childrens & Education Services,Children Looked After (24hrs+),CL Fostering Services,Supplies & Services,Services,Task Based Fostering,09/11/2010,569,751.33,Revenue,REDACTED
Childrens & Education Services,Children Looked After (24hrs+),CL Fostering Services,Supplies & Services,Services,Task Based Fostering,09/11/2010,570,1153.68,Revenue,REDACTED
Childrens & Education Services,Children Looked After (24hrs+),CL Fostering Services,Supplies & Services,Services,Task Based Fostering,09/11/2010,571,1613.19,Revenue,REDACTED
Childrens & Education Services,Children Looked After (24hrs+),CL Fostering Services,Supplies & Services,Services,Task Based Fostering,09/11/2010,572,780.44,Revenue,REDACTED
Childrens & Education Services,Children Looked After (24hrs+),CL Fostering Services,Supplies & Services,Services,Task Based Fostering,09/11/2010,573,1150.04,Revenue,REDACTED
Childrens & Education Services,Children Looked After (24hrs+),CL Fostering Services,Supplies & Services,Services,Task Based Fostering,09/11/2010,574,739.2,Revenue,REDACTED
Childrens & Education Services,Children Looked After (24hrs+),CL Fostering Services,Supplies & Services,Services,Task Based Fostering,09/11/2010,575,665.22,Revenue,REDACTED
Childrens & Education Services,Children Looked After (24hrs+),CL Fostering Services,Supplies & Services,Services,Task Based Fostering,09/11/2010,576,739.2,Revenue,REDACTED
Childrens & Education Services,Children Looked After (24hrs+),CL Fostering Services,Supplies & Services,Services,Task Based Fostering,09/11/2010,577,751.33,Revenue,REDACTED
Childrens & Education Services,Children Looked After (24hrs+),CL Fostering Services,Supplies & Services,Services,Task Based Fostering,09/11/2010,578,2851.2,Revenue,REDACTED
Childrens & Education Services,Children Looked After (24hrs+),CL Fostering Services,Supplies & Services,Services,Task Based Fostering,09/11/2010,579,780.44,Revenue,REDACTED
Childrens & Education Services,Children Looked After (24hrs+),CL Fostering Services,Supplies & Services,Services,Task Based Fostering,09/11/2010,580,1108.8,Revenue,REDACTED
Childrens & Education Services,Other Ch's & Family Services,CL Setting Up Home Allowance,Third Party Payments,Private Contractors,Miscellaneous Agency Services,10/11/2010,581,1316.55,Revenue,LIVINGSTONE SUPPORTED HOUSING
Childrens & Education Services,Family Support Services,CL Travel E-Parent Visiting T1,Third Party Payments,Private Contractors,Miscellaneous Agency Services,10/11/2010,582,1840,Revenue,PROACTIV CONTACT CENTRE
Childrens & Education Services,Other Ch's & Family Services,CL Leaving Care/Supp Lodgings,Third Party Payments,Private Contractors,Supported Lodgings,10/11/2010,583,1171.42,Revenue,REDACTED
Childrens & Education Services,Other Ch's & Family Services,CL Leaving Care/Supp Lodgings,Third Party Payments,Private Contractors,Supported Lodgings,10/11/2010,584,800,Revenue,REDACTED
Adult Social Care,Asylum seekers,AS Child - Res Care (Grant),Third Party Payments,Private Contractors,Miscellaneous Agency Services,10/11/2010,585,2600,Revenue,LIVINGSTONE SUPPORTED HOUSING
Adult Social Care,Asylum seekers,AS Child - Res Care (Grant),Third Party Payments,Private Contractors,Miscellaneous Agency Services,10/11/2010,586,1200,Revenue,LIVINGSTONE SUPPORTED HOUSING
Adult Social Care,Asylum seekers,AS Child - Res Care (Grant),Third Party Payments,Private Contractors,Miscellaneous Agency Services,10/11/2010,587,1200,Revenue,LIVINGSTONE SUPPORTED HOUSING
Adult Social Care,Asylum seekers,AS Child Res Care  (No Grant),Third Party Payments,Private Contractors,Miscellaneous Agency Services,10/11/2010,588,1200,Revenue,LIVINGSTONE SUPPORTED HOUSING
Childrens & Education Services,Other Ch's & Family Services,CL Leaving Care/Supp Lodgings,Third Party Payments,Private Contractors,Miscellaneous Agency Services,10/11/2010,589,900,Revenue,SUPPORTED LIVING SERV.KENT LTD
Childrens & Education Services,Other Ch's & Family Services,CL Leaving Care/Supp Lodgings,Third Party Payments,Private Contractors,Miscellaneous Agency Services,10/11/2010,590,514.29,Revenue,SUPPORTED LIVING SERV.KENT LTD
Adult Social Care,Adult u65 Mental Health Needs,MH Adult Placement Cont-Morden,Third Party Payments,Private Contractors,Accommodation Based Support,10/11/2010,591,848.96,Revenue,EL-SHADDAI
Adult Social Care,Adult u65 Mental Health Needs,MH Adult PlacementCont-MitWest,Third Party Payments,Private Contractors,Accommodation Based Support,10/11/2010,592,848.96,Revenue,EL-SHADDAI
Adult Social Care,Older People 65&Over inc OP-MH,OP East - Residential Care Ext,Third Party Payments,Private Contractors,Miscellaneous Agency Services,10/11/2010,593,1840,Revenue,CHARLTON HOUSE
Adult Social Care,Other Adult Services,MH Residential Care Ext - SM&D,Third Party Payments,Private Contractors,Miscellaneous Agency Services,10/11/2010,594,2560,Revenue,CRANSTOUN DRUG SERVICES
Adult Social Care,Adlt u65 Learning Disabilities,LD Residential Care External,Third Party Payments,Private Contractors,Miscellaneous Agency Services,10/11/2010,595,14971.25,Revenue,METROPOLITAN SUPPORT TRUST
Adult Social Care,Adlt u65 Learning Disabilities,LD Residential Care External,Customer and client receipts,Charges,Bd&Acc-contrib coll by home X,10/11/2010,596,-1138.4,Revenue,METROPOLITAN SUPPORT TRUST
Adult Social Care,Older People 65&Over inc OP-MH,OP East - Residential Care Ext,Third Party Payments,Private Contractors,Miscellaneous Agency Services,10/11/2010,597,1703.44,Revenue,SOUTHPARK RESIDENTIAL HOME
Adult Social Care,Older People 65&Over inc OP-MH,OP Hosp - Residential Care Ext,Third Party Payments,Private Contractors,Miscellaneous Agency Services,10/11/2010,598,1920,Revenue,SOUTHPARK RESIDENTIAL HOME
Adult Social Care,Older People 65&Over inc OP-MH,OP West - Residential Care Ext,Third Party Payments,Private Contractors,Miscellaneous Agency Services,10/11/2010,599,1784.2,Revenue,SOUTHPARK RESIDENTIAL HOME
Adult Social Care,Adult u65 Mental Health Needs,MH Res Care Ext- Mitcham West,Third Party Payments,Private Contractors,Miscellaneous Agency Services,10/11/2010,600,3000,Revenue,SUPREME HOMES
Adult Social Care,Adult u65 Phys/Sensory Impair,PD EAST TEAM-Residential,Third Party Payments,Private Contractors,Miscellaneous Agency Services,10/11/2010,601,2486,Revenue,VITALISE
Adult Social Care,Adlt u65 Learning Disabilities,LD Residential Care External,Third Party Payments,Private Contractors,Miscellaneous Agency Services,10/11/2010,602,1050,Revenue,VITALISE
Adult Social Care,Adlt u65 Learning Disabilities,LD Residential Care External,Third Party Payments,Private Contractors,Miscellaneous Agency Services,10/11/2010,603,3350,Revenue,VITALISE
Adult Social Care,Older People 65&Over inc OP-MH,OP East - Residential Care Ext,Third Party Payments,Private Contractors,Miscellaneous Agency Services,10/11/2010,604,2100,Revenue,VITALISE
Adult Social Care,Adlt u65 Learning Disabilities,LD Residential Care External,Third Party Payments,Private Contractors,Miscellaneous Agency Services,10/11/2010,605,2100,Revenue,VITALISE
Adult Social Care,Older People 65&Over inc OP-MH,OP East -Direct Payment Scheme,Third Party Payments,Private Contractors,Direct Payments,10/11/2010,606,1196.7,Revenue,REDACTED
Adult Social Care,Older People 65&Over inc OP-MH,OP Hosp - Residential Care Ext,Third Party Payments,Private Contractors,Miscellaneous Agency Services,11/11/2010,607,1650,Revenue,ABBEY HOUSE RESIDENTIAL HOMES
Adult Social Care,Adlt u65 Learning Disabilities,LD Residential Care External,Third Party Payments,Private Contractors,Miscellaneous Agency Services,11/11/2010,608,4707.44,Revenue,THE CHESTNUTS LIMITED
Adult Social Care,Adlt u65 Learning Disabilities,LD Residential Care External,Third Party Payments,Private Contractors,Miscellaneous Agency Services,11/11/2010,609,4707.44,Revenue,THE CHESTNUTS LIMITED
Adult Social Care,Adlt u65 Learning Disabilities,LD Residential Care External,Third Party Payments,Private Contractors,Miscellaneous Agency Services,11/11/2010,610,2552.84,Revenue,FREEWAYS TRUST LTD
Adult Social Care,Adlt u65 Learning Disabilities,LD Comm -Residential-Campus Hm,Third Party Payments,Private Contractors,Miscellaneous Agency Services,11/11/2010,611,16013.34,Revenue,HARBOUR CARE GROUP
Adult Social Care,Older People 65&Over inc OP-MH,OP East - Residential Care Ext,Third Party Payments,Private Contractors,Miscellaneous Agency Services,11/11/2010,612,1881,Revenue,KOLBE HOUSE SOCIETY
Adult Social Care,Older People 65&Over inc OP-MH,OP East - Residential Care Ext,Third Party Payments,Private Contractors,Miscellaneous Agency Services,11/11/2010,613,2215.71,Revenue,'LA LUZ'
Adult Social Care,Adlt u65 Learning Disabilities,LD Residential Care External,Third Party Payments,Private Contractors,Miscellaneous Agency Services,11/11/2010,614,14971.22,Revenue,METROPOLITAN SUPPORT TRUST
Adult Social Care,Adlt u65 Learning Disabilities,LD Residential Care External,Customer and client receipts,Charges,Bd&Acc-contrib coll by home X,11/11/2010,615,-1138.4,Revenue,METROPOLITAN SUPPORT TRUST
Adult Social Care,Adlt u65 Learning Disabilities,LD Residential Care External,Third Party Payments,Private Contractors,Miscellaneous Agency Services,11/11/2010,616,10995.68,Revenue,AIMS CARE PARTNERSHIP
Adult Social Care,Adlt u65 Learning Disabilities,LD Home Care External,Third Party Payments,Private Contractors,Miscellaneous Agency Services,11/11/2010,617,655.3,Revenue,BEECH HOME CARE SERVICES
Adult Social Care,Older People 65&Over inc OP-MH,OP East - Daycare,Third Party Payments,Private Contractors,Miscellaneous Agency Services,11/11/2010,618,779.6,Revenue,ENTERPRISE CARE SUPPORT LTD
Adult Social Care,Older People 65&Over inc OP-MH,OP West - Daycare,Third Party Payments,Private Contractors,Miscellaneous Agency Services,11/11/2010,619,779.6,Revenue,ENTERPRISE CARE SUPPORT LTD
Adult Social Care,Adult u65 Mental Health Needs,MH Day Care - Morden,Third Party Payments,Private Contractors,Miscellaneous Agency Services,11/11/2010,620,623.68,Revenue,ENTERPRISE CARE SUPPORT LTD
Adult Social Care,Older People 65&Over inc OP-MH,OP East - Daycare,Third Party Payments,Private Contractors,Miscellaneous Agency Services,11/11/2010,621,779.6,Revenue,ENTERPRISE CARE SUPPORT LTD
Adult Social Care,Older People 65&Over inc OP-MH,OP West - Daycare,Third Party Payments,Private Contractors,Miscellaneous Agency Services,11/11/2010,622,779.6,Revenue,ENTERPRISE CARE SUPPORT LTD
Adult Social Care,Older People 65&Over inc OP-MH,OP East - Daycare,Third Party Payments,Private Contractors,Miscellaneous Agency Services,11/11/2010,623,779.6,Revenue,ENTERPRISE CARE SUPPORT LTD
Adult Social Care,Older People 65&Over inc OP-MH,OP East - Daycare,Third Party Payments,Private Contractors,Miscellaneous Agency Services,11/11/2010,624,779.6,Revenue,ENTERPRISE CARE SUPPORT LTD
Adult Social Care,Adult u65 Mental Health Needs,MH Home Care External-MitWest,Third Party Payments,Private Contractors,Miscellaneous Agency Services,11/11/2010,625,804.8,Revenue,LIFEWAYS COMMUNITY CARE LTD
Adult Social Care,Adult u65 Phys/Sensory Impair,PD EAST TEAM-Homecare,Third Party Payments,Private Contractors,Miscellaneous Agency Services,11/11/2010,626,712.76,Revenue,LIFEWAYS COMMUNITY CARE LTD
Adult Social Care,Older People 65&Over inc OP-MH,OP East - Daycare,Third Party Payments,Private Contractors,Miscellaneous Agency Services,11/11/2010,627,779.4,Revenue,SOLACE COMMUNITY CARE LTD
Adult Social Care,Asylum seekers,AS Child Res Care  (No Grant),Third Party Payments,Private Contractors,Private Tenant/Landlord,11/11/2010,628,630,Revenue,REDACTED
Adult Social Care,Adult u65 Phys/Sensory Impair,PS Other Serv - NRTPF,Third Party Payments,Private Contractors,Miscellaneous Agency Services,11/11/2010,629,1384.56,Revenue,JOHN JOSEPH PROPERTY SERVICES
Adult Social Care,Adult u65 Phys/Sensory Impair,PD EAST TEAM-Other Services,Third Party Payments,Private Contractors,Miscellaneous Agency Services,11/11/2010,630,692.28,Revenue,JOHN JOSEPH PROPERTY SERVICES
Adult Social Care,Adlt u65 Learning Disabilities,LD Residential Care External,Third Party Payments,Private Contractors,Miscellaneous Agency Services,11/11/2010,631,5717.76,Revenue,WINSLOW COURT
Adult Social Care,Adult u65 Mental Health Needs,HS Adult Placements,Third Party Payments,Private Contractors,Accommodation Based Support,15/11/2010,632,806.2,Revenue,REDACTED
Adult Social Care,Adult u65 Mental Health Needs,HS Adult Placements,Third Party Payments,Private Contractors,Accommodation Based Support,15/11/2010,633,973,Revenue,REDACTED
Adult Social Care,Adult u65 Mental Health Needs,HS Adult Placements,Third Party Payments,Private Contractors,Accommodation Based Support,12/11/2010,634,1432.76,Revenue,REDACTED
Adult Social Care,Older People 65&Over inc OP-MH,OP East - Residential Care Ext,Third Party Payments,Private Contractors,Miscellaneous Agency Services,12/11/2010,635,1873.2,Revenue,BETHUNE COURT
Adult Social Care,Older People 65&Over inc OP-MH,OP East - Nursing Care,Third Party Payments,Private Contractors,Miscellaneous Agency Services,15/11/2010,636,9368.23,Revenue,BRIDGE HOUSE CARE CENTRE
Adult Social Care,Older People 65&Over inc OP-MH,OP Mitcham - Nursing Care,Customer and client receipts,Charges,Bd&Acc-contrib coll by home X,15/11/2010,637,2249.97,Revenue,BRIDGE HOUSE CARE CENTRE
Adult Social Care,Older People 65&Over inc OP-MH,OP East - Nursing Care,Customer and client receipts,Charges,Bd&Acc-contrib coll by home X,15/11/2010,638,-2855.73,Revenue,BRIDGE HOUSE CARE CENTRE
Adult Social Care,Older People 65&Over inc OP-MH,OP Mitcham - Nursing Care,Third Party Payments,Private Contractors,Miscellaneous Agency Services,15/11/2010,639,-7381.03,Revenue,BRIDGE HOUSE CARE CENTRE
Adult Social Care,Older People 65&Over inc OP-MH,OP Hosp - Residential Care Ext,Third Party Payments,Private Contractors,Miscellaneous Agency Services,15/11/2010,640,2000,Revenue,BROOK CARE HOMES LTD
Adult Social Care,Older People 65&Over inc OP-MH,OP Hosp - Residential Care Ext,Third Party Payments,Private Contractors,Miscellaneous Agency Services,12/11/2010,641,2000,Revenue,BROOK CARE HOMES LTD
Adult Social Care,Older People 65&Over inc OP-MH,OP East - Nursing Care,Third Party Payments,Private Contractors,Miscellaneous Agency Services,12/11/2010,642,2074.68,Revenue,BUPA CARE HOMES
Adult Social Care,Older People 65&Over inc OP-MH,OP West - Residential Care Ext,Third Party Payments,Private Contractors,Miscellaneous Agency Services,12/11/2010,643,1940,Revenue,CHERRY TREE HOUSE
Adult Social Care,Older People 65&Over inc OP-MH,OP Hosp - Residential Care Ext,Third Party Payments,Private Contractors,Miscellaneous Agency Services,12/11/2010,644,1812.4,Revenue,CHERRY TREE HOUSE
Adult Social Care,Older People 65&Over inc OP-MH,OP East - Residential Care Ext,Third Party Payments,Private Contractors,Miscellaneous Agency Services,12/11/2010,645,1717.8,Revenue,CHERRY TREE HOUSE
Adult Social Care,Older People 65&Over inc OP-MH,OP East - Residential Care Ext,Third Party Payments,Private Contractors,Miscellaneous Agency Services,12/11/2010,646,9837.96,Revenue,CHURCH FARM RESIDENTIAL HOME
Adult Social Care,Older People 65&Over inc OP-MH,OP Mitcham-Residential CareExt,Third Party Payments,Private Contractors,Miscellaneous Agency Services,12/11/2010,647,-7751.12,Revenue,CHURCH FARM RESIDENTIAL HOME
Adult Social Care,Adult u65 Mental Health Needs,MH ResidentialCare Ext-Morden,Third Party Payments,Private Contractors,Miscellaneous Agency Services,12/11/2010,648,1425.56,Revenue,REDACTED
Adult Social Care,Adlt u65 Learning Disabilities,LD Residential Care External,Third Party Payments,Private Contractors,Miscellaneous Agency Services,12/11/2010,649,4732,Revenue,GREENFIELD CARE HOMES LTD
Adult Social Care,Older People 65&Over inc OP-MH,OP East - Nursing Care,Third Party Payments,Private Contractors,Miscellaneous Agency Services,12/11/2010,650,11345.4,Revenue,HERITAGE CARE CENTRE
Adult Social Care,Older People 65&Over inc OP-MH,OP Mitcham - Nursing Care,Third Party Payments,Private Contractors,Miscellaneous Agency Services,12/11/2010,651,-8938.8,Revenue,HERITAGE CARE CENTRE
Adult Social Care,Older People 65&Over inc OP-MH,OP West - Nursing Care,Third Party Payments,Private Contractors,Miscellaneous Agency Services,12/11/2010,652,10248.67,Revenue,HERITAGE CARE CENTRE
Adult Social Care,Older People 65&Over inc OP-MH,OP Wimbledon - Nursing Care,Customer and client receipts,Charges,Bd&Acc-contrib coll by home X,12/11/2010,653,1614.97,Revenue,HERITAGE CARE CENTRE
Adult Social Care,Older People 65&Over inc OP-MH,OP West - Nursing Care,Customer and client receipts,Charges,Bd&Acc-contrib coll by home X,12/11/2010,654,-2049.77,Revenue,HERITAGE CARE CENTRE
Adult Social Care,Older People 65&Over inc OP-MH,OP Wimbledon - Nursing Care,Third Party Payments,Private Contractors,Miscellaneous Agency Services,12/11/2010,655,-8074.71,Revenue,HERITAGE CARE CENTRE
Adult Social Care,Older People 65&Over inc OP-MH,OP Hosp - Nursing Care,Third Party Payments,Private Contractors,Miscellaneous Agency Services,12/11/2010,656,2639,Revenue,HERITAGE CARE CENTRE
Adult Social Care,Adult u65 Mental Health Needs,MH Nursing Care - Wim,Third Party Payments,Private Contractors,Miscellaneous Agency Services,15/11/2010,657,2175.16,Revenue,JESMUND NURSING HOME
Adult Social Care,Older People 65&Over inc OP-MH,OP East - Nursing Care,Third Party Payments,Private Contractors,Miscellaneous Agency Services,15/11/2010,658,10695.39,Revenue,JESMUND NURSING HOME
Adult Social Care,Older People 65&Over inc OP-MH,OP Mitcham - Nursing Care,Third Party Payments,Private Contractors,Miscellaneous Agency Services,15/11/2010,659,-8426.67,Revenue,JESMUND NURSING HOME
Adult Social Care,Older People 65&Over inc OP-MH,OP West - Nursing Care,Third Party Payments,Private Contractors,Miscellaneous Agency Services,12/11/2010,660,5018.23,Revenue,KELSTONE COURT NURSING HOME
Adult Social Care,Older People 65&Over inc OP-MH,OP East - Nursing Care,Third Party Payments,Private Contractors,Miscellaneous Agency Services,12/11/2010,661,2255.16,Revenue,KELSTONE COURT NURSING HOME
Adult Social Care,Older People 65&Over inc OP-MH,OP West - Nursing Care,Third Party Payments,Private Contractors,Miscellaneous Agency Services,12/11/2010,662,2134.6,Revenue,KELSTONE COURT NURSING HOME
Adult Social Care,Older People 65&Over inc OP-MH,OP Hosp - Nursing Care,Third Party Payments,Private Contractors,Miscellaneous Agency Services,12/11/2010,663,2341.84,Revenue,KELSTONE COURT NURSING HOME
Adult Social Care,Older People 65&Over inc OP-MH,OP Hosp - Nursing Care,Third Party Payments,Private Contractors,Miscellaneous Agency Services,12/11/2010,664,2380,Revenue,KELSTONE COURT NURSING HOME
Adult Social Care,Older People 65&Over inc OP-MH,OP West - Nursing Care,Third Party Payments,Private Contractors,Miscellaneous Agency Services,12/11/2010,665,2173.96,Revenue,KELSTONE COURT NURSING HOME
Adult Social Care,Older People 65&Over inc OP-MH,OP East - Nursing Care,Third Party Payments,Private Contractors,Miscellaneous Agency Services,12/11/2010,666,2341.84,Revenue,KELSTONE COURT NURSING HOME
Adult Social Care,Older People 65&Over inc OP-MH,OP Hosp - Nursing Care,Third Party Payments,Private Contractors,Miscellaneous Agency Services,12/11/2010,667,2341.84,Revenue,KELSTONE COURT NURSING HOME
Adult Social Care,Older People 65&Over inc OP-MH,OP East - Residential Care Ext,Third Party Payments,Private Contractors,Miscellaneous Agency Services,12/11/2010,668,1777.88,Revenue,KELSTONE COURT NURSING HOME
Adult Social Care,Older People 65&Over inc OP-MH,OP East - Residential Care Ext,Third Party Payments,Private Contractors,Miscellaneous Agency Services,12/11/2010,669,1812.4,Revenue,KELSTONE COURT NURSING HOME
Adult Social Care,Older People 65&Over inc OP-MH,OP Hosp - Nursing Care,Third Party Payments,Private Contractors,Miscellaneous Agency Services,12/11/2010,670,2341.84,Revenue,KELSTONE COURT NURSING HOME
Adult Social Care,Older People 65&Over inc OP-MH,OP Hosp - Nursing Care,Third Party Payments,Private Contractors,Miscellaneous Agency Services,12/11/2010,671,2341.84,Revenue,KELSTONE COURT NURSING HOME
Adult Social Care,Older People 65&Over inc OP-MH,OP West - Nursing Care,Third Party Payments,Private Contractors,Miscellaneous Agency Services,12/11/2010,672,2341.84,Revenue,KELSTONE COURT NURSING HOME
Adult Social Care,Older People 65&Over inc OP-MH,OP West - Nursing Care,Third Party Payments,Private Contractors,Miscellaneous Agency Services,12/11/2010,673,2341.84,Revenue,KELSTONE COURT NURSING HOME
Adult Social Care,Older People 65&Over inc OP-MH,OP Hosp - Nursing Care,Third Party Payments,Private Contractors,Miscellaneous Agency Services,12/11/2010,674,1338.19,Revenue,KELSTONE COURT NURSING HOME
Adult Social Care,Older People 65&Over inc OP-MH,OP Morden - Nursing Care,Third Party Payments,Private Contractors,Miscellaneous Agency Services,12/11/2010,675,1003.65,Revenue,KELSTONE COURT NURSING HOME
Adult Social Care,Adlt u65 Learning Disabilities,LD Nursing Care,Third Party Payments,Private Contractors,Miscellaneous Agency Services,12/11/2010,676,3000,Revenue,SUTTON NURSING HOMES LTD
Adult Social Care,Older People 65&Over inc OP-MH,OP West - Nursing Care,Third Party Payments,Private Contractors,Miscellaneous Agency Services,12/11/2010,677,8940.1,Revenue,SUTTON NURSING HOMES LTD
Adult Social Care,Older People 65&Over inc OP-MH,OP Wimbledon - Nursing Care,Third Party Payments,Private Contractors,Miscellaneous Agency Services,12/11/2010,678,-6684.94,Revenue,SUTTON NURSING HOMES LTD
Adult Social Care,Older People 65&Over inc OP-MH,OP Morden - Nursing Care,Third Party Payments,Private Contractors,Miscellaneous Agency Services,12/11/2010,679,4751.94,Revenue,SUTTON NURSING HOMES LTD
Adult Social Care,Older People 65&Over inc OP-MH,OP Hosp - Nursing Care,Third Party Payments,Private Contractors,Miscellaneous Agency Services,12/11/2010,680,-2410.1,Revenue,SUTTON NURSING HOMES LTD
Adult Social Care,Older People 65&Over inc OP-MH,OP Hosp - Nursing Care,Third Party Payments,Private Contractors,Miscellaneous Agency Services,12/11/2010,681,2767.04,Revenue,SUTTON NURSING HOMES LTD
Adult Social Care,Older People 65&Over inc OP-MH,OP Hosp - Nursing Care,Third Party Payments,Private Contractors,Miscellaneous Agency Services,12/11/2010,682,2221.84,Revenue,SUTTON NURSING HOMES LTD
Adult Social Care,Adult u65 Phys/Sensory Impair,PD EAST TEAM-Nursing,Third Party Payments,Private Contractors,Miscellaneous Agency Services,12/11/2010,683,3800,Revenue,QUEEN ALEXANDRA HOSPITAL HOME
Adult Social Care,Older People 65&Over inc OP-MH,OP Hosp - Nursing Care,Third Party Payments,Private Contractors,Miscellaneous Agency Services,12/11/2010,684,2842,Revenue,SOUTHERN CROSS HEALTHCARE LTD
Adult Social Care,Older People 65&Over inc OP-MH,OP Hosp - Residential Care Ext,Third Party Payments,Private Contractors,Miscellaneous Agency Services,12/11/2010,685,-872.17,Revenue,SOUTHERN CROSS HEALTHCARE LTD
Adult Social Care,Older People 65&Over inc OP-MH,OP East - Residential Care Ext,Third Party Payments,Private Contractors,Miscellaneous Agency Services,12/11/2010,686,1744.34,Revenue,SOUTHERN CROSS HEALTHCARE LTD
Adult Social Care,Older People 65&Over inc OP-MH,OP East - Residential Care Ext,Third Party Payments,Private Contractors,Miscellaneous Agency Services,12/11/2010,687,1878.52,Revenue,SOUTHERN CROSS HEALTHCARE LTD
Adult Social Care,Older People 65&Over inc OP-MH,OP Hosp - Nursing Care,Third Party Payments,Private Contractors,Miscellaneous Agency Services,12/11/2010,688,2842,Revenue,SOUTHERN CROSS HEALTHCARE LTD
Adult Social Care,Older People 65&Over inc OP-MH,OP East - Residential Care Ext,Third Party Payments,Private Contractors,Miscellaneous Agency Services,12/11/2010,689,25091.66,Revenue,SOUTHERN CROSS HEALTHCARE LTD
Adult Social Care,Older People 65&Over inc OP-MH,OP Hosp - Residential Care Ext,Third Party Payments,Private Contractors,Miscellaneous Agency Services,12/11/2010,690,13149.64,Revenue,SOUTHERN CROSS HEALTHCARE LTD
Adult Social Care,Older People 65&Over inc OP-MH,OP West - Nursing Care,Third Party Payments,Private Contractors,Miscellaneous Agency Services,12/11/2010,691,8950.56,Revenue,SOUTHERN CROSS HEALTHCARE LTD
Adult Social Care,Older People 65&Over inc OP-MH,OP East - Nursing Care,Third Party Payments,Private Contractors,Miscellaneous Agency Services,12/11/2010,692,6712.92,Revenue,SOUTHERN CROSS HEALTHCARE LTD
Adult Social Care,Older People 65&Over inc OP-MH,OP Hosp - Nursing Care,Third Party Payments,Private Contractors,Miscellaneous Agency Services,12/11/2010,693,6473.17,Revenue,SOUTHERN CROSS HEALTHCARE LTD
Adult Social Care,Older People 65&Over inc OP-MH,OP West - Residential Care Ext,Third Party Payments,Private Contractors,Miscellaneous Agency Services,12/11/2010,694,3757.04,Revenue,SOUTHERN CROSS HEALTHCARE LTD
Adult Social Care,Older People 65&Over inc OP-MH,OP Hosp - Residential Care Ext,Third Party Payments,Private Contractors,Miscellaneous Agency Services,12/11/2010,695,1812.4,Revenue,SOUTHPARK RESIDENTIAL HOME
Adult Social Care,Older People 65&Over inc OP-MH,OP Hosp - Nursing Care,Third Party Payments,Private Contractors,Miscellaneous Agency Services,12/11/2010,696,2341.84,Revenue,SUTTON COURT CARE CENTRE
Adult Social Care,Older People 65&Over inc OP-MH,OP Hosp - Nursing Care,Third Party Payments,Private Contractors,Miscellaneous Agency Services,12/11/2010,697,3512.76,Revenue,SUTTON COURT CARE CENTRE
Adult Social Care,Older People 65&Over inc OP-MH,OP Hosp - Residential Care Ext,Third Party Payments,Private Contractors,Miscellaneous Agency Services,12/11/2010,698,-3261.85,Revenue,SUTTON COURT CARE CENTRE
Adult Social Care,Older People 65&Over inc OP-MH,OP East - Nursing Care,Third Party Payments,Private Contractors,Miscellaneous Agency Services,12/11/2010,699,501.82,Revenue,SUTTON COURT CARE CENTRE
Adult Social Care,Older People 65&Over inc OP-MH,OP Hosp - Nursing Care,Third Party Payments,Private Contractors,Miscellaneous Agency Services,12/11/2010,700,1589.11,Revenue,SUTTON COURT CARE CENTRE
Adult Social Care,Older People 65&Over inc OP-MH,OP Hosp - Nursing Care,Third Party Payments,Private Contractors,Miscellaneous Agency Services,12/11/2010,701,2341.84,Revenue,SUTTON COURT CARE CENTRE
Adult Social Care,Older People 65&Over inc OP-MH,OP Hosp - Nursing Care,Third Party Payments,Private Contractors,Miscellaneous Agency Services,12/11/2010,702,1589.11,Revenue,SUTTON COURT CARE CENTRE
Adult Social Care,Asylum seekers,AS Child-Discret Pay (NoGrant),Third Party Payments,Private Contractors,Miscellaneous Agency Services,12/11/2010,703,656.25,Revenue,ARGOS BUSINESS SOLUTIONS LTD
Adult Social Care,Asylum seekers,AS Child - Res Care (Grant),Third Party Payments,Private Contractors,Miscellaneous Agency Services,12/11/2010,704,980,Revenue,RBS INVOICE FINANCE LIMITED
Adult Social Care,Asylum seekers,AS Child - Res Care (Grant),Third Party Payments,Private Contractors,Miscellaneous Agency Services,12/11/2010,705,780,Revenue,RBS INVOICE FINANCE LIMITED
Adult Social Care,Asylum seekers,AS Child - Res Care (Grant),Third Party Payments,Private Contractors,Miscellaneous Agency Services,12/11/2010,706,780,Revenue,RBS INVOICE FINANCE LIMITED
Childrens & Education Services,Family Support Services,CS Day Care CWD,Third Party Payments,Private Contractors,After School Care Group,12/11/2010,707,2004.5,Revenue,THE SMARTY CLUB
Adult Social Care,Adlt u65 Learning Disabilities,LD Supported Housing,Third Party Payments,Private Contractors,Miscellaneous Agency Services,15/11/2010,708,3160,Revenue,CRUSOE CARE RESIDENTIAL HOME
Adult Social Care,Older People 65&Over inc OP-MH,OP West - Nursing Care,Third Party Payments,Private Contractors,Miscellaneous Agency Services,15/11/2010,709,2792.1,Revenue,GARTH HOUSE NURSING HOME
Adult Social Care,Older People 65&Over inc OP-MH,OP West - Nursing Care,Customer and client receipts,Charges,Bd&Acc-contrib coll by home X,15/11/2010,710,-543.5,Revenue,GARTH HOUSE NURSING HOME
Adult Social Care,Older People 65&Over inc OP-MH,OP West - Home Care External,Third Party Payments,Private Contractors,Miscellaneous Agency Services,16/11/2010,711,4300.39,Revenue,ALPENBEST LIMITED
Adult Social Care,Older People 65&Over inc OP-MH,OP East - Home Care External,Third Party Payments,Private Contractors,Miscellaneous Agency Services,16/11/2010,712,2247.12,Revenue,ALPENBEST LIMITED
Adult Social Care,Adult u65 Phys/Sensory Impair,PD WEST TEAM-Homecare,Third Party Payments,Private Contractors,Miscellaneous Agency Services,16/11/2010,713,826.72,Revenue,ALPENBEST LIMITED
Adult Social Care,Older People 65&Over inc OP-MH,OP West - Home Care External,Third Party Payments,Private Contractors,Miscellaneous Agency Services,16/11/2010,714,4151.97,Revenue,ALPENBEST LIMITED
Adult Social Care,Older People 65&Over inc OP-MH,OP East - Home Care External,Third Party Payments,Private Contractors,Miscellaneous Agency Services,16/11/2010,715,2017.38,Revenue,ALPENBEST LIMITED
Adult Social Care,Adult u65 Phys/Sensory Impair,PD WEST TEAM-Homecare,Third Party Payments,Private Contractors,Miscellaneous Agency Services,16/11/2010,716,776.38,Revenue,ALPENBEST LIMITED
Adult Social Care,Older People 65&Over inc OP-MH,OP West - Home Care External,Third Party Payments,Private Contractors,Miscellaneous Agency Services,16/11/2010,717,4005.97,Revenue,ALPENBEST LIMITED
Adult Social Care,Older People 65&Over inc OP-MH,OP East - Home Care External,Third Party Payments,Private Contractors,Miscellaneous Agency Services,16/11/2010,718,2007.24,Revenue,ALPENBEST LIMITED
Adult Social Care,Adult u65 Phys/Sensory Impair,PD WEST TEAM-Homecare,Third Party Payments,Private Contractors,Miscellaneous Agency Services,16/11/2010,719,806.44,Revenue,ALPENBEST LIMITED
Adult Social Care,Older People 65&Over inc OP-MH,OP West - Carer Services,Third Party Payments,Private Contractors,Miscellaneous Agency Services,16/11/2010,720,546.64,Revenue,ALPENBEST LIMITED
Adult Social Care,Older People 65&Over inc OP-MH,OP West - Home Care External,Third Party Payments,Private Contractors,Miscellaneous Agency Services,16/11/2010,721,3749.37,Revenue,ALPENBEST LIMITED
Adult Social Care,Older People 65&Over inc OP-MH,OP East - Home Care External,Third Party Payments,Private Contractors,Miscellaneous Agency Services,16/11/2010,722,2212.44,Revenue,ALPENBEST LIMITED
Adult Social Care,Adult u65 Phys/Sensory Impair,PD WEST TEAM-Homecare,Third Party Payments,Private Contractors,Miscellaneous Agency Services,16/11/2010,723,806.44,Revenue,ALPENBEST LIMITED
Adult Social Care,Older People 65&Over inc OP-MH,OP West - Carer Services,Third Party Payments,Private Contractors,Miscellaneous Agency Services,16/11/2010,724,546.64,Revenue,ALPENBEST LIMITED
Adult Social Care,Older People 65&Over inc OP-MH,OP East - Residential Care Ext,Third Party Payments,Private Contractors,Miscellaneous Agency Services,16/11/2010,725,8989.02,Revenue,DOWNSIDE HOUSE
Adult Social Care,Older People 65&Over inc OP-MH,OP Mitcham-Residential CareExt,Third Party Payments,Private Contractors,Miscellaneous Agency Services,16/11/2010,726,-3268.62,Revenue,DOWNSIDE HOUSE
Adult Social Care,Older People 65&Over inc OP-MH,OP Intake-Residential Care Ext,Third Party Payments,Private Contractors,Miscellaneous Agency Services,16/11/2010,727,-3813.6,Revenue,DOWNSIDE HOUSE
Adult Social Care,Older People 65&Over inc OP-MH,OP Hosp - Residential Care Ext,Third Party Payments,Private Contractors,Miscellaneous Agency Services,16/11/2010,728,1700,Revenue,THE GARLAND REST HOME
Adult Social Care,Older People 65&Over inc OP-MH,OP Wimbledon - Nursing Care,Third Party Payments,Private Contractors,Miscellaneous Agency Services,16/11/2010,729,2233.68,Revenue,GARTH HOUSE NURSING HOME
Adult Social Care,Older People 65&Over inc OP-MH,OP Hosp - Residential Care Ext,Third Party Payments,Private Contractors,Miscellaneous Agency Services,16/11/2010,730,841.47,Revenue,GRASMERE RESIDENTIAL HOME
Adult Social Care,Older People 65&Over inc OP-MH,OP Hosp - Residential Care Ext,Third Party Payments,Private Contractors,Miscellaneous Agency Services,16/11/2010,731,2100,Revenue,ROYAL CAMBRIDGE HOME
Adult Social Care,Older People 65&Over inc OP-MH,OP East - Nursing Care,Third Party Payments,Private Contractors,Miscellaneous Agency Services,16/11/2010,732,2452.84,Revenue,SOUTHERN CROSS HEALTHCARE LTD
Adult Social Care,Older People 65&Over inc OP-MH,OP West - Nursing Care,Third Party Payments,Private Contractors,Miscellaneous Agency Services,16/11/2010,733,2431.96,Revenue,SOUTHERN CROSS HEALTHCARE LTD
Adult Social Care,Older People 65&Over inc OP-MH,OP Hosp - Nursing Care,Third Party Payments,Private Contractors,Miscellaneous Agency Services,16/11/2010,734,2593,Revenue,SOUTHERN CROSS HEALTHCARE LTD
Adult Social Care,Older People 65&Over inc OP-MH,OP West - Nursing Care,Third Party Payments,Private Contractors,Miscellaneous Agency Services,16/11/2010,735,2593,Revenue,SOUTHERN CROSS HEALTHCARE LTD
Adult Social Care,Older People 65&Over inc OP-MH,OP Hosp - Nursing Care,Third Party Payments,Private Contractors,Miscellaneous Agency Services,16/11/2010,736,2517.2,Revenue,SOUTHERN CROSS HEALTHCARE LTD
Adult Social Care,Older People 65&Over inc OP-MH,OP Hosp - Residential Care Ext,Third Party Payments,Private Contractors,Miscellaneous Agency Services,16/11/2010,737,2200,Revenue,THRESHFIELD CRT NURSING HOME
Childrens & Education Services,Children Looked After (24hrs+),CL Independent Fostering,Supplies & Services,Services,Task Based Fostering,17/11/2010,738,4073,Revenue,BANYA
Childrens & Education Services,Children Looked After (24hrs+),CL Independent Fostering,Supplies & Services,Services,Task Based Fostering,16/11/2010,739,2760,Revenue,CHILDREN OF COLOUR
Childrens & Education Services,Children Looked After (24hrs+),CL Independent Fostering,Supplies & Services,Services,Task Based Fostering,16/11/2010,740,2460,Revenue,CHILDREN OF COLOUR
Childrens & Education Services,Children Looked After (24hrs+),CL Independent Fostering,Supplies & Services,Services,Task Based Fostering,16/11/2010,741,820,Revenue,CHILDREN OF COLOUR
Childrens & Education Services,Children Looked After (24hrs+),CL Independent Fostering,Supplies & Services,Services,Task Based Fostering,16/11/2010,742,3280,Revenue,CHILDREN OF COLOUR
Childrens & Education Services,Children Looked After (24hrs+),CL Independent Fostering,Supplies & Services,Services,Task Based Fostering,16/11/2010,743,2811.43,Revenue,CHILDREN OF COLOUR
Childrens & Education Services,Children Looked After (24hrs+),CL Independent Fostering,Supplies & Services,Services,Task Based Fostering,16/11/2010,744,3902.85,Revenue,HILLCREST CARE LTD
Childrens & Education Services,Children Looked After (24hrs+),CL Independent Fostering,Supplies & Services,Services,Task Based Fostering,16/11/2010,745,4056.5,Revenue,HILLCREST CARE LTD
Childrens & Education Services,Children Looked After (24hrs+),CL Independent Fostering,Supplies & Services,Services,Task Based Fostering,16/11/2010,746,3902.85,Revenue,HILLCREST CARE LTD
Childrens & Education Services,Children Looked After (24hrs+),CL Independent Fostering,Supplies & Services,Services,Task Based Fostering,16/11/2010,747,6123.95,Revenue,HILLCREST CARE LTD
Childrens & Education Services,Children Looked After (24hrs+),CL Independent Fostering,Supplies & Services,Services,Task Based Fostering,16/11/2010,748,2475,Revenue,HILLCREST CARE LTD
Childrens & Education Services,Children Looked After (24hrs+),CL Independent Fostering,Supplies & Services,Services,Task Based Fostering,16/11/2010,749,2475,Revenue,HILLCREST CARE LTD
Childrens & Education Services,Children Looked After (24hrs+),CL Independent Fostering,Supplies & Services,Services,Task Based Fostering,16/11/2010,750,5600,Revenue,RPSPV RE FOSTERCARE UK LTD
Childrens & Education Services,Children Looked After (24hrs+),CL Residential Care Homes CLA,Third Party Payments,Private Contractors,Miscellaneous Agency Services,16/11/2010,751,15000,Revenue,REDACTED
Childrens & Education Services,Children Looked After (24hrs+),CL Independent Fostering,Supplies & Services,Services,Task Based Fostering,16/11/2010,752,3930,Revenue,ST CHRISTOPHERS FELLOWSHIP
Childrens & Education Services,Children Looked After (24hrs+),CL Fostering Services,Supplies & Services,Services,Task Based Fostering,16/11/2010,753,771.95,Revenue,REDACTED
Childrens & Education Services,Children Looked After (24hrs+),CL Fostering Services,Supplies & Services,Services,Task Based Fostering,16/11/2010,754,1170.66,Revenue,REDACTED
Childrens & Education Services,Children Looked After (24hrs+),CL Fostering Services,Supplies & Services,Services,Task Based Fostering,16/11/2010,755,751.33,Revenue,REDACTED
Childrens & Education Services,Children Looked After (24hrs+),CL Fostering Services,Supplies & Services,Services,Task Based Fostering,16/11/2010,756,2291.25,Revenue,REDACTED
Childrens & Education Services,Children Looked After (24hrs+),CL Fostering Services,Supplies & Services,Services,Task Based Fostering,16/11/2010,757,1133.06,Revenue,REDACTED
Childrens & Education Services,Children Looked After (24hrs+),CL Fostering Services,Supplies & Services,Services,Task Based Fostering,16/11/2010,758,844.69,Revenue,REDACTED
Childrens & Education Services,Children Looked After (24hrs+),CL Fostering Services,Supplies & Services,Services,Task Based Fostering,16/11/2010,759,1402.65,Revenue,REDACTED
Childrens & Education Services,Children Looked After (24hrs+),CL Fostering Services,Supplies & Services,Services,Task Based Fostering,16/11/2010,760,751.33,Revenue,REDACTED
Childrens & Education Services,Children Looked After (24hrs+),CL Fostering Services,Supplies & Services,Services,Task Based Fostering,16/11/2010,761,1153.68,Revenue,REDACTED
Childrens & Education Services,Children Looked After (24hrs+),CL Fostering Services,Supplies & Services,Services,Task Based Fostering,16/11/2010,762,1145.19,Revenue,REDACTED
Childrens & Education Services,Children Looked After (24hrs+),CL Fostering Services,Supplies & Services,Services,Task Based Fostering,16/11/2010,763,780.44,Revenue,REDACTED
Childrens & Education Services,Children Looked After (24hrs+),CL Fostering Services,Supplies & Services,Services,Task Based Fostering,16/11/2010,764,1234.91,Revenue,REDACTED
Childrens & Education Services,Children Looked After (24hrs+),CL Fostering Services,Supplies & Services,Services,Task Based Fostering,16/11/2010,765,739.2,Revenue,REDACTED
Childrens & Education Services,Children Looked After (24hrs+),CL Fostering Services,Supplies & Services,Services,Task Based Fostering,16/11/2010,766,665.22,Revenue,REDACTED
Childrens & Education Services,Children Looked After (24hrs+),CL Fostering Services,Supplies & Services,Services,Task Based Fostering,16/11/2010,767,1267.2,Revenue,REDACTED
Childrens & Education Services,Children Looked After (24hrs+),CL Fostering Services,Supplies & Services,Services,Task Based Fostering,16/11/2010,768,739.2,Revenue,REDACTED
Childrens & Education Services,Children Looked After (24hrs+),CL Fostering Services,Supplies & Services,Services,Task Based Fostering,16/11/2010,769,751.33,Revenue,REDACTED
Childrens & Education Services,Children Looked After (24hrs+),CL Fostering Services,Supplies & Services,Services,Task Based Fostering,16/11/2010,770,739.2,Revenue,REDACTED
Childrens & Education Services,Children Looked After (24hrs+),CL Fostering Services,Supplies & Services,Services,Task Based Fostering,16/11/2010,771,780.44,Revenue,REDACTED
Childrens & Education Services,Children Looked After (24hrs+),CL Fostering Services,Supplies & Services,Services,Task Based Fostering,16/11/2010,772,1108.8,Revenue,REDACTED
Childrens & Education Services,Children Looked After (24hrs+),CL Fostering Services,Supplies & Services,Services,Task Based Fostering,16/11/2010,773,836.19,Revenue,REDACTED
Childrens & Education Services,Children Looked After (24hrs+),CL Independent Fostering,Supplies & Services,Services,Long Term Fostering,17/11/2010,774,4108.52,Revenue,ETHELBERT SPECIALIST HOMES LTD
Childrens & Education Services,Children Looked After (24hrs+),CL Residential Care Homes CLA,Third Party Payments,Private Contractors,Miscellaneous Agency Services,17/11/2010,775,11001.76,Revenue,REDACTED
Childrens & Education Services,Children Looked After (24hrs+),CL Independent Fostering,Supplies & Services,Services,Long Term Fostering,17/11/2010,776,4173.44,Revenue,FAMILIES FOR CHILDREN
Childrens & Education Services,Children Looked After (24hrs+),CL Independent Fostering,Supplies & Services,Services,Task Based Fostering,17/11/2010,777,4511.46,Revenue,HEATH FARM FAMILY SVS LTD.
Childrens & Education Services,Children Looked After (24hrs+),CL Independent Fostering,Supplies & Services,Services,Task Based Fostering,17/11/2010,778,6000,Revenue,NEXT STEP FOSTERING SERV'S LTD
Childrens & Education Services,Children Looked After (24hrs+),CL Independent Fostering,Supplies & Services,Services,Task Based Fostering,17/11/2010,779,5600,Revenue,RPSPV RE FOSTERCARE UK LTD
Childrens & Education Services,Other Ch's & Family Services,CL Leaving Care/Supp Lodgings,Third Party Payments,Private Contractors,Supported Lodgings,17/11/2010,780,600,Revenue,REDACTED
Childrens & Education Services,Children Looked After (24hrs+),CL Secure Accommodation,Third Party Payments,Private Contractors,Miscellaneous Agency Services,17/11/2010,781,782.97,Revenue,THE YOUTH JUSTICE BOARD
Childrens & Education Services,Children Looked After (24hrs+),CL Secure Accommodation,Third Party Payments,Private Contractors,Miscellaneous Agency Services,17/11/2010,782,8007,Revenue,THE YOUTH JUSTICE BOARD
Childrens & Education Services,Family Support Services,CS R&AssessDiscretionary Pymts,Third Party Payments,Private Contractors,Miscellaneous Agency Services,17/11/2010,783,600,Revenue,REDACTED
Childrens & Education Services,Family Support Services,CS Children in Need Section 17,Transfer Payments,Social Services clients,Childr Act 1989 S17,17/11/2010,784,3481,Revenue,THE NEW LEVEL OF LIFE
Childrens & Education Services,Family Support Services,CS Children in Need Section 17,Transfer Payments,Social Services clients,Childr Act 1989 S17,17/11/2010,785,1695,Revenue,THE NEW LEVEL OF LIFE
Adult Social Care,Adlt u65 Learning Disabilities,LD Nursing Care,Third Party Payments,Private Contractors,Miscellaneous Agency Services,17/11/2010,786,5884.32,Revenue,SUSSEX HEALTH CARE
Adult Social Care,Adlt u65 Learning Disabilities,LD Nursing Care,Third Party Payments,Private Contractors,Miscellaneous Agency Services,17/11/2010,787,5884.32,Revenue,SUSSEX HEALTH CARE
Adult Social Care,Adlt u65 Learning Disabilities,LD Residential Care External,Third Party Payments,Private Contractors,Miscellaneous Agency Services,17/11/2010,788,6552,Revenue,SUSSEX HEALTH CARE
Adult Social Care,Adlt u65 Learning Disabilities,LD Residential Care External,Third Party Payments,Private Contractors,Miscellaneous Agency Services,17/11/2010,789,6552,Revenue,SUSSEX HEALTH CARE
Adult Social Care,Adlt u65 Learning Disabilities,LD Residential Care External,Third Party Payments,Private Contractors,Miscellaneous Agency Services,17/11/2010,790,11991.84,Revenue,THE LODGE TRUST
Adult Social Care,Adlt u65 Learning Disabilities,LD Residential Care External,Customer and client receipts,Charges,Bd&Acc-contrib coll by home X,17/11/2010,791,-853.8,Revenue,THE LODGE TRUST
Adult Social Care,Adult u65 Mental Health Needs,MH Home Care External-MitWest,Third Party Payments,Private Contractors,Miscellaneous Agency Services,18/11/2010,792,804.8,Revenue,LIFEWAYS COMMUNITY CARE LTD
Adult Social Care,Adult u65 Phys/Sensory Impair,PD EAST TEAM-Homecare,Third Party Payments,Private Contractors,Miscellaneous Agency Services,18/11/2010,793,712.76,Revenue,LIFEWAYS COMMUNITY CARE LTD
Adult Social Care,Adult u65 Phys/Sensory Impair,PD EAST TEAM-Homecare,Third Party Payments,Private Contractors,Miscellaneous Agency Services,18/11/2010,794,523.04,Revenue,ODYSSEY CARE SOLUTIONS
Adult Social Care,Adlt u65 Learning Disabilities,LD Home Care External,Third Party Payments,Private Contractors,Miscellaneous Agency Services,18/11/2010,795,3310.4,Revenue,ODYSSEY CARE SOLUTIONS
Adult Social Care,Adult u65 Phys/Sensory Impair,PD EAST TEAM-Homecare,Third Party Payments,Private Contractors,Miscellaneous Agency Services,18/11/2010,796,777.6,Revenue,ODYSSEY CARE SOLUTIONS
Adult Social Care,Adult u65 Phys/Sensory Impair,PD EAST TEAM-Homecare,Third Party Payments,Private Contractors,Miscellaneous Agency Services,18/11/2010,797,523.04,Revenue,ODYSSEY CARE SOLUTIONS
Adult Social Care,Adult u65 Phys/Sensory Impair,PD EAST TEAM-Homecare,Third Party Payments,Private Contractors,Miscellaneous Agency Services,18/11/2010,798,777.6,Revenue,ODYSSEY CARE SOLUTIONS
Childrens & Education Services,Other Ch's & Family Services,CL Adoption Allowances,Transfer Payments,Social Services clients,Adoption Allowances,18/11/2010,799,553.84,Revenue,REDACTED
Childrens & Education Services,Other Ch's & Family Services,CL Adoption Allowances,Transfer Payments,Social Services clients,Adoption Allowances,18/11/2010,800,562.88,Revenue,REDACTED
Childrens & Education Services,Other Ch's & Family Services,CL Adoption Allowances,Transfer Payments,Social Services clients,Adoption Allowances,18/11/2010,801,607.08,Revenue,REDACTED
Childrens & Education Services,Family Support Services,CL Residence Orders,Supplies & Services,Grants and Subscriptions,Residence Orders,18/11/2010,802,606.9,Revenue,REDACTED
Childrens & Education Services,Other Ch's & Family Services,CL Adoption Allowances,Transfer Payments,Social Services clients,Adoption Allowances,18/11/2010,803,912.4,Revenue,REDACTED
Childrens & Education Services,Family Support Services,CL Residence Orders,Supplies & Services,Grants and Subscriptions,Residence Orders,18/11/2010,804,779.02,Revenue,REDACTED
Adult Social Care,Older People 65&Over inc OP-MH,OP West - Residential Care Ext,Third Party Payments,Private Contractors,Miscellaneous Agency Services,18/11/2010,805,2200,Revenue,CARTER HOUSE
Adult Social Care,Older People 65&Over inc OP-MH,OP West - Residential Care Ext,Third Party Payments,Private Contractors,Miscellaneous Agency Services,18/11/2010,806,31231.84,Revenue,CARTER HOUSE
Adult Social Care,Older People 65&Over inc OP-MH,OP East - Residential Care Ext,Third Party Payments,Private Contractors,Miscellaneous Agency Services,18/11/2010,807,13414.96,Revenue,CARTER HOUSE
Adult Social Care,Older People 65&Over inc OP-MH,OP West - Nursing Care,Third Party Payments,Private Contractors,Miscellaneous Agency Services,18/11/2010,808,12764.4,Revenue,CARTER HOUSE
Adult Social Care,Older People 65&Over inc OP-MH,OP East - Nursing Care,Third Party Payments,Private Contractors,Miscellaneous Agency Services,18/11/2010,809,12035.01,Revenue,CARTER HOUSE
Adult Social Care,Older People 65&Over inc OP-MH,OP Hosp - Residential Care Ext,Third Party Payments,Private Contractors,Miscellaneous Agency Services,18/11/2010,810,8178.24,Revenue,CARTER HOUSE
Adult Social Care,Older People 65&Over inc OP-MH,OP West - Residential Care Ext,Customer and client receipts,Charges,Bd&Acc-contrib coll by home X,18/11/2010,811,-975.92,Revenue,CARTER HOUSE
Adult Social Care,Older People 65&Over inc OP-MH,OP Hosp - Nursing Care,Third Party Payments,Private Contractors,Miscellaneous Agency Services,18/11/2010,812,-1732.31,Revenue,CARTER HOUSE
Adult Social Care,Older People 65&Over inc OP-MH,OP Mitcham-Residential CareExt,Third Party Payments,Private Contractors,Miscellaneous Agency Services,18/11/2010,813,-3504.96,Revenue,CARTER HOUSE
Adult Social Care,Older People 65&Over inc OP-MH,OP R/Park-Residential Care Ext,Third Party Payments,Private Contractors,Miscellaneous Agency Services,18/11/2010,814,-7009.92,Revenue,CARTER HOUSE
Adult Social Care,Older People 65&Over inc OP-MH,OP Hosp - Nursing Care,Third Party Payments,Private Contractors,Miscellaneous Agency Services,18/11/2010,815,2337.2,Revenue,CLARENDON LS
Adult Social Care,Adlt u65 Learning Disabilities,LD Residential Care External,Third Party Payments,Private Contractors,Miscellaneous Agency Services,18/11/2010,816,7468.76,Revenue,CORICH COMMUNITY CARE LTD
Adult Social Care,Adlt u65 Learning Disabilities,LD Residential Care External,Third Party Payments,Private Contractors,Miscellaneous Agency Services,18/11/2010,817,3210.36,Revenue,CRAEGMOOR FACILITIES CO LTD
Adult Social Care,Adlt u65 Learning Disabilities,LD Residential Care External,Third Party Payments,Private Contractors,Miscellaneous Agency Services,18/11/2010,818,6890.99,Revenue,EVERGREEN PARTNERSHIP
Adult Social Care,Adlt u65 Learning Disabilities,LD Residential Care External,Third Party Payments,Private Contractors,Miscellaneous Agency Services,18/11/2010,819,6997,Revenue,CHHG LTD T/A GRETTON HOMES
Adult Social Care,Adlt u65 Learning Disabilities,LD Residential Care External,Third Party Payments,Private Contractors,Miscellaneous Agency Services,24/11/2010,820,4330.44,Revenue,HUNTERS' LODGE
Adult Social Care,Adult u65 Mental Health Needs,MH Res Care Ext- Mitcham West,Third Party Payments,Private Contractors,Miscellaneous Agency Services,18/11/2010,821,1893.11,Revenue,REDACTED
Adult Social Care,Adult u65 Mental Health Needs,MH ResidentialCare Ext-Morden,Third Party Payments,Private Contractors,Miscellaneous Agency Services,18/11/2010,822,2839,Revenue,REDACTED
Adult Social Care,Older People 65&Over inc OP-MH,OP West - Residential Care Ext,Third Party Payments,Private Contractors,Miscellaneous Agency Services,18/11/2010,823,2200,Revenue,LINK HOUSE
Adult Social Care,Older People 65&Over inc OP-MH,OP Hosp - Residential Care Ext,Third Party Payments,Private Contractors,Miscellaneous Agency Services,18/11/2010,824,2000,Revenue,LINK HOUSE
Adult Social Care,Older People 65&Over inc OP-MH,OP West - Residential Care Ext,Third Party Payments,Private Contractors,Miscellaneous Agency Services,18/11/2010,825,2730,Revenue,LINK HOUSE
Adult Social Care,Older People 65&Over inc OP-MH,OP West - Residential Care Ext,Third Party Payments,Private Contractors,Miscellaneous Agency Services,18/11/2010,826,7713.51,Revenue,LYNCROFT RESIDENTIAL HOME
Adult Social Care,Older People 65&Over inc OP-MH,OP Wim - Residential Care Ext,Third Party Payments,Private Contractors,Miscellaneous Agency Services,18/11/2010,827,-6077.31,Revenue,LYNCROFT RESIDENTIAL HOME
Adult Social Care,Adlt u65 Learning Disabilities,LD Comm -Residential-Orch Hill,Third Party Payments,Private Contractors,Miscellaneous Agency Services,18/11/2010,828,851.7,Revenue,REDACTED
Adult Social Care,Adlt u65 Learning Disabilities,LD Comm -Residential-Orch Hill,Third Party Payments,Private Contractors,Miscellaneous Agency Services,18/11/2010,829,21111.06,Revenue,REDACTED
Adult Social Care,Adlt u65 Learning Disabilities,LD Residential Care External,Third Party Payments,Private Contractors,Miscellaneous Agency Services,18/11/2010,830,-15833.34,Revenue,REDACTED
Adult Social Care,Adlt u65 Learning Disabilities,LD Residential Care External,Third Party Payments,Private Contractors,Miscellaneous Agency Services,18/11/2010,831,4417.92,Revenue,THE REGARD PARTNERSHIP LTD
Adult Social Care,Adult u65 Phys/Sensory Impair,PD EAST TEAM-Nursing,Third Party Payments,Private Contractors,Miscellaneous Agency Services,18/11/2010,832,3096,Revenue,SOUTHERN CROSS HEALTHCARE LTD
Adult Social Care,Older People 65&Over inc OP-MH,OP East - Nursing Care,Third Party Payments,Private Contractors,Miscellaneous Agency Services,18/11/2010,833,4934.59,Revenue,ST JOHNS NURSING HOME
Adult Social Care,Older People 65&Over inc OP-MH,OP Hosp - Nursing Care,Third Party Payments,Private Contractors,Miscellaneous Agency Services,18/11/2010,834,-2592.75,Revenue,ST JOHNS NURSING HOME
Adult Social Care,Other Adult Services,MH Residential Care Ext - SM&D,Third Party Payments,Private Contractors,Miscellaneous Agency Services,18/11/2010,835,1697.14,Revenue,WESTERN COUNSELLING SERVICES
Adult Social Care,Adlt u65 Learning Disabilities,LD Residential Care External,Third Party Payments,Private Contractors,Miscellaneous Agency Services,18/11/2010,836,2074.68,Revenue,EL-SHADDAI
Adult Social Care,Adlt u65 Learning Disabilities,LD Residential Care External,Third Party Payments,Private Contractors,Miscellaneous Agency Services,18/11/2010,837,1438.44,Revenue,EL-SHADDAI
Adult Social Care,Adlt u65 Learning Disabilities,LD Residential Care External,Third Party Payments,Private Contractors,Miscellaneous Agency Services,18/11/2010,838,1438.44,Revenue,EL-SHADDAI
Adult Social Care,Older People 65&Over inc OP-MH,OP East - Residential Care Ext,Third Party Payments,Private Contractors,Miscellaneous Agency Services,18/11/2010,839,1386.08,Revenue,EL-SHADDAI
Adult Social Care,Older People 65&Over inc OP-MH,OP Hosp - Residential Care Ext,Third Party Payments,Private Contractors,Miscellaneous Agency Services,18/11/2010,840,1812.4,Revenue,WILLOW LODGE
Adult Social Care,Older People 65&Over inc OP-MH,OP West - Nursing Care,Third Party Payments,Private Contractors,Miscellaneous Agency Services,18/11/2010,841,11625.36,Revenue,WILLOW LODGE
Adult Social Care,Older People 65&Over inc OP-MH,OP R/Park - Nursing Care,Third Party Payments,Private Contractors,Miscellaneous Agency Services,18/11/2010,842,-9283.72,Revenue,WILLOW LODGE
Adult Social Care,Older People 65&Over inc OP-MH,OP East - Nursing Care,Third Party Payments,Private Contractors,Miscellaneous Agency Services,18/11/2010,843,119629.18,Revenue,WOODLANDS
Adult Social Care,Older People 65&Over inc OP-MH,OP East - Residential Care Ext,Third Party Payments,Private Contractors,Miscellaneous Agency Services,18/11/2010,844,38679.88,Revenue,WOODLANDS
Adult Social Care,Older People 65&Over inc OP-MH,OP West - Residential Care Ext,Third Party Payments,Private Contractors,Miscellaneous Agency Services,18/11/2010,845,25995.12,Revenue,WOODLANDS
Adult Social Care,Older People 65&Over inc OP-MH,OP West - Nursing Care,Third Party Payments,Private Contractors,Miscellaneous Agency Services,18/11/2010,846,7658.64,Revenue,WOODLANDS
Adult Social Care,Older People 65&Over inc OP-MH,OP Mitcham-Residential CareExt,Third Party Payments,Private Contractors,Miscellaneous Agency Services,18/11/2010,847,5184.42,Revenue,WOODLANDS
Adult Social Care,Older People 65&Over inc OP-MH,OP Hosp - Residential Care Ext,Third Party Payments,Private Contractors,Miscellaneous Agency Services,18/11/2010,848,3421.58,Revenue,WOODLANDS
Adult Social Care,Older People 65&Over inc OP-MH,OP East - Residential Care Ext,Customer and client receipts,Charges,Bd&Acc-contrib coll by home X,18/11/2010,849,-1124.16,Revenue,WOODLANDS
Adult Social Care,Older People 65&Over inc OP-MH,OP Wim - Residential Care Ext,Third Party Payments,Private Contractors,Miscellaneous Agency Services,18/11/2010,850,-5549.52,Revenue,WOODLANDS
Adult Social Care,Older People 65&Over inc OP-MH,OP Morden - Nursing Care,Third Party Payments,Private Contractors,Miscellaneous Agency Services,18/11/2010,851,-81824.62,Revenue,WOODLANDS
Adult Social Care,Asylum seekers,AS Child Res Care  (No Grant),Third Party Payments,Private Contractors,Private Tenant/Landlord,18/11/2010,852,600,Revenue,REDACTED
Childrens & Education Services,Other Ch's & Family Services,CL Leaving Care/Supp Lodgings,Third Party Payments,Private Contractors,Miscellaneous Agency Services,18/11/2010,853,3180,Revenue,KEYA SUPPORT LTD
Childrens & Education Services,Other Ch's & Family Services,CL Leaving Care/Supp Lodgings,Third Party Payments,Private Contractors,Miscellaneous Agency Services,18/11/2010,854,1280,Revenue,KEYA SUPPORT LTD
Childrens & Education Services,Children Looked After (24hrs+),CL Independent Fostering,Supplies & Services,Services,Task Based Fostering,18/11/2010,855,2684.36,Revenue,RAINBOW FOSTERING SERVICES LTD
Childrens & Education Services,Family Support Services,CS Day Care CWD,Third Party Payments,Private Contractors,Miscellaneous Agency Services,18/11/2010,856,926.3,Revenue,SUPREME CARE SERVICES LIMITED
Adult Social Care,Adult u65 Mental Health Needs,MH Adult PlacementCont-MitWest,Third Party Payments,Private Contractors,Accommodation Based Support,18/11/2010,857,1132.32,Revenue,REDACTED
Adult Social Care,Older People 65&Over inc OP-MH,OP East - Residential Care Ext,Third Party Payments,Private Contractors,Miscellaneous Agency Services,18/11/2010,858,1314.36,Revenue,WOODLANDS
Adult Social Care,Older People 65&Over inc OP-MH,OP East - Home Care External,Third Party Payments,Private Contractors,Miscellaneous Agency Services,19/11/2010,859,777.14,Revenue,COMPASSIONATE CARING AGENCY UK
Adult Social Care,Older People 65&Over inc OP-MH,OP East - Home Care External,Third Party Payments,Private Contractors,Miscellaneous Agency Services,19/11/2010,860,2170.88,Revenue,COMPASSIONATE CARING AGENCY UK
Adult Social Care,Older People 65&Over inc OP-MH,OP West - Home Care External,Third Party Payments,Private Contractors,Miscellaneous Agency Services,19/11/2010,861,549.32,Revenue,COMPASSIONATE CARING AGENCY UK
Adult Social Care,Adult u65 Phys/Sensory Impair,PD WEST TEAM-Homecare,Third Party Payments,Private Contractors,Miscellaneous Agency Services,19/11/2010,862,1630.84,Revenue,COMPASSIONATE CARING AGENCY UK
Adult Social Care,Adult u65 Phys/Sensory Impair,PD EAST TEAM-Homecare,Third Party Payments,Private Contractors,Miscellaneous Agency Services,19/11/2010,863,1824.2,Revenue,COMPASSIONATE CARING AGENCY UK
Adult Social Care,Older People 65&Over inc OP-MH,OP East - Home Care External,Third Party Payments,Private Contractors,Miscellaneous Agency Services,19/11/2010,864,745.04,Revenue,COMPASSIONATE CARING AGENCY UK
Adult Social Care,Older People 65&Over inc OP-MH,OP West - Home Care External,Third Party Payments,Private Contractors,Miscellaneous Agency Services,19/11/2010,865,1393.92,Revenue,COMPASSIONATE CARING AGENCY UK
Adult Social Care,Older People 65&Over inc OP-MH,OP West - Home Care External,Third Party Payments,Private Contractors,Miscellaneous Agency Services,19/11/2010,866,660.52,Revenue,COMPASSIONATE CARING AGENCY UK
Adult Social Care,Older People 65&Over inc OP-MH,OP West - Home Care External,Third Party Payments,Private Contractors,Miscellaneous Agency Services,19/11/2010,867,2170.88,Revenue,COMPASSIONATE CARING AGENCY UK
Adult Social Care,Older People 65&Over inc OP-MH,OP West - Home Care External,Third Party Payments,Private Contractors,Miscellaneous Agency Services,19/11/2010,868,602.56,Revenue,COMPASSIONATE CARING AGENCY UK
Adult Social Care,Adult u65 Phys/Sensory Impair,PD EAST TEAM-Homecare,Third Party Payments,Private Contractors,Miscellaneous Agency Services,19/11/2010,869,2212.9,Revenue,COMPASSIONATE CARING AGENCY UK
Adult Social Care,Older People 65&Over inc OP-MH,OP West - Home Care External,Third Party Payments,Private Contractors,Miscellaneous Agency Services,19/11/2010,870,789.78,Revenue,COMPASSIONATE CARING AGENCY UK
Adult Social Care,Older People 65&Over inc OP-MH,OP West - Home Care External,Third Party Payments,Private Contractors,Miscellaneous Agency Services,19/11/2010,871,2171.68,Revenue,COMPASSIONATE CARING AGENCY UK
Adult Social Care,Older People 65&Over inc OP-MH,OP East - Home Care External,Third Party Payments,Private Contractors,Miscellaneous Agency Services,19/11/2010,872,1972.88,Revenue,COMPASSIONATE CARING AGENCY UK
Adult Social Care,Older People 65&Over inc OP-MH,OP East - Home Care External,Third Party Payments,Private Contractors,Miscellaneous Agency Services,19/11/2010,873,2580.28,Revenue,COMPASSIONATE CARING AGENCY UK
Adult Social Care,Older People 65&Over inc OP-MH,OP East - Home Care External,Third Party Payments,Private Contractors,Miscellaneous Agency Services,19/11/2010,874,35570.75,Revenue,SUPREME CARE SERVICES LIMITED
Adult Social Care,Older People 65&Over inc OP-MH,OP West - Home Care External,Third Party Payments,Private Contractors,Miscellaneous Agency Services,19/11/2010,875,25582.32,Revenue,SUPREME CARE SERVICES LIMITED
Adult Social Care,Older People 65&Over inc OP-MH,OP West - Carer Services,Third Party Payments,Private Contractors,Miscellaneous Agency Services,19/11/2010,876,3854.31,Revenue,SUPREME CARE SERVICES LIMITED
Adult Social Care,Older People 65&Over inc OP-MH,OP Hosp - Home Care External,Third Party Payments,Private Contractors,Miscellaneous Agency Services,19/11/2010,877,3157.48,Revenue,SUPREME CARE SERVICES LIMITED
Adult Social Care,Adult u65 Phys/Sensory Impair,PD WEST TEAM-Homecare,Third Party Payments,Private Contractors,Miscellaneous Agency Services,19/11/2010,878,2758.71,Revenue,SUPREME CARE SERVICES LIMITED
Adult Social Care,Adult u65 Phys/Sensory Impair,PD EAST TEAM-Homecare,Third Party Payments,Private Contractors,Miscellaneous Agency Services,19/11/2010,879,2273.39,Revenue,SUPREME CARE SERVICES LIMITED
Adult Social Care,Older People 65&Over inc OP-MH,OP East - Carer Services,Third Party Payments,Private Contractors,Miscellaneous Agency Services,19/11/2010,880,1516.24,Revenue,SUPREME CARE SERVICES LIMITED
Adult Social Care,Adult u65 Mental Health Needs,MH Home Care External-MitWest,Third Party Payments,Private Contractors,Miscellaneous Agency Services,19/11/2010,881,975.48,Revenue,SUPREME CARE SERVICES LIMITED
Adult Social Care,Adlt u65 Learning Disabilities,LD Carer Services,Third Party Payments,Private Contractors,Miscellaneous Agency Services,19/11/2010,882,810.49,Revenue,SUPREME CARE SERVICES LIMITED
Adult Social Care,Adlt u65 Learning Disabilities,LD Home Care External,Third Party Payments,Private Contractors,Miscellaneous Agency Services,19/11/2010,883,805.25,Revenue,SUPREME CARE SERVICES LIMITED
Childrens & Education Services,Children Looked After (24hrs+),CL Secure Accommodation,Third Party Payments,Private Contractors,Miscellaneous Agency Services,19/11/2010,884,20860.2,Revenue,ESSEX COUNTY COUNCIL
Childrens & Education Services,Other Ch's & Family Services,CL Leaving Care/Supp Lodgings,Third Party Payments,Private Contractors,Supported Lodgings,19/11/2010,885,600,Revenue,REDACTED
Childrens & Education Services,Other Ch's & Family Services,CL Leaving Care/Supp Lodgings,Third Party Payments,Private Contractors,Supported Lodgings,19/11/2010,886,700,Revenue,REDACTED
Adult Social Care,Adult u65 Phys/Sensory Impair,PD EAST TEAM-Hostel,Third Party Payments,Private Contractors,Miscellaneous Agency Services,22/11/2010,887,923.94,Revenue,ADMINLAND LTD
Adult Social Care,Adult u65 Phys/Sensory Impair,PD EAST TEAM-Hostel,Third Party Payments,Private Contractors,Miscellaneous Agency Services,22/11/2010,888,892.08,Revenue,ADMINLAND LTD
Adult Social Care,Adult u65 Phys/Sensory Impair,PD EAST TEAM-Hostel,Third Party Payments,Private Contractors,Miscellaneous Agency Services,22/11/2010,889,1115.1,Revenue,ADMINLAND LTD
Adult Social Care,Older People 65&Over inc OP-MH,OP Mitcham - Nursing Care,Third Party Payments,Private Contractors,Miscellaneous Agency Services,22/11/2010,890,2533.72,Revenue,CARE UK
Adult Social Care,Older People 65&Over inc OP-MH,OP Hosp - Nursing Care,Third Party Payments,Private Contractors,Miscellaneous Agency Services,22/11/2010,891,3167.15,Revenue,CARE UK
Adult Social Care,Older People 65&Over inc OP-MH,OP East - Nursing Care,Third Party Payments,Private Contractors,Miscellaneous Agency Services,22/11/2010,892,10677.82,Revenue,CARE UK
Adult Social Care,Older People 65&Over inc OP-MH,OP Mitcham - Nursing Care,Third Party Payments,Private Contractors,Miscellaneous Agency Services,22/11/2010,893,-8144.1,Revenue,CARE UK
Adult Social Care,Older People 65&Over inc OP-MH,OP Hosp - Nursing Care,Third Party Payments,Private Contractors,Miscellaneous Agency Services,22/11/2010,894,2533.72,Revenue,CARE UK
Adult Social Care,Older People 65&Over inc OP-MH,OP Hosp - Nursing Care,Third Party Payments,Private Contractors,Miscellaneous Agency Services,22/11/2010,895,3167.15,Revenue,CARE UK
Adult Social Care,Older People 65&Over inc OP-MH,OP Hosp - Nursing Care,Third Party Payments,Private Contractors,Miscellaneous Agency Services,22/11/2010,896,2714.7,Revenue,CARE UK
Adult Social Care,Older People 65&Over inc OP-MH,OP Hosp - Nursing Care,Third Party Payments,Private Contractors,Miscellaneous Agency Services,22/11/2010,897,2714.7,Revenue,CARE UK
Adult Social Care,Older People 65&Over inc OP-MH,OP East - Nursing Care,Third Party Payments,Private Contractors,Miscellaneous Agency Services,22/11/2010,898,18821.92,Revenue,CARE UK
Adult Social Care,Older People 65&Over inc OP-MH,OP Mitcham - Nursing Care,Third Party Payments,Private Contractors,Miscellaneous Agency Services,22/11/2010,899,-13754.48,Revenue,CARE UK
Adult Social Care,Older People 65&Over inc OP-MH,OP East - Nursing Care,Third Party Payments,Private Contractors,Miscellaneous Agency Services,22/11/2010,900,5067.44,Revenue,CARE UK
Adult Social Care,Older People 65&Over inc OP-MH,OP Hosp - Residential Care Ext,Third Party Payments,Private Contractors,Miscellaneous Agency Services,22/11/2010,901,2000,Revenue,CARTER HOUSE
Adult Social Care,Older People 65&Over inc OP-MH,OP East - Residential Care Ext,Third Party Payments,Private Contractors,Miscellaneous Agency Services,22/11/2010,902,2814,Revenue,CARTER HOUSE
Adult Social Care,Older People 65&Over inc OP-MH,OP East - Residential Care Ext,Third Party Payments,Private Contractors,Miscellaneous Agency Services,22/11/2010,903,1767.08,Revenue,CENTRAL & CECIL
Adult Social Care,Older People 65&Over inc OP-MH,OP West - Residential Care Ext,Third Party Payments,Private Contractors,Miscellaneous Agency Services,22/11/2010,904,49000.17,Revenue,LINK HOUSE
Adult Social Care,Older People 65&Over inc OP-MH,OP West - Nursing Care,Third Party Payments,Private Contractors,Miscellaneous Agency Services,22/11/2010,905,43763.67,Revenue,LINK HOUSE
Adult Social Care,Older People 65&Over inc OP-MH,OP East - Residential Care Ext,Third Party Payments,Private Contractors,Miscellaneous Agency Services,22/11/2010,906,10945.89,Revenue,LINK HOUSE
Adult Social Care,Older People 65&Over inc OP-MH,OP Hosp - Residential Care Ext,Third Party Payments,Private Contractors,Miscellaneous Agency Services,22/11/2010,907,8021.84,Revenue,LINK HOUSE
Adult Social Care,Older People 65&Over inc OP-MH,OP East - Nursing Care,Third Party Payments,Private Contractors,Miscellaneous Agency Services,22/11/2010,908,4832.24,Revenue,LINK HOUSE
Adult Social Care,Older People 65&Over inc OP-MH,OP Hosp - Nursing Care,Third Party Payments,Private Contractors,Miscellaneous Agency Services,22/11/2010,909,3464.62,Revenue,LINK HOUSE
Adult Social Care,Adlt u65 Learning Disabilities,LD Nursing Care,Third Party Payments,Private Contractors,Miscellaneous Agency Services,22/11/2010,910,2552.88,Revenue,LINK HOUSE
Adult Social Care,Older People 65&Over inc OP-MH,OP Intake-Residential Care Ext,Third Party Payments,Private Contractors,Miscellaneous Agency Services,22/11/2010,911,-511.14,Revenue,LINK HOUSE
Adult Social Care,Older People 65&Over inc OP-MH,OP West - Nursing Care,Customer and client receipts,Charges,Bd&Acc-contrib coll by home X,22/11/2010,912,-612.4,Revenue,LINK HOUSE
Adult Social Care,Older People 65&Over inc OP-MH,OP West - Residential Care Ext,Customer and client receipts,Charges,Bd&Acc-contrib coll by home X,22/11/2010,913,-1080.28,Revenue,LINK HOUSE
Adult Social Care,Older People 65&Over inc OP-MH,OP R/Park-Residential Care Ext,Third Party Payments,Private Contractors,Miscellaneous Agency Services,22/11/2010,914,-5038.38,Revenue,LINK HOUSE
Adult Social Care,Older People 65&Over inc OP-MH,OP Mitcham-Residential CareExt,Third Party Payments,Private Contractors,Miscellaneous Agency Services,22/11/2010,915,-5125.01,Revenue,LINK HOUSE
Adult Social Care,Older People 65&Over inc OP-MH,OP Wim - Residential Care Ext,Third Party Payments,Private Contractors,Miscellaneous Agency Services,22/11/2010,916,-5125.01,Revenue,LINK HOUSE
Adult Social Care,Older People 65&Over inc OP-MH,OP Wimbledon - Nursing Care,Third Party Payments,Private Contractors,Miscellaneous Agency Services,22/11/2010,917,-6929.25,Revenue,LINK HOUSE
Adult Social Care,Older People 65&Over inc OP-MH,OP R/Park - Nursing Care,Third Party Payments,Private Contractors,Miscellaneous Agency Services,22/11/2010,918,-13858.5,Revenue,LINK HOUSE
Adult Social Care,Older People 65&Over inc OP-MH,OP Hosp - Residential Care Ext,Third Party Payments,Private Contractors,Miscellaneous Agency Services,22/11/2010,919,1448,Revenue,MARIFA LODGE
Adult Social Care,Older People 65&Over inc OP-MH,OP East - Residential Care Ext,Third Party Payments,Private Contractors,Miscellaneous Agency Services,22/11/2010,920,3308.92,Revenue,RNID
Adult Social Care,Older People 65&Over inc OP-MH,OP East - Residential Care Ext,Third Party Payments,Private Contractors,Miscellaneous Agency Services,22/11/2010,921,2000,Revenue,WOODLANDS
Adult Social Care,Older People 65&Over inc OP-MH,OP West - Residential Care Ext,Third Party Payments,Private Contractors,Miscellaneous Agency Services,22/11/2010,922,2000,Revenue,WOODLANDS
Adult Social Care,Older People 65&Over inc OP-MH,OP Hosp - Residential Care Ext,Third Party Payments,Private Contractors,Miscellaneous Agency Services,22/11/2010,923,2200,Revenue,WOODLANDS
Adult Social Care,Older People 65&Over inc OP-MH,OP Mitcham - Nursing Care,Third Party Payments,Private Contractors,Miscellaneous Agency Services,22/11/2010,924,15166.51,Revenue,WOODLANDS
Adult Social Care,Older People 65&Over inc OP-MH,OP East - Nursing Care,Third Party Payments,Private Contractors,Miscellaneous Agency Services,22/11/2010,925,2552.88,Revenue,WOODLANDS
Adult Social Care,Older People 65&Over inc OP-MH,OP Hosp - Nursing Care,Third Party Payments,Private Contractors,Miscellaneous Agency Services,22/11/2010,926,-15166.51,Revenue,WOODLANDS
Adult Social Care,Older People 65&Over inc OP-MH,OP West - Residential Care Ext,Third Party Payments,Private Contractors,Miscellaneous Agency Services,22/11/2010,927,2044.56,Revenue,WOODLANDS
Adult Social Care,Older People 65&Over inc OP-MH,OP West - Home Care External,Third Party Payments,Private Contractors,Miscellaneous Agency Services,22/11/2010,928,1248.82,Revenue,COMPASSIONATE CARING AGENCY UK
Adult Social Care,Asylum seekers,AS Child Res Care  (No Grant),Third Party Payments,Private Contractors,Private Tenant/Landlord,22/11/2010,929,517.44,Revenue,REDACTED
Childrens & Education Services,Other Ch's & Family Services,CL Leaving Care/Supp Lodgings,Third Party Payments,Private Contractors,Supported Lodgings,22/11/2010,930,700,Revenue,REDACTED
Childrens & Education Services,Other Ch's & Family Services,CL Leaving Care/Supp Lodgings,Third Party Payments,Private Contractors,Supported Lodgings,22/11/2010,931,600,Revenue,REDACTED
Childrens & Education Services,Other Ch's & Family Services,CL Leaving Care/Supp Lodgings,Third Party Payments,Private Contractors,Supported Lodgings,22/11/2010,932,700,Revenue,REDACTED
Adult Social Care,Adult u65 Mental Health Needs,MH Adult Placement Cont- NRTPF,Third Party Payments,Private Contractors,Accommodation Based Support,22/11/2010,933,863.48,Revenue,REDACTED
Childrens & Education Services,Other Ch's & Family Services,CL Leaving Care/Supp Lodgings,Third Party Payments,Private Contractors,Supported Lodgings,23/11/2010,934,1001.52,Revenue,REDACTED
Childrens & Education Services,Other Ch's & Family Services,CL Leaving Care/Supp Lodgings,Third Party Payments,Private Contractors,Supported Lodgings,23/11/2010,935,1001.52,Revenue,REDACTED
Adult Social Care,Older People 65&Over inc OP-MH,OP East - Home Care External,Third Party Payments,Private Contractors,Miscellaneous Agency Services,23/11/2010,936,11649.37,Revenue,BELGRAVIA NURS. & CARE BUREAU
Adult Social Care,Older People 65&Over inc OP-MH,OP West - Home Care External,Third Party Payments,Private Contractors,Miscellaneous Agency Services,23/11/2010,937,8603.94,Revenue,BELGRAVIA NURS. & CARE BUREAU
Adult Social Care,Older People 65&Over inc OP-MH,OP Hosp - Home Care External,Third Party Payments,Private Contractors,Miscellaneous Agency Services,23/11/2010,938,1856.35,Revenue,BELGRAVIA NURS. & CARE BUREAU
Adult Social Care,Adult u65 Mental Health Needs,MH Home Care External-MitWest,Third Party Payments,Private Contractors,Miscellaneous Agency Services,23/11/2010,939,1829.73,Revenue,BELGRAVIA NURS. & CARE BUREAU
Adult Social Care,Adult u65 Phys/Sensory Impair,PD WEST TEAM-Homecare,Third Party Payments,Private Contractors,Miscellaneous Agency Services,23/11/2010,940,1404.3,Revenue,BELGRAVIA NURS. & CARE BUREAU
Adult Social Care,Older People 65&Over inc OP-MH,OP West - Home Care External,Third Party Payments,Private Contractors,Miscellaneous Agency Services,23/11/2010,941,14394.26,Revenue,ANCHOR CARE
Adult Social Care,Older People 65&Over inc OP-MH,OP East - Home Care External,Third Party Payments,Private Contractors,Miscellaneous Agency Services,23/11/2010,942,11568.69,Revenue,ANCHOR CARE
Adult Social Care,Older People 65&Over inc OP-MH,OP East - Carer Services,Third Party Payments,Private Contractors,Miscellaneous Agency Services,23/11/2010,943,3157.89,Revenue,ANCHOR CARE
Adult Social Care,Adult u65 Phys/Sensory Impair,PD EAST TEAM-Homecare,Third Party Payments,Private Contractors,Miscellaneous Agency Services,23/11/2010,944,1510.48,Revenue,ANCHOR CARE
Adult Social Care,Adult u65 Phys/Sensory Impair,PD WEST TEAM-Homecare,Third Party Payments,Private Contractors,Miscellaneous Agency Services,23/11/2010,945,1387.81,Revenue,ANCHOR CARE
Adult Social Care,Adult u65 Mental Health Needs,MH Home Care External - Wim,Third Party Payments,Private Contractors,Miscellaneous Agency Services,23/11/2010,946,1026.45,Revenue,ANCHOR CARE
Adult Social Care,Adlt u65 Learning Disabilities,LD Home Care External,Third Party Payments,Private Contractors,Miscellaneous Agency Services,23/11/2010,947,7649.7,Revenue,COMMUNITY HOME CARE PROVIDER
Adult Social Care,Older People 65&Over inc OP-MH,OP East - Home Care External,Third Party Payments,Private Contractors,Miscellaneous Agency Services,23/11/2010,948,1751.89,Revenue,COMMUNITY HOME CARE PROVIDER
Adult Social Care,Adult u65 Phys/Sensory Impair,PD EAST TEAM-Homecare,Third Party Payments,Private Contractors,Miscellaneous Agency Services,23/11/2010,949,667.94,Revenue,COMMUNITY HOME CARE PROVIDER
Adult Social Care,Older People 65&Over inc OP-MH,OP East - Carer Services,Third Party Payments,Private Contractors,Miscellaneous Agency Services,23/11/2010,950,591.28,Revenue,COMMUNITY HOME CARE PROVIDER
Adult Social Care,Older People 65&Over inc OP-MH,OP East - Home Care External,Third Party Payments,Private Contractors,Miscellaneous Agency Services,23/11/2010,951,14401.34,Revenue,ENARA COMMUNITY CARE
Adult Social Care,Older People 65&Over inc OP-MH,OP West - Home Care External,Third Party Payments,Private Contractors,Miscellaneous Agency Services,23/11/2010,952,7137.96,Revenue,ENARA COMMUNITY CARE
Adult Social Care,Adult u65 Phys/Sensory Impair,PD WEST TEAM-Homecare,Third Party Payments,Private Contractors,Miscellaneous Agency Services,23/11/2010,953,4942.05,Revenue,ENARA COMMUNITY CARE
Adult Social Care,Older People 65&Over inc OP-MH,OP East - Carer Services,Third Party Payments,Private Contractors,Miscellaneous Agency Services,23/11/2010,954,885.61,Revenue,ENARA COMMUNITY CARE
Adult Social Care,Adult u65 Phys/Sensory Impair,PD EAST TEAM-Homecare,Third Party Payments,Private Contractors,Miscellaneous Agency Services,23/11/2010,955,872.27,Revenue,ENARA COMMUNITY CARE
Adult Social Care,Older People 65&Over inc OP-MH,OP West - Home Care External,Third Party Payments,Private Contractors,Miscellaneous Agency Services,23/11/2010,956,988.66,Revenue,HFH HOMECARE LTD
Adult Social Care,Older People 65&Over inc OP-MH,OP East - Home Care External,Third Party Payments,Private Contractors,Miscellaneous Agency Services,23/11/2010,957,719.2,Revenue,HFH HOMECARE LTD
Adult Social Care,Older People 65&Over inc OP-MH,OP West - Home Care External,Third Party Payments,Private Contractors,Miscellaneous Agency Services,23/11/2010,958,15227.8,Revenue,PLAN PERSONNEL
Adult Social Care,Older People 65&Over inc OP-MH,OP East - Home Care External,Third Party Payments,Private Contractors,Miscellaneous Agency Services,23/11/2010,959,12870.94,Revenue,PLAN PERSONNEL
Adult Social Care,Adult u65 Phys/Sensory Impair,PD EAST TEAM-Homecare,Third Party Payments,Private Contractors,Miscellaneous Agency Services,23/11/2010,960,5061.52,Revenue,PLAN PERSONNEL
Adult Social Care,Adlt u65 Learning Disabilities,LD Home Care External,Third Party Payments,Private Contractors,Miscellaneous Agency Services,23/11/2010,961,4161.86,Revenue,PLAN PERSONNEL
Adult Social Care,Adult u65 Phys/Sensory Impair,PD WEST TEAM-Homecare,Third Party Payments,Private Contractors,Miscellaneous Agency Services,23/11/2010,962,3642.24,Revenue,PLAN PERSONNEL
Adult Social Care,Older People 65&Over inc OP-MH,OP Hosp - Home Care External,Third Party Payments,Private Contractors,Miscellaneous Agency Services,23/11/2010,963,1615.66,Revenue,PLAN PERSONNEL
Adult Social Care,Adult u65 Mental Health Needs,MH Home Care External - Wim,Third Party Payments,Private Contractors,Miscellaneous Agency Services,23/11/2010,964,1043.68,Revenue,PLAN PERSONNEL
Adult Social Care,Older People 65&Over inc OP-MH,OP Mitcham-Home Care External,Third Party Payments,Private Contractors,Miscellaneous Agency Services,23/11/2010,965,930.31,Revenue,PLAN PERSONNEL
Adult Social Care,Older People 65&Over inc OP-MH,OP East - Carer Services,Third Party Payments,Private Contractors,Miscellaneous Agency Services,23/11/2010,966,760.23,Revenue,PLAN PERSONNEL
Adult Social Care,Older People 65&Over inc OP-MH,OP Mitcham - Daycare,Third Party Payments,Private Contractors,Miscellaneous Agency Services,23/11/2010,967,752.88,Revenue,WOODLANDS
Adult Social Care,Adult u65 Mental Health Needs,MH Adult Placement Cont-Wim,Third Party Payments,Private Contractors,Accommodation Based Support,23/11/2010,968,36776.74,Revenue,SW LONDON ST GEORGES NHS TRUST
Adult Social Care,Adult u65 Mental Health Needs,MH AdultPlacementCont-MSAOR,Third Party Payments,Private Contractors,Accommodation Based Support,23/11/2010,969,5253.82,Revenue,SW LONDON ST GEORGES NHS TRUST
Adult Social Care,Adult u65 Mental Health Needs,MH Adult Placement Cont-Wim,Third Party Payments,Private Contractors,Accommodation Based Support,23/11/2010,970,36776.74,Revenue,SW LONDON ST GEORGES NHS TRUST
Adult Social Care,Adult u65 Mental Health Needs,MH AdultPlacementCont-MSAOR,Third Party Payments,Private Contractors,Accommodation Based Support,23/11/2010,971,5253.82,Revenue,SW LONDON ST GEORGES NHS TRUST
Adult Social Care,Adult u65 Mental Health Needs,MH Adult Placement Cont-Wim,Third Party Payments,Private Contractors,Accommodation Based Support,23/11/2010,972,11315.92,Revenue,SW LONDON ST GEORGES NHS TRUST
Adult Social Care,Adult u65 Mental Health Needs,MH AdultPlacementCont-MSAOR,Third Party Payments,Private Contractors,Accommodation Based Support,23/11/2010,973,1616.56,Revenue,SW LONDON ST GEORGES NHS TRUST
Adult Social Care,Adult u65 Phys/Sensory Impair,PD EAST TEAM-Direct Payment,Third Party Payments,Private Contractors,Direct Payments,23/11/2010,974,785.75,Revenue,REDACTED
Adult Social Care,Older People 65&Over inc OP-MH,OP West - Nursing Care,Third Party Payments,Private Contractors,Miscellaneous Agency Services,23/11/2010,975,2354.8,Revenue,GALLEON CARE HOMES LTD
Adult Social Care,Adlt u65 Learning Disabilities,LD Residential Care External,Third Party Payments,Private Contractors,Miscellaneous Agency Services,23/11/2010,976,4450,Revenue,ST GEORGES RES. CARE HOME
Adult Social Care,Adlt u65 Learning Disabilities,LD Residential Care External,Third Party Payments,Private Contractors,Miscellaneous Agency Services,23/11/2010,977,3800,Revenue,ST GEORGES RES. CARE HOME
Adult Social Care,Adlt u65 Learning Disabilities,LD Residential Care External,Third Party Payments,Private Contractors,Miscellaneous Agency Services,23/11/2010,978,4450,Revenue,ST GEORGES RES. CARE HOME
Adult Social Care,Adlt u65 Learning Disabilities,LD Residential Care External,Third Party Payments,Private Contractors,Miscellaneous Agency Services,23/11/2010,979,1305,Revenue,INDEPENDENCE HOMES LTD
Adult Social Care,Older People 65&Over inc OP-MH,OP West - Residential Care Ext,Third Party Payments,Private Contractors,Miscellaneous Agency Services,23/11/2010,980,1812,Revenue,KAL-TAN LTD
Adult Social Care,Adlt u65 Learning Disabilities,LD Residential Care External,Third Party Payments,Private Contractors,Miscellaneous Agency Services,24/11/2010,981,5244,Revenue,KENT AUTISTIC TRUST
Adult Social Care,Adlt u65 Learning Disabilities,LD Residential Care External,Third Party Payments,Private Contractors,Miscellaneous Agency Services,24/11/2010,982,5244,Revenue,KENT AUTISTIC TRUST
Adult Social Care,Older People 65&Over inc OP-MH,OP West - Residential Care Ext,Third Party Payments,Private Contractors,Miscellaneous Agency Services,23/11/2010,983,7818.69,Revenue,PORTELET LODGE
Adult Social Care,Older People 65&Over inc OP-MH,OP Wim - Residential Care Ext,Third Party Payments,Private Contractors,Miscellaneous Agency Services,23/11/2010,984,-5963.41,Revenue,PORTELET LODGE
Adult Social Care,Adult u65 Phys/Sensory Impair,PD EAST TEAM-Residential,Third Party Payments,Private Contractors,Miscellaneous Agency Services,24/11/2010,985,875,Revenue,THE ROYAL STAR & GARTER HOME
Adult Social Care,Older People 65&Over inc OP-MH,OP West - Nursing Care,Third Party Payments,Private Contractors,Miscellaneous Agency Services,24/11/2010,986,2400,Revenue,ST TERESA`S HOME FORTHE ELDER
Adult Social Care,Older People 65&Over inc OP-MH,OP West - Residential Care Ext,Third Party Payments,Private Contractors,Miscellaneous Agency Services,24/11/2010,987,2341.84,Revenue,ST TERESA`S HOME FORTHE ELDER
Adult Social Care,Older People 65&Over inc OP-MH,OP West - Nursing Care,Third Party Payments,Private Contractors,Miscellaneous Agency Services,24/11/2010,988,2199.12,Revenue,ST TERESA`S HOME FORTHE ELDER
Adult Social Care,Adlt u65 Learning Disabilities,LD Residential Care External,Third Party Payments,Private Contractors,Miscellaneous Agency Services,23/11/2010,989,5829.72,Revenue,WALSINGHAM
Adult Social Care,Adlt u65 Learning Disabilities,LD Residential Care External,Third Party Payments,Private Contractors,Miscellaneous Agency Services,23/11/2010,990,5826.12,Revenue,WALSINGHAM
Adult Social Care,Adlt u65 Learning Disabilities,LD Residential Care External,Third Party Payments,Private Contractors,Miscellaneous Agency Services,23/11/2010,991,5826.12,Revenue,WALSINGHAM
Childrens & Education Services,Children Looked After (24hrs+),CL Fostering Services,Supplies & Services,Services,Task Based Fostering,23/11/2010,992,771.95,Revenue,REDACTED
Childrens & Education Services,Children Looked After (24hrs+),CL Fostering Services,Supplies & Services,Services,Task Based Fostering,23/11/2010,993,780.44,Revenue,REDACTED
Childrens & Education Services,Children Looked After (24hrs+),CL Fostering Services,Supplies & Services,Services,Task Based Fostering,23/11/2010,994,751.33,Revenue,REDACTED
Childrens & Education Services,Children Looked After (24hrs+),CL Fostering Services,Supplies & Services,Services,Task Based Fostering,23/11/2010,995,1150.04,Revenue,REDACTED
Childrens & Education Services,Children Looked After (24hrs+),CL Fostering Services,Supplies & Services,Services,Task Based Fostering,23/11/2010,996,1133.06,Revenue,REDACTED
Childrens & Education Services,Children Looked After (24hrs+),CL Fostering Services,Supplies & Services,Services,Task Based Fostering,23/11/2010,997,759.82,Revenue,REDACTED
Adult Social Care,Asylum seekers,AS Child - Foster Care(Grant),Supplies & Services,Services,Task Based Fostering,23/11/2010,998,1402.65,Revenue,REDACTED
Childrens & Education Services,Children Looked After (24hrs+),CL Fostering Services,Supplies & Services,Services,Task Based Fostering,23/11/2010,999,-622.21,Revenue,REDACTED
Childrens & Education Services,Children Looked After (24hrs+),CL Fostering Services,Supplies & Services,Services,Task Based Fostering,23/11/2010,1000,751.33,Revenue,REDACTED
Childrens & Education Services,Children Looked After (24hrs+),CL Fostering Services,Supplies & Services,Services,Task Based Fostering,23/11/2010,1001,1153.68,Revenue,REDACTED
Childrens & Education Services,Children Looked After (24hrs+),CL Fostering Services,Supplies & Services,Services,Task Based Fostering,23/11/2010,1002,1613.19,Revenue,REDACTED
Childrens & Education Services,Children Looked After (24hrs+),CL Fostering Services,Supplies & Services,Services,Task Based Fostering,23/11/2010,1003,930.11,Revenue,REDACTED
Childrens & Education Services,Children Looked After (24hrs+),CL Fostering Services,Supplies & Services,Services,Task Based Fostering,23/11/2010,1004,1150.04,Revenue,REDACTED
Childrens & Education Services,Children Looked After (24hrs+),CL Fostering Services,Supplies & Services,Services,Task Based Fostering,23/11/2010,1005,739.2,Revenue,REDACTED
Childrens & Education Services,Children Looked After (24hrs+),CL Fostering Services,Supplies & Services,Services,Long Term Fostering,23/11/2010,1006,1560.88,Revenue,REDACTED
Childrens & Education Services,Children Looked After (24hrs+),CL Fostering Services,Supplies & Services,Services,Task Based Fostering,23/11/2010,1007,-1308.78,Revenue,REDACTED
Childrens & Education Services,Children Looked After (24hrs+),CL Fostering Services,Supplies & Services,Services,Task Based Fostering,23/11/2010,1008,665.22,Revenue,REDACTED
Childrens & Education Services,Children Looked After (24hrs+),CL Fostering Services,Supplies & Services,Services,Task Based Fostering,23/11/2010,1009,739.2,Revenue,REDACTED
Childrens & Education Services,Children Looked After (24hrs+),CL Fostering Services,Supplies & Services,Services,Task Based Fostering,23/11/2010,1010,739.2,Revenue,REDACTED
Childrens & Education Services,Children Looked After (24hrs+),CL Fostering Services,Supplies & Services,Services,Task Based Fostering,23/11/2010,1011,751.33,Revenue,REDACTED
Childrens & Education Services,Children Looked After (24hrs+),CL Fostering Services,Supplies & Services,Services,Task Based Fostering,23/11/2010,1012,780.44,Revenue,REDACTED
Childrens & Education Services,Children Looked After (24hrs+),CL Fostering Services,Supplies & Services,Services,Task Based Fostering,23/11/2010,1013,1193.67,Revenue,REDACTED
Adult Social Care,Asylum seekers,AS Child Res Care  (No Grant),Third Party Payments,Private Contractors,Private Tenant/Landlord,24/11/2010,1014,784.56,Revenue,REDACTED
Childrens & Education Services,Other Ch's & Family Services,CL Leaving Care/Supp Lodgings,Third Party Payments,Private Contractors,Miscellaneous Agency Services,24/11/2010,1015,1199.8,Revenue,ON BEHALF SP HOMES LTD NO2 ACC
Childrens & Education Services,Other Ch's & Family Services,CL Leaving Care/Supp Lodgings,Third Party Payments,Private Contractors,Miscellaneous Agency Services,24/11/2010,1016,1199.8,Revenue,ON BEHALF SP HOMES LTD NO2 ACC
Adult Social Care,Older People 65&Over inc OP-MH,OP East - Home Care External,Third Party Payments,Private Contractors,Miscellaneous Agency Services,24/11/2010,1017,36730.19,Revenue,GOLDSBOROUGH HOMECARE
Adult Social Care,Older People 65&Over inc OP-MH,OP West - Home Care External,Third Party Payments,Private Contractors,Miscellaneous Agency Services,24/11/2010,1018,17185.89,Revenue,GOLDSBOROUGH HOMECARE
Adult Social Care,Older People 65&Over inc OP-MH,OP Hosp - Home Care External,Third Party Payments,Private Contractors,Miscellaneous Agency Services,24/11/2010,1019,4060.97,Revenue,GOLDSBOROUGH HOMECARE
Adult Social Care,Adult u65 Phys/Sensory Impair,PD EAST TEAM-Homecare,Third Party Payments,Private Contractors,Miscellaneous Agency Services,24/11/2010,1020,3265.27,Revenue,GOLDSBOROUGH HOMECARE
Adult Social Care,Older People 65&Over inc OP-MH,OP East - Carer Services,Third Party Payments,Private Contractors,Miscellaneous Agency Services,24/11/2010,1021,1692.29,Revenue,GOLDSBOROUGH HOMECARE
Adult Social Care,Adult u65 Mental Health Needs,MH Home Care External-MitWest,Third Party Payments,Private Contractors,Miscellaneous Agency Services,24/11/2010,1022,1176.93,Revenue,GOLDSBOROUGH HOMECARE
Adult Social Care,Adult u65 Phys/Sensory Impair,PD WEST TEAM-Homecare,Third Party Payments,Private Contractors,Miscellaneous Agency Services,24/11/2010,1023,828.88,Revenue,GOLDSBOROUGH HOMECARE
Adult Social Care,Older People 65&Over inc OP-MH,OP West - Carer Services,Third Party Payments,Private Contractors,Miscellaneous Agency Services,24/11/2010,1024,693.09,Revenue,GOLDSBOROUGH HOMECARE
Adult Social Care,Older People 65&Over inc OP-MH,OP West - Home Care External,Third Party Payments,Private Contractors,Miscellaneous Agency Services,24/11/2010,1025,27692.28,Revenue,SANCTUARY HOME CARE
Adult Social Care,Older People 65&Over inc OP-MH,OP East - Home Care External,Third Party Payments,Private Contractors,Miscellaneous Agency Services,24/11/2010,1026,4205.02,Revenue,SANCTUARY HOME CARE
Adult Social Care,Adult u65 Mental Health Needs,MH Home Care External-MitWest,Third Party Payments,Private Contractors,Miscellaneous Agency Services,24/11/2010,1027,626.52,Revenue,SANCTUARY HOME CARE
Adult Social Care,Older People 65&Over inc OP-MH,OP Hosp - Residential Care Ext,Third Party Payments,Private Contractors,Miscellaneous Agency Services,24/11/2010,1028,521.99,Revenue,BUPA CARE HOMES
Adult Social Care,Older People 65&Over inc OP-MH,OP East - Nursing Care,Third Party Payments,Private Contractors,Miscellaneous Agency Services,24/11/2010,1029,26386.65,Revenue,BUPA CARE HOMES
Adult Social Care,Older People 65&Over inc OP-MH,OP East - Residential Care Ext,Third Party Payments,Private Contractors,Miscellaneous Agency Services,24/11/2010,1030,17525.2,Revenue,BUPA CARE HOMES
Adult Social Care,Older People 65&Over inc OP-MH,OP Hosp - Nursing Care,Third Party Payments,Private Contractors,Miscellaneous Agency Services,24/11/2010,1031,14525.55,Revenue,BUPA CARE HOMES
Adult Social Care,Older People 65&Over inc OP-MH,OP Hosp - Residential Care Ext,Third Party Payments,Private Contractors,Miscellaneous Agency Services,24/11/2010,1032,8170.92,Revenue,BUPA CARE HOMES
Adult Social Care,Older People 65&Over inc OP-MH,OP West - Residential Care Ext,Third Party Payments,Private Contractors,Miscellaneous Agency Services,24/11/2010,1033,3995,Revenue,BUPA CARE HOMES
Adult Social Care,Adult u65 Phys/Sensory Impair,PD EAST TEAM-Nursing,Third Party Payments,Private Contractors,Miscellaneous Agency Services,24/11/2010,1034,2819.8,Revenue,BUPA CARE HOMES
Adult Social Care,Older People 65&Over inc OP-MH,OP West - Nursing Care,Third Party Payments,Private Contractors,Miscellaneous Agency Services,24/11/2010,1035,2714.7,Revenue,CARE UK
Adult Social Care,Older People 65&Over inc OP-MH,OP East - Nursing Care,Third Party Payments,Private Contractors,Miscellaneous Agency Services,24/11/2010,1036,2714.7,Revenue,CARE UK
Adult Social Care,Older People 65&Over inc OP-MH,OP Hosp - Nursing Care,Third Party Payments,Private Contractors,Miscellaneous Agency Services,24/11/2010,1037,2714.7,Revenue,CARE UK
Adult Social Care,Older People 65&Over inc OP-MH,OP Hosp - Nursing Care,Third Party Payments,Private Contractors,Miscellaneous Agency Services,24/11/2010,1038,2871.3,Revenue,CARE UK
Adult Social Care,Older People 65&Over inc OP-MH,OP East - Nursing Care,Third Party Payments,Private Contractors,Miscellaneous Agency Services,24/11/2010,1039,2714.7,Revenue,CARE UK
Adult Social Care,Other Adult Services,MH Residential Care Ext- SM&A,Third Party Payments,Private Contractors,Miscellaneous Agency Services,24/11/2010,1040,1214.29,Revenue,MOUNT CARMEL HOSTEL
Adult Social Care,Adlt u65 Learning Disabilities,LD Residential Care External,Third Party Payments,Private Contractors,Miscellaneous Agency Services,24/11/2010,1041,2633.52,Revenue,THE NAK CENTRE
Adult Social Care,Older People 65&Over inc OP-MH,OP Hosp - Residential Care Ext,Third Party Payments,Private Contractors,Miscellaneous Agency Services,24/11/2010,1042,1812.16,Revenue,SHANGRI-LA
Adult Social Care,Adult u65 Phys/Sensory Impair,PD EAST TEAM-Homecare,Third Party Payments,Private Contractors,Miscellaneous Agency Services,25/11/2010,1043,981.12,Revenue,ACCESS CARE LTD
Adult Social Care,Adult u65 Phys/Sensory Impair,PD WEST TEAM-Homecare,Third Party Payments,Private Contractors,Miscellaneous Agency Services,25/11/2010,1044,2996,Revenue,ACCESS CARE LTD
Adult Social Care,Adult u65 Phys/Sensory Impair,PD WEST TEAM-Homecare,Third Party Payments,Private Contractors,Miscellaneous Agency Services,25/11/2010,1045,3103,Revenue,ACCESS CARE LTD
Adult Social Care,Adult u65 Phys/Sensory Impair,PD EAST TEAM-Day Care,Third Party Payments,Private Contractors,Miscellaneous Agency Services,25/11/2010,1046,574,Revenue,THE GARWOOD FOUNDATION
Adult Social Care,Adult u65 Phys/Sensory Impair,PD WEST TEAM-Day Care,Third Party Payments,Private Contractors,Miscellaneous Agency Services,25/11/2010,1047,574,Revenue,THE GARWOOD FOUNDATION
Adult Social Care,Adlt u65 Learning Disabilities,LD Day Care Agency,Third Party Payments,Private Contractors,Miscellaneous Agency Services,25/11/2010,1048,1040,Revenue,LINDEN LODGE SCHOOL
Adult Social Care,Older People 65&Over inc OP-MH,OP East - Home Care External,Third Party Payments,Private Contractors,Miscellaneous Agency Services,25/11/2010,1049,2067.16,Revenue,THE SQUIRRELS DIRECT CARE LTD
Adult Social Care,Other Adult Services,MH Residential Care Ext - SM&D,Third Party Payments,Private Contractors,Miscellaneous Agency Services,25/11/2010,1050,2460,Revenue,STREETSCENE
Adult Social Care,Other Adult Services,MH Residential Care Ext - SM&D,Third Party Payments,Private Contractors,Miscellaneous Agency Services,25/11/2010,1051,2459.96,Revenue,STREETSCENE
Adult Social Care,Other Adult Services,MH Residential Care Ext - SM&D,Third Party Payments,Private Contractors,Miscellaneous Agency Services,25/11/2010,1052,2284.29,Revenue,STREETSCENE
Adult Social Care,Older People 65&Over inc OP-MH,OP East - Daycare,Third Party Payments,Private Contractors,Miscellaneous Agency Services,25/11/2010,1053,845.6,Revenue,WANDSWORTH BENGALI WELFARE ASS
Adult Social Care,Older People 65&Over inc OP-MH,OP East - Daycare,Third Party Payments,Private Contractors,Miscellaneous Agency Services,25/11/2010,1054,845.6,Revenue,WANDSWORTH BENGALI WELFARE ASS
Childrens & Education Services,Other Ch's & Family Services,CL Leaving Care/Supp Lodgings,Third Party Payments,Private Contractors,Private Tenant/Landlord,25/11/2010,1055,580,Revenue,KB1
Childrens & Education Services,Family Support Services,CS Day Care CWD,Third Party Payments,Private Contractors,Playscheme,25/11/2010,1056,650,Revenue,LINDEN LODGE SCHOOL
Adult Social Care,Adult u65 Mental Health Needs,MH Hostels/B & B - NRTPF,Third Party Payments,Private Contractors,Miscellaneous Agency Services,25/11/2010,1057,1380.4,Revenue,ASTRA HOMES
Adult Social Care,Adlt u65 Learning Disabilities,LD Supported Housing,Third Party Payments,Private Contractors,Miscellaneous Agency Services,25/11/2010,1058,1360,Revenue,ASTRA HOMES
Adult Social Care,Adult u65 Mental Health Needs,MH Hostels/ B & B - Wim,Third Party Payments,Private Contractors,Miscellaneous Agency Services,25/11/2010,1059,1222.04,Revenue,ASTRA HOMES
Adult Social Care,Adult u65 Mental Health Needs,MH Hostels/ B & B - Wim,Third Party Payments,Private Contractors,Miscellaneous Agency Services,25/11/2010,1060,763.24,Revenue,ASTRA HOMES
Adult Social Care,Adult u65 Mental Health Needs,MH Res Care Ext- Mitcham West,Third Party Payments,Private Contractors,Miscellaneous Agency Services,25/11/2010,1061,2074.72,Revenue,ASTRA HOMES
Adult Social Care,Adlt u65 Learning Disabilities,LD Supported Housing,Third Party Payments,Private Contractors,Miscellaneous Agency Services,25/11/2010,1062,965.68,Revenue,ASTRA HOMES
Adult Social Care,Adlt u65 Learning Disabilities,LD Supported Housing,Third Party Payments,Private Contractors,Miscellaneous Agency Services,25/11/2010,1063,1287.68,Revenue,ASTRA HOMES
Adult Social Care,Older People 65&Over inc OP-MH,OP East - Nursing Care,Third Party Payments,Private Contractors,Miscellaneous Agency Services,25/11/2010,1064,7058.22,Revenue,CARE UK
